{"text_format":"1","workbook":"xlsx","n_sheets":1,"sheets":["conceptos"],"not_rendered":{"charts":0,"images":2,"macros":1,"external_links":0,"defined_names":1,"comments":0,"pivot_tables":0},"unopened":[],"bounds":{"document_bytes":16777216,"sheet_cells":100000,"rows_first":2000,"rows_last":500,"rows_between":2000,"halvings":0,"cell_chars":16384,"cell_head_chars":4096},"cells_cut":0,"cells_raw":0,"read":"whole","date_system":"1900"}

{"sheet":"conceptos","index":0,"n_rows":395,"n_cols":8,"rows_kept":395,"cut":false,"hidden":false,"merged":[[392,0,392,4],[393,0,394,4],[13,0,13,6],[0,2,0,5],[9,2,9,5],[1,2,3,5],[4,2,4,3],[6,2,6,3],[7,2,7,3],[4,4,4,5],[5,4,5,5],[6,4,6,5],[7,4,7,5],[10,2,10,5],[11,2,11,5],[5,1,8,1]]}
[null,"GOBIERNO DEL ESTADO DE JALISCO","LICITACIÓN PÚBLICA ESTATAL"]
[null,"INSTITUTO DE LA INFRAESTRUCTURA FÍSICA EDUCATIVA DEL","INFEJAL-E-FAMB2021-B-CONA-06603-LP-0069-2021"]
[null,"ESTADO DE JALISCO"]
[]
[null,"DESCRIPCIÓN GENERAL DE LOS TRABAJOS:","FECHA DE INICIO:"]
[null,null,null,"FECHA DE TERMINACIÓN:"]
[null,null,"PLAZO DE EJECUCIÓN:"]
[null,null,"FECHA:"]
[]
[null,"RAZÓN SOCIAL DEL LICITANTE:","NOMBRE, CARGO Y FIRMA DEL LICITANTE:",null,null,null,"DOCUMENTO"]
[]
[]
[]
["PRESUPUESTO DE OBRA"]
[]
["CLAVE","DESCRIPCIÓN","UNIDAD","CANTIDAD","PRECIO UNITARIO ($)","PRECIO UNITARIO ($) CON LETRA","IMPORTE ($) M.N."]
["TRABAJO : BAS-CONA-06603","CONSTRUCCIÓN DE DOS AULAS DIDÁCTICAS, CANCHA DE USOS MÚLTIPLES, PÓRTICO DE INGRESO, PATIO CÍVICO Y REHABILITACIÓN GENERAL EN LA ESCUELA SECUNDARIA TÉCNICA NO. 54 CCT 14DST0121X, UBICADA EN LA CABECERA MUNICIPAL DE IXTLAHUACAN DEL RIO, JALISCO.",null,null,null,null,{"$f":"TEXT(SUM(G18 + G112 + G206 + G226 + G262 + G309 + G318 + G322 + G325), \"$ #,##0.00 ;\")","v":"$ 0.00 "}]
["EDFS","EDIFICIOS",null,null,null,null,{"$f":"TEXT(SUM(G19 + G39 + G43 + G49 + G51 + G60 + G63 + G67 + G72 + G74 + G77 + G79 + G81 + G89 + G97 + G99), \"$ #,##0.00 ;\")","v":"$ 0.00 "}]
["EDFS.01(140)","DEMOLICIONES, DESMONTAJES Y MECANICA DE SUELOS    ",null,null,null,null,{"$f":"TEXT(SUM(G20:G38), \"$ #,##0.00 ;\")","v":"$ 0.00 "}]
[140012,"DESMONTAJE DE MESA DE LABORATORIO DE QUIMICA Y DESINSTALACION DE SALIDAS ELECTRICAS, HIDRAULICAS, SANITARIAS Y DE GAS. INCLUYE MANO DE OBRA CALIFICADA, MANIOBRAS Y ACARREO A BODEGA.\n","PZA","10.0000",0,"CERO PESOS 00/100 M.N.",0,374702]
[140060,"DEMOLICION DE ENLADRILLADO DE AZOTEA DE LADRILLO ROJO DE 17 X 17 CM EN MAL ESTADO INCLUYE: RETIRO Y ACAREO DE MATERIAL DENTRO Y FUERA DE LA OBRA, MANO DE OBRA, HERRAMIENTAS,  Y LIMPIEZA DEL AREA DE TRABAJO.","M2 ","1,522.0000",0,"CERO PESOS 00/100 M.N.",0,374703]
[140078,"DEMOLICION DE AZULEJO A CUALQUIER NIVEL, INCLUYE:,(PROTECCIONES DE PISOS, VIDRIOS, PUERTAS, VENTANAS, LAMPARAS Y DEMAS INSTALACIONES QUE PUDIERAN RESULTAR DAÑADAS EN EL PROCESO DE LA DEMOLICION.) HERRAMIENTAS, EQUIPO DE SEGURIDAD,  ANDAMIOS, MANO DE OBRA, ACARREO DEL PRODUCTO DE LA DEMOLICION  DENTRO Y FUERA DE LA OBRA Y LIMPIEZA DEL AREA DE TRABAJO.","M2 ","80.0000",0,"CERO PESOS 00/100 M.N.",0,374704]
[140083,"DEMOLICION DE APLANADOS DE 2.5 CMS. DE ESPESOR EN MUROS Y BOVEDAS  A CUALQUIER NIVEL, INCLUYE: (PROTECCIONES DE PISOS, VIDRIOS, PUERTAS, VENTANAS, LAMPARAS Y DEMAS INSTALACIONES QUE PUDIERAN RESULTAR DAÑADAS EN EL PROCESO DE LA DEMOLICION.) HERRAMIENTAS, EQUIPO DE SEGURIDAD,  ANDAMIOS, MANO DE OBRA, RETIRO Y ACARREO DE MATERIALES DE DESHECHO DENTRO Y FUERA DE LA OBRA ATIRADERO AUTORIZADO Y LIMPIEZA DEL AREA DE LOS TRABAJOS.","M2 ","3,589.0000",0,"CERO PESOS 00/100 M.N.",0,374705]
[140085,"DEMOLICION DE PISO DE MOSAICO Y/O DE CONCRETO INCLUYE; RETIRO Y ACARREO DE OBRA DE MATERIAL PRODUCTO DE LA DEMOLICION, A LUGAR INDICADO POR SUPERVISION DENTRO Y FUERA DE OBRA E INCLUYE: HERRAMIENTA Y  MANO DE OBRA CALIFICADA.","M2 ","1,522.0000",0,"CERO PESOS 00/100 M.N.",0,374706]
[140109,"DESMONTAJE DE LUMINARIA DE 2 X 39 WATTS. CON GABINETE.  INCLUYE: HERRAMIENTA, MANO DE OBRA, EQUIPO DE SEGURIDAD, ANDAMIOS Y ACARREO AL LUGAR INDICADO POR EL PERSONAL CORRESPONDIENTE.\n\n","PZA","8.0000",0,"CERO PESOS 00/100 M.N.",0,374707]
[140123,"DESMANTELAR Y RETIRAR INSTALACION HIDRAULICA EXISTENTE. INCLUYE: HERRAMIENTA, MANO DE OBRA, LIMPIEZA DEL AREA DE TRABAJO, ACARREO DEL MATERIAL PRODUCTO DEL DESMANTELAMIENTO DENTRO Y FUERA DE LA OBRA.\n","SAL","25.0000",0,"CERO PESOS 00/100 M.N.",0,374708]
[140124,"DESMANTELAR Y RETIRAR INSTALACION SANITARIA EXISTENTE. INCLUYE:MANO DE OBRA, HERRAMIENTA, LIMPIEZA DEL AREA DE TRABAJO,  ACARREO DEL MATERIAL PRODUCTO DEL DESMANTELAMIENTO DENTRO Y FUERA DE LA OBRA.\n","SAL","21.0000",0,"CERO PESOS 00/100 M.N.",0,374709]
[140128,"DESCONEXION Y DESMONTAJE DE TINACO  EXISTENTE DE 1,100 LTS. DE CAPACIDAD. INCLUYE: ACARREO DENTRO Y FUERA DE LA OBRA, HERRAMIENTAS, EQUIPO DE SEGURIDAD Y MANO DE OBRA, A CUALQUIER ALTURA.\n","PZA","4.0000",0,"CERO PESOS 00/100 M.N.",0,374710]
[140129,"DESINSTALACION DE MUEBLE DE BAÑO YA SEA INODORO, LAVABO, MINGITORIO,  ETC. SIN RECUPERACION  INCLUYE:  DESCONEXION, HERRAMIENTAS, MANO DE OBRA, LIMPIEZA Y ACARREO DEL MUEBLE FUERA DE LA OBRA.","PZA","21.0000",0,"CERO PESOS 00/100 M.N.",0,374711]
[140188,"DESMONTAJE Y RETIRO DE VIDRIOS Y/ O CRISTALES EXISTENTES SIN RECUPERACION, ASENTADOS CON MASTIQUE Y/O SILICON EN CANCELERIA DE HERRERIA ESTRUCTURAL Y TUBULAR INCLUYE: RETIRO DE JUNQUILLO, RETIRO Y LIMPIEZA DEL MATERIAL DE FIJACION, MANO DE OBRA, HERRAMIENTA, EQUIPO DE SEGURIDAD, ANDAMIOS, ACARREOS DENTRO Y FUERA DE LA OBRA DE MATERIAL, LIMPIEZA DEL AREA DE TRABAJO,","M2 ","16.0000",0,"CERO PESOS 00/100 M.N.",0,374712]
[140199,"DESMONTAJE DE PUERTAS Y MAMPARAS CON MARCO Y CONTRA MARCOS DE HERRERIA TUBULAR Y/O DE ALUMINIO EXISTENTES EN OBRA, SIN RECUPERACION, TRASLADO Y GUARDADO EN BODEGA O LUGAR INDICADO POR SUPERVISION. INCLUYE; ANTEPECHO, DEMOLICION DE ANCLAJES, ACARREO Y RETIRO FUERA DE OBRA DE MATERIAL PRODUCTO DE LA DEMOLICION, MANO DE OBRA CALIFICADA Y LIMPIEZA DEL AREA DE TRABAJO.","M2 ","38.0000",0,"CERO PESOS 00/100 M.N.",0,374713]
[140260,"RETIRO DE INSTALACION ELECTRICA EXISTENTE EN EDIFICIO, INCLUYE: CABLEADO APARENTE, LAMPARAS EMPOTRADAS EN MUROS Y EN VIGAS DE MADERA, VENTILADORES FIJADOS EN MUROS Y EN VIGAS DE MADERA, APAGADORES, CONTACTOS, CAJAS, ETC., MANO DE OBRA ESPECIALIZADA, EQUIPO DE SEGURIDAD, HERRAMIENTA, RESANES Y RETIRO DEL MATERIAL A LUGAR INDICADO POR EL SUPERVISOR.","SAL","297.0000",0,"CERO PESOS 00/100 M.N.",0,374714]
[140313,"DEMOLICION DE HORMIGON DE ENTREPISO Y/O AZOTEA, CON UN ESPESOR DE 8 CMS. PROMEDIO, INCLUYE: HERRAMIENTAS, ANDAMIOS,  ACARREOS, MANO DE OBRA, LIMPIEZA DEL AREA DE TRABAJO Y RETIRO DE MATERIAL PRODUCTO DE LA DEMOLICION FUERA DE LA OBRA.\n","M2 ","1,522.0000",0,"CERO PESOS 00/100 M.N.",0,374715]
[140602,"DEMOLICION DE FIRME Y/O PISO DE CONCRETO DE 10 CM DE ESPESOR PROMEDIO, EN SECCIONES OBLIGADAS, INC. CORTE CON DISCO PARA DELIMITAR AREA DE DEMOLICION; MANO DE OBRA, HERRAMIENTA, EQUIPO,  CARGA Y ACARREO INTERIOR Y FUERA DE LA OBRA DEL MATERIAL PRODUCTO DE LA DEMOLICION.","M2 ","1,572.0000",0,"CERO PESOS 00/100 M.N.",0,374716]
[140652,"DEMOLICION DE LOSA DE CONCRETO ARMADO RECUBIERTA DE AZULEJO A CUALQUIER NIVEL. INCLUYE: RETIRO DEL MATERIAL PRODUCTO DE LA DEMOLICION DENTRO Y  FUERA DE LA OBRA, HERRAMIENTA, MANO DE OBRA, Y LIMPIEZA DEL AREA DE TRABAJO.","M2 ","20.0000",0,"CERO PESOS 00/100 M.N.",0,374717]
[140659,"DEMOLICION DE  PISOS Y/O FIRMES DE CONCRETO SIMPLE DE 8 A 10 CM. DE ESPESOR PROMEDIO, EN SECCIONES OBLIGADAS, POR CUALQUIER MEDIO, INCLUYE:  MANO DE OBRA, HERRAMIENTA, EQUIPO,  CARGA Y ACARREO DE ESCOBRO FUERA DE LA OBRA AL LUGAR PERMITIDO POR LAS AUTORIDADES CORRESPONDIENTES.","M2 ","1,787.0000",0,"CERO PESOS 00/100 M.N.",0,374718]
[140695,"DEMOLICION DE PISO DE LOSETA DE CERAMICA Y FIRME DE CONCRETO SIMPLE EXISTENTE. INC. CORTE CON DISCO PARA DELIMITAR AREA DE DEMOLICION; MANO DE OBRA, HERRAMIENTA, EQUIPO,  CARGA Y ACARREO INTERIOR Y FUERA DE LA OBRA DEL MATERIAL PRODUCTO DE LA DEMOLICION.","M2 ","67.0000",0,"CERO PESOS 00/100 M.N.",0,374719]
[934055,"DESINSTALACION DE LÍNEAS DE TUBERIA HIDRAULICA GALVANIZADA DE  1 1/2\" A 2 1/2\" DE DIAMETRO, SIN RECUPERACION, INCLUYE: DESCONEXION Y RETIRO DE ACCESORIOS (CODOS, COPLES, NIPLES, VALVULAS, NUDOS, TEES, ETC.), RETIRO DE ELEMENTOS DE FIJACION, ANDAMIOS  HERRAMIENTA, MANO DE OBRA, ACARREO DEL MATERIAL PRODUCTO DEL DESMANTELAMIENTO DENTRO Y FUERA DE LA OBRA. A CUALQUIER ALTURA.","ML ","30.0000",0,"CERO PESOS 00/100 M.N.",0,374720]
["EDFS.02(150)","TRABAJOS PRELIMINARES                             ",null,null,null,null,{"$f":"TEXT(SUM(G40:G42), \"$ #,##0.00 ;\")","v":"$ 0.00 "}]
[152202,"EXCAVACION EN CEPAS POR CUALQUIER MEDIO, MATERIAL TIPO \"A\", DE 0 A 2.00 M. DE PROFUNDIDAD, EN SECO, INCLUYE: AFINE DE TALUDES Y FONDO, TRAPALEOS,  MOVIMIENTOS Y ACARREOS DENTRO DE LA OBRA, HERRAMIENTAS Y MANO DE OBRA, MEDIDO EN BANCO.","M3 ","770.0000",0,"CERO PESOS 00/100 M.N.",0,374724]
[152513,"EXCAVACION DE FORMA MANUAL EN INTERIOR DEL EDIFICIO EN MATERIAL TIPO \"A\", DE 0 A 2 MTS DE PROFUNDIDAD,  INCLUYE: TRASPALEOS,  ARRASTRES, ACARREO AL 100 % DEL MATERIAL PRODUCTO DE LA EXCAVACION FUERA DE LA OBRA,  AFINE DE FONDO Y TALUDES,  LIMPIEZA, HERRAMIENTA Y MANO DE OBRA.","M3 ","613.0000",0,"CERO PESOS 00/100 M.N.",0,374727]
[156002,"CARGA POR CUALQUIER MEDIO Y ACARREO EN CAMION DE MATERIAL DE DESPERDICIO PRODUCTO DE LAS EXCAVACIONES FUERA DE LA OBRA, A LUGAR PERMITIDO POR LAS AUTORIDADES CORRESPONDIENTES, MEDIDO EN BANCO. INCLUYE CARGA,  ACARREO Y DESCARGA A TIRO LIBRE, HERRAMIENTA, EQUIPO, MATERIALES DE CONSUMO Y MANO DE OBRA.","M3 ","770.0000",0,"CERO PESOS 00/100 M.N.",0,374728]
["EDFS.03(160)","CIMENTACION                                       ",null,null,null,null,{"$f":"TEXT(SUM(G44:G48), \"$ #,##0.00 ;\")","v":"$ 0.00 "}]
[162002,"CIMIENTO DE PIEDRA BRAZA ACOMODADA PIEDRA POR PIEDRA, ASENTADA CON MORTERO CEMENTO-ARENA  EN PROPORCION 1:3. INCLUYE: MATERIALES, DESPERDICIOS, HERRAMIENTAS, LIMPIEZA, MANO DE OBRA Y ACARREO DE MATERIALES AL SITIO DE SU UTILIZACION.","M3 ","89.0000",0,"CERO PESOS 00/100 M.N.",0,374731]
[162102,"MAMPOSTERIA DE PIEDRA BRAZA, ACABADO APARENTE UNA CARA DE 0 A 1.5 MTS. DE ALTURA., ASENTADA CON MORTERO CEMENTO-ARENA 1:3. INCLUYE: MATERIALES, HERRAMIENTAS, PLOMEO,  LIMPIEZA, MANO DE OBRA Y ACARREO DE MATERIALES AL SITIO DE SU UTILIZACION.","M3 ","89.0000",0,"CERO PESOS 00/100 M.N.",0,374732]
[180005,"RELLENO COMPACTADO POR CUALQUIER MEDIO CON 70% DE MATERIAL DE BANCO Y 30% DE MATERIAL PRODUCTO DE EXCAVACION, EN CEPAS Y/O CAJON, A CUALQUIER PROFUNDIDAD, COMPACTADO AL 95%, EN CAPAS DE 15 CM. INCLUYE: MATERIALES, DESPERDICIOS, SUMINISTRO DE AGUA PARA LOGRAR HUMEDAD OPTIMA, MEZCLADO, TENDIDO, EQUIPO, PRUEBAS DE COMPACTACION, HERRAMIENTAS, MANO DE OBRA Y  ACARREO HASTA EL SITIO DE SU COLOCACION. (MEDIDO EN BANCO).","M3 ","613.0000",0,"CERO PESOS 00/100 M.N.",0,374742]
[180013,"RELLENO EN INTERIOR DE  AULA EXISTENE CON MATERIAL INERTE DE BANCO COMPACTADO AL 90 % PROCTOR,  EN CAPAS DE 20 CMS. DE ESPESOR AGREGANDO AGUA PARA LOGRAR SU HUMEDAD OPTIMA AL 90 % POR CUALQUIER MEDIO, MEDIDO COMPACTO. INCLUYE: SUMINISTRO DE AGUA PARA LOGRAR HUMEDAD OPTIMA, TENDIDO, TRASPALEOS, EQUIPO, PRUEBAS DE COMPACTACION, AFINE, NIVELACION, HERRAMIENTAS, MANO DE OBRA Y  ACARREO HASTA EL SITIO DE SU COLOCACION. (MEDIDO EN BANCO).\n","M3 ","613.0000",0,"CERO PESOS 00/100 M.N.",0,374743]
[180102,"RELLENO COMPACTADO AL 90 % PROCTOR, CON MATERIAL DE BANCO, EN CAPAS DE 20 CM DE ESPESOR, AGREGANDO AGUA PARA LOGRAR SU HUMEDAD OPTIMA, AL 90%. POR CUALQUIER MEDIO, INCLUYE: SUMINISTRO DE AGUA PARA LOGRAR HUMEDAD OPTIMA, TENDIDO, TRASPALEOS,  DESPERDICIOS, EQUIPO, PRUEBAS DE COMPACTACION, AFINE, NIVELACION, HERRAMIENTAS, MANO DE OBRA Y  ACARREO HASTA EL SITIO DE SU COLOCACION.  (VOLUMEN MEDIDO COMPACTADO).","M3 ","60.0000",0,"CERO PESOS 00/100 M.N.",0,374745]
["EDFS.04(200)","ESTRUCTURA                                        ",null,null,null,null,{"$f":"TEXT(SUM(G50:G50), \"$ #,##0.00 ;\")","v":"$ 0.00 "}]
[280008,"SUMINISTRO, FABRICACION Y MONTAJE DE DOS ARMADURAS PRINCIPALES UNIDAS ENTRE SI SOBRE EL MISMO EJE A DIFERENTES NIVELES CON ACERO A-36, CUERDAS A BASE DE CPS, CELOSIAS ACERO A 500 (F´Y=3235) DE PTR, CONEXION PARA DALAS DE ACERO A-36 APS, INCLUYE MANO DE OBRA CALIFICADA HERRAMIENTA, MAQUINAS, EQUIPO, CORTES, MATERIALES MENORES, INSUMOS, MANIOBRAS, DESPERDICIOS, SOLDADURA E-7018 EN FABRICACION Y MONTAJE, LIMPIEZA, PINTURA ANTICORROSIVA Y ALQUIDALICA.","KG ","2,085.0000",0,"CERO PESOS 00/100 M.N.",0,374762]
["EDFS.05(319)","ENTREPISOS, CUBIERTA Y ACABADOS DE AZOTEA         ",null,null,null,null,{"$f":"TEXT(SUM(G52:G59), \"$ #,##0.00 ;\")","v":"$ 0.00 "}]
[322037,"ENTORTADO DE HORMIGON DE CEMENTO-ARENA-JAL (MATERIAL ALIGERANTE) EN PROPORCION 1:2:6 DE 8 CM. DE ESPESOR PROMEDIO, PARA DAR PENDIENTE EN LOSA DE AZOTEA, INCLUYE: MATERIALES, LECHEREADA DE CEMENTO GRIS, NIVELACION, HERRAMIENTAS, DESPERDICIOS, ACABADO REPELLADO, MANO DE OBRA, LIMPIEZAS, ACARREO Y ELEVACIONES DE MATERIALES AL SITIO DE SU COLOCACION. EN CUALQUIER NIVEL.","M2 ","1,522.0000",0,"CERO PESOS 00/100 M.N.",0,374774]
[324014,"ENLADRILLADO DE AZOTEA CON LADRILLO DE BARRO ROJO RECOCIDO DE 17.0 X 17.0 CM, ASENTADO CON MORTERO CEMENTO-ARENA 1:3. ACOMODADO ESCALONADO EN FORMA DESENDENTE Y TRASLAPADO, INCLUYE: LECHADA DE CEMENTO GRIS Y COLOR ROJO TERRACOTA CON IMPERMEABILIZANTE INTEGRAL (1 KG/SACO DE CEMENTO), REMATE ORILLERO (2 HILADAS), MATERIALES, HERRAMIENTAS, ELEVACIONES, AJUSTES, MANO DE OBRA  Y ACARREO DE MATERIALES AL SITIO DE SU COLOCACION.","M2 ","1,522.0000",0,"CERO PESOS 00/100 M.N.",0,374775]
[326065,"SUMINISTRO Y COLOCACION DE PANEL BILAMINADO Y ACANALADO PARA CUBIERTA DE AZOTEA, COMPUESTO POR UN NUCLEO DE ESPUMA RIGIDA DE POLIURETANO DE 1 ½\" DE ESPESOR Y DOS CARAS DE LAMINA PINTRO CAL. 26, CON ACABADO POLIESTER ESTANDAR EN COLORES BLANCO Y ARENA, INCLUYE: TRAZO, CORTES, AJUSTES, TRASLAPES, ELEMENTOS DE FIJACION, DESPERDICIOS, TAPAJUNTAS, HERRAMIENTAS, ANDAMIOS, LIMPIEZA, MANO DE OBRA  Y ACARREO DE MATERIALES AL LUGAR DE SU UTILIZACION, A CUALQUIER ALTURA.","M2 ","600.0000",0,"CERO PESOS 00/100 M.N.",0,374776]
[326565,"SUMINISTRO Y COLOCACION DE CABALLETE PARA CUBIERTA ACANALADA DE PANEL BILAMINADO, DE LAMINA PINTRO CALIBRE 26, DE 45.7 CM. DE DESARROLLO, COLOR ARENA,  INCLUYE: TRASLAPES, ACCESORIOS PARA SU COLOCACION, DESPERDICIOS, HERRAMIENTAS, ANDAMIOS, LIMPIEZAS, MANO DE OBRA Y ACARREO DE MATERIALES AL LUGAR DE SU UTILIZACION, A CUALQUIER ALTURA. ","ML ","70.0000",0,"CERO PESOS 00/100 M.N.",0,374777]
[326745,"SUMINISTRO Y COLOCACION DE TAPAGOTERO PARA CUBIERTA ACANALADA DE PANEL BILAMINADO, DE LAMINA PINTRO CALIBRE 22 DE 22.5 CM. DE DESARROLLO, COLOR ARENA, INCLUYE: TRAZO, CORTES, AJUSTES, TRASLAPES, ELEMENTOS DE FIJACION, DESPERDICIOS, HERRAMIENTAS, ANDAMIOS, LIMPIEZA, MANO DE OBRA  Y ACARREO DE MATERIALES AL LUGAR DE SU UTILIZACION, A CUALQUIER ALTURA.","ML ","150.0000",0,"CERO PESOS 00/100 M.N.",0,374778]
[326755,"SUMINISTRO Y COLOCACION DE TAPAGOTERO DE AJUSTE DE CUMBRERAS DE 22.5 CM DE DESARROLLO Y 38.6 CM. DE LONGITUD PARA CUBIERTA ACANALADA DE PANEL BILAMINADO, DE LAMINA PINTRO CALIBRE 22, COLOR ARENA, INCLUYE: ELEMENTOS DE FIJACION, TRASLAPES,  HERRAMIENTAS, ANDAMIOS, LIMPIEZA, MANO DE OBRA  Y ACARREO DE MATERIALES AL LUGAR DE SU UTILIZACION, A CUALQUIER ALTURA.","PZA","6.0000",0,"CERO PESOS 00/100 M.N.",0,374779]
[326765,"SUMINISTRO Y COLOCACION DE TAPAGOTERO DE AJUSTE ESQUINERO PARA CUBIERTA ACANALADA DE PANEL BILAMINADO, DE LAMINA PINTRO CALIBRE  22, DE 50 X 50 CM. DE LONGITUD POR LADO Y 22.5 MTS DE DESARROLLO, COLOR ARENA, INCLUYE: ELEMENTOS DE FIJACION, TRASLAPES,  HERRAMIENTAS, ANDAMIOS, LIMPIEZA, MANO DE OBRA  Y ACARREO DE MATERIALES AL LUGAR DE SU UTILIZACION, A CUALQUIER ALTURA.","PZA","12.0000",0,"CERO PESOS 00/100 M.N.",0,374780]
[344125,"IMPERMEABILIZACION DE MUROS O LOSAS, A BASE DE MEMBRANA PREFABRICADA, MCA. IMPERQUIMIA, UNIPLAS AERO PLUS SBS, ALTO DESEMPEÑO CON VENTILACION ANTIABOLSAMIENTOS, FABRICADA A BASE DE ASFALTOS MODIFICADOS CON POLIMEROS SINTETICOS SBS (ESTIRENO BUTADIENO ESTIRENO) REFORZADA CON MALLA POLIESTER DE ALTA RESISTENCIA, ACABADO APARENTE A BASE DE GRAVILLA ESMALTADA A FUEGO, 4.5 MM  DE ESPESOR TOTAL, COLOR ROJO TERRACOTA, GARANTIA POR ESCRITO DE 10 AÑOS, POR LA EMPRESA CONTRATISTA., INCLUYE: LIMPIEZA Y PREPARACION DE LA SUPERFICIE, APLICACION DE PRIMER IMPERCOAT PRIMARIO SL, PARA ANCLAJE Y TAPAPORO DE LA SUPERFICIE, SELLADO DE FISURAS Y GRIETAS A BASE DE CEMENTO PLASTICO BITUMINOSO IMPERCOAT CEMENTO SBS, SUMINISTRO Y COLOCACION DE MEMBRANA POR MEDIO DE TERMOFUSION A BASE DE FUEGO DE SOPLETE DE GAS BUTANO, HACIENDO TRASLAPES MINIMOS DE 0.10 MTS. EN AMBOS SENTIDOS, SELLADO DE ORILLAS, REMATES Y TRASLAPES, MATERIALES MENORES Y DE CONSUMO, CORTES, DESPERDICIOS, LIMPIEZA GENERAL, HERRAMIENTAS, MANO DE OBRA ESPECIALIZADA Y ACARREOS AL SITIO DE SU COLOCACION.","M2 ","1,522.0000",0,"CERO PESOS 00/100 M.N.",0,374781]
["EDFS.06(355)","RECUBRIMIENTOS Y ACABADOS                         ",null,null,null,null,{"$f":"TEXT(SUM(G61:G62), \"$ #,##0.00 ;\")","v":"$ 0.00 "}]
[355022,"APLANADO DE MUROS Y/O TECHOS CON MORTERO CEMENTO-CAL-ARENA DE RIO EN PROP. 1:2:6 DE 2 CM. DE ESPESOR PROMEDIO, A PLOMO Y REGLA, ACABADO APALILLADO FINO, INCLUYE: MATERIALES, DESPERDICIOS, ANDAMIOS, HERRAMIENTAS, PLOMEO, NIVELACION, REMATES, LIMPIEZA DEL AREA DE TRABAJO Y ACARREO DE MATERIALES AL SITIO DE SU UTILIZACION. A CUALQUIER NIVEL.\n","M2 ","3,500.0000",0,"CERO PESOS 00/100 M.N.",0,374783]
[357322,"BOQUILLAS EN PUERTAS Y VENTANAS, CON MORTERO CEMENTO-CAL-ARENA 1:2:6, INCLUYE: ANDAMIOS Y ACARREO DE MATERIALES AL SITIO DE SU UTILIZACION.","ML ","930.0000",0,"CERO PESOS 00/100 M.N.",0,374785]
["EDFS.07(372)","PISOS                                             ",null,null,null,null,{"$f":"TEXT(SUM(G64:G66), \"$ #,##0.00 ;\")","v":"$ 0.00 "}]
[372242,"FIRME DE CONCRETO F´C= 150 KG/CM2 TMA= 3/4\",  DE 8 CM DE ESPESOR, ACABADO APALILLADO. INCLUYE: TRAZO, NIVELACION, AFINE Y COMPACTACION DEL TERRENO, AGUA, MATERIALES, EXTENDIDO, REGLEADO, CURADO, DESPERDICIOS, HERRAMIENTAS, LIMPIEZA, MANO DE OBRA Y ACARREO DEL MATERIAL AL SITIO DE SU UTILIZACION","M2 ","1,522.0000",0,"CERO PESOS 00/100 M.N.",0,374792]
[373022,"PISO DE CONCRETO F'C=150 KG/CM², T.M.A. 3/4\", DE 0.10 M. DE ESPESOR, COLADO EN CUADROS NO MAYORES DE 3.00 ML POR LADO, INCLUYE: TRAZO, NIVELACION, AFINE Y COMPACTACION DEL TERRENO, AGUA, DESPERDICIOS, ACARREOS, REGLEADO, ACABADO INTEGRAL RAYADO CON BROCHA DE PELO (SIN UTILIZACION DE PASTA), CIMBRA EN FRONTERAS, DESCIMBRA, COLADO, CURADO, REMATES, ESCALONADO, MUESTREADO, JUNTAS FRIAS CON VOLTEADOR, HERRAMIENTAS Y MANO DE OBRA.","M2 ","84.0000",0,"CERO PESOS 00/100 M.N.",0,374794]
[376023,"SUMINISTRO Y COLOCACION DE PISO DE LOSETA CERAMICA DE 50 X 50 CM., MCA. INTERCERAMIC DE PRIMERA, LINEA SAYULITA, DE CUALQUIER COLOR, GRADO DE DUREZA (PEI) \"IV\" , ASENTADO CON PEGAPISO Y JUNTEDO CON JUNTEADOR DE COLOR, JUNTAS DE 4 MM. DE ANCHO, INCLUYE: TRAZO, CORTE, REMATES, ESCUADRE, DESPERDICIOS, DESPATINADO, EMBOQUILLADOS, CERTIFICADO DE CALIDAD, HERRAMIENTAS, MATERIALES, MANO DE OBRA, LIMPIEZA Y ACARREO DE MATERIALES AL SITIO DE SU UTILIZACION, A CUALQUIER ALTURA.","M2 ","1,522.0000",0,"CERO PESOS 00/100 M.N.",0,374799]
["EDFS.08(382)","ELEMENTOS COMPLEMENTARIOS DE ALBAÑILERIA          ",null,null,null,null,{"$f":"TEXT(SUM(G68:G71), \"$ #,##0.00 ;\")","v":"$ 0.00 "}]
[384021,"FABRICACION, SUMINISTRO Y COLOCACIÓN DE MESA CENTRAL P/ALUMNOS EN LABORATORIO, DE 2.40 MT. DE LARGO, 1.00 MT. DE ANCHO Y 1.00 MTS. DE ALTURA, FABRICADA CON CUBIERTA DE ACERO INOXIDABLE CON DOS TARJAS DE 25 X 25 X 15 CM. REFORZADA CON MULTYPLAY Y BASTIDOR DE MARERA DEBIDAMENTE ADHERIDOS AL ACERO INOX., BASES DE CANAL MONTEN 12MT14, CON TAPAS DE LAMINA NEGRA CAL. 18 Y PLACAS PARA BASE DE ACERO ESTRUCTUR DE 15 X 15 CM., 3/16\" DE ESPESOR, BAJO LA CUBIERTA DEBERA  LLEVAR UN ENTRPAÑO CON SEPARADORES VERTICALES A BASE DE LAMINA NEGRA CALIBRE 18, INCLUYE: 2 CONTRACANASTAS,  CAJAS CHALUPAS,  2 CONTACTOS DUPLEX POLARIZADO CON PLACA DE ALUMINIO, TRAZO PARA COLOCACIÓN, ELEMENTOS DE FIJACIÓN, TORNILLERIA, MATERIALES MENORES, DESPERDICIOS, PERFORACIONES, ARMADO, PINTURA MICROPULVERIZADA EN PARTES DE LAMINA NEGRA, LIMPIEZA,  NIVELACION, HERRAMIENTAS Y MANO DE OBRA. (NOTA: VALVULAS CUELLO DE GANSO CONSIDERADAS EN EL CONCEPTO DE CONEXION HIDRAULICA Y GAS).","PZA","6.0000",0,"CERO PESOS 00/100 M.N.",0,374802]
[384024,"SUMINISTRO, FABRICACION, CONEXION Y COLOCACION DE MESA DE LAVADO DE 1.2 X 0.60 X 0.90 MTS. CON CUBIERTA DE ACERO INOXIDABLE CAL.18 CON ESTRUCTURA DE TUBULAR DE 1\" X 2\", CON PINTURA COLOR NEGRO Y FALDONES DE LAMINA CAL.18 DEL MISMO COLOR, INCLUYE: 1 TARJA DE ACERO INOXIDABLE DE 40 X 40 CMS. ADEMAS, SUMINISTRO Y COLOCACION DE 1 VALVULA PARA AGUA CUELLO DE GANSO FIG. 321 COMPLETAS, CONTRACANASTA CROMADA MCA. URREA, CESPOL DE PLOMO DE 38 MM.PARA DESCARGA SANITARIA, MATERIAL Y MANO DE OBRA TRABAJO TERMINADO.\n","PZA","3.0000",0,"CERO PESOS 00/100 M.N.",0,374803]
[384025,"SUMINISTRO, FABRICACION, CONEXION Y COLOCACION DE MESA DE LAVADO DE 2.40 X 0.60 X 0.90 MTS. CON CUBIERTA DE ACERO INOXIDABLE CAL.18 CON ESTRUCTURA DE TUBULAR DE 1\" X 2\", CON PINTURA COLOR NEGRO Y FALDONES DE LAMINA CAL.18 DEL MISMO COLOR, INCLUYE: DOS TARJAS DE ACERO INOXIDABLE DE 40 X 40 CMS. ADEMAS, SUMINISTRO Y COLOCACION DE DOS VALVULA PARA AGUA CUELLO DE GANSO FIG. 321 COMPLETA, CONTRACANASTAS CROMADAS MCA. URREA, DOS CESPOL DE PLOMO DE 38 MM.PARA DESCARGA SANITARIA, MATERIAL Y MANO DE OBRA TRABAJO TERMINADO.\n","PZA","3.0000",0,"CERO PESOS 00/100 M.N.",0,374804]
[384038,"SUMINISTRO, FABRICACION, CONEXION Y COLOCACION DE MESA PARA DEMOSTRACION DE 1.2 X 0.60 X 0.90 MTS. CON CUBIERTA DE ACERO INOXIDABLE CAL.18 CON ESTRUCTURA DE TUBULAR DE 1\" X 2\", CON PINTURA COLOR NEGRO Y FALDONES DE LAMINA CAL.18 DEL MISMO COLOR, INCLUYE: 1 TARJA DE ACERO INOXIDABLE DE 40 X 40 CMS., CONTRACANASTA CROMADA MCA. URREA, CESPOL DE PLOMO DE 38 MM.PARA DESCARGA SANITARIA, TRAZO PARA COLOCACIÓN, ELEMENTOS DE FIJACIÓN, TORNILLERIA, MATERIALES MENORES, DESPERDICIOS, PERFORACIONES, ARMADO, PINTURA MICROPULVERIZADA EN PARTES DE LAMINA NEGRA, LIMPIEZA,  NIVELACION, HERRAMIENTAS Y MANO DE OBRA. (NOTA: VALVULAS CUELLO DE GANSO CONSIDERADAS EN EL CONCEPTO DE CONEXION HIDRAULICA Y GAS).","PZA","1.0000",0,"CERO PESOS 00/100 M.N.",0,374805]
["EDFS.09(390)","CARPINTERIA                                       ",null,null,null,null,{"$f":"TEXT(SUM(G73:G73), \"$ #,##0.00 ;\")","v":"$ 0.00 "}]
[907361,"SUMINISTRO Y COLOCACION DE PUERTAS Y/O  MAMPARAS MCA.  MODUMEX, LINEA LEEDER,  MODELO ESTANDAR, FABRICADAS CON CAPAS DE FIBRA CELULOSA, PAPEL DECORATIVO Y RESINAS,  BAJO UN PROCESO DE LAMINADO PLASTICO DE ALTA PRESION, CON UN ESPESOR TOTAL DE 12.7 MM. , CON ACABADO ANTI GRAFFITI,  EN COLOR INDICADO EN OBRA POR LA SUPERVISION,  INCLUYE: HERRAJES, PASADORES CON AVISO DE VACANTE Y OCUPADO, BISAGRAS, TOPES, JALADERAS, SOPORTES INFERIORES PARA PILASTRA REDONDOS DE ACERO INOXIDABLE CAL. 12 Y CAPUCHON DE NYLON,  DESPERDICIOS, AJUSTES,  MATERIALES DE FIJACION, MANO DE OBRA ESPECIALIZADA, HERRAMIENTAS, MANO DE OBRA, LIMPIEZA Y ACARREO DE MATERIALES AL SITIO DE SU UTILIZACION. (AREA EFECTIVA DE LA MAMPARA)","M2 ","38.0000",0,"CERO PESOS 00/100 M.N.",0,374806]
["EDFS.10(393)","PINTURA                                           ",null,null,null,null,{"$f":"TEXT(SUM(G75:G76), \"$ #,##0.00 ;\")","v":"$ 0.00 "}]
[393022,"PINTURA VINIL-ACRÍLICA A BASE DE AGUA ACABADO SEMIMATE  LAVABLE, PARA INTERIORES Y EXTERIORES QUE NO DESPRENDA VAPORES TÓXICOS NI OLORES DESAGRADABLES, CON LAS SIGUIENTES CARACTERÍSTICAS ( SÓLIDOS POR PESO 46-52%, SÓLIDOS POR VOLUMEN 30-36%, VISCOSIDAD DE 100-130 UK A 25°C, DENSIDAD > O = 1.2 TON/M3., LAVABILIDAD > O = 4,000 CICLOS, TIEMPO DE SECADO AL TACTO, 30-40 MIN., TIEMPO DE SECADO DURO < O = 8 HRS., CICLO DE CURADO DE 7 DIAS, PH 6-8, RENDIMIENTO EN SUP. LISA 8-10 M2/LT., FINEZA DE MOLIDO (HEGMAN) 3-7 UH.)  EN MUROS APLANADOS DE MEZCLA APALILLADO O PULIDO, TRABAJO TERMINADO, A DOS MANOS, INCLUYE: MATERIALES MENORES Y DE CONSUMO, ANDAMIOS, PREPARACION DE LA SUPERFICIE, SELLADO DE LA SUPERFICIE, HERRAMIENTAS, LIMPIEZA, MANO DE OBRA Y  ACARREOS DE MATERIALES AL SITIO DE SU UTILIZACIÓN.","M2 ","3,365.0000",0,"CERO PESOS 00/100 M.N.",0,374808]
[393052,"PINTURA VINIL-ACRÍLICA A BASE DE AGUA ACABADO SEMIMATE  LAVABLE, PARA INTERIORES Y EXTERIORES QUE NO DESPRENDA VAPORES TÓXICOS NI OLORES DESAGRADABLES, CON LAS SIGUIENTES CARACTERÍSTICAS ( SÓLIDOS POR PESO 46-52%, SÓLIDOS POR VOLUMEN 30-36%, VISCOSIDAD DE 100-130 UK A 25°C, DENSIDAD > O = 1.2 TON/M3., LAVABILIDAD > O = 4,000 CICLOS, TIEMPO DE SECADO AL TACTO, 30-40 MIN., TIEMPO DE SECADO DURO < O = 8 HRS., CICLO DE CURADO DE 7 DIAS, PH 6-8, RENDIMIENTO EN SUP. LISA 8-10 M2/LT., FINEZA DE MOLIDO (HEGMAN) 3-7 UH.)  EN LOSAS Y ELEMENTOS DE CONCRETO, TRABAJO TERMINADO, A DOS MANOS, INCLUYE: MATERIALES MENORES Y DE CONSUMO, ANDAMIOS, PREPARACION DE LA SUPERFICIE DE CONCRETO, SELLADO DE LA SUPERFICIE, HERRAMIENTAS, LIMPIEZA, MANO DE OBRA Y  EQUIPO DE SEGURIDAD. A CUALQUIER ALTURA.","M2 ","3,500.0000",0,"CERO PESOS 00/100 M.N.",0,374810]
["EDFS.11(396)","LIMPIEZA                                          ",null,null,null,null,{"$f":"TEXT(SUM(G78:G78), \"$ #,##0.00 ;\")","v":"$ 0.00 "}]
[396412,"LIMPIEZA GENERAL DURANTE Y AL FINAL DE LA OBRA, INCLUYE; ACARREOS Y RETIRO DEL MATERIAL PRODUCTO DE LA LIMPIEZA FUERA DE LA OBRA.","M2 ","2,560.0000",0,"CERO PESOS 00/100 M.N.",0,374817]
["EDFS.12(410)","CANCELERIA, HERRERIA, ALUMINIO, VIDRIOS Y CHAPAS  ",null,null,null,null,{"$f":"TEXT(SUM(G80:G80), \"$ #,##0.00 ;\")","v":"$ 0.00 "}]
[420022,"SUMINISTRO, HABILITADO Y COLOCACION DE CANCELERIA FABRICADA  EN ALUMINIO ANODIZADO NATURAL CON PERFILES COMERCIALES DE 2\" X 1.25\",  MCA. CUPRUM ,  LINEA PANORAMA O SIMILAR, INCLUYE: TRAZO, CORTES, AJUSTES, MATERIALES, CORREDERAS, JALADERAS, OPERADORES, REPISON, SELLADO PERIMETRAL, SILICON, VINIL, HERRAJES, ELEMENTOS DE FIJACION, MATERIALES MENORES Y DE CONSUMO, DESPERDICIOS, HERRAMIENTAS, MANO DE OBRA ESPECIALIZADA, LIMPIEZA, FLETES, EQUIPO Y ACARREO DE MATERIALES AL SITIO DE SU COLOCACION, A CUALQUIER NIVEL.","M2 ","450.0000",0,"CERO PESOS 00/100 M.N.",0,374819]
["EDFS.13(510)","INSTALACION ELECTRICA EN EDIFICIO                 ",null,null,null,null,{"$f":"TEXT(SUM(G82:G88), \"$ #,##0.00 ;\")","v":"$ 0.00 "}]
[518071,"SALIDA ELECTRICA PARA CONTACTO MONOFASICO  DUPLEX POLARIZADO, OCULTA, CON TUBERIA Y CONEXIONES CONDUIT DE PVC. PESADO DE 13 Y 19 MM. DE DIAMETRO,  CABLE VINANEL THW-LS 600 V. A 75° C, 90° C, MARCA CONDUCTORES MONTERREY, (VIAKON-PROTOCOLIZADO), CABLE VINANEL 21 THW-LS 600 V. A 75° C, 90° C, MARCA CONDUMEX (CONDUMEX PROTOCOLIZADO)., CAL.  12  EN FASES Y CAL. 12 PARA TIERRA FISICA, CAJAS DE REGISTRO  CUADRADAS, CHALUPAS Y TAPAS DE PVC REFORZADO, CONTACTO QUINZIÑO MX, TAPA DE ALUMINIO, INCLUYE: TRAZO, RANURAS, CONEXION A TIERRA, MATERIALES MENORES, PRUEBAS, DESPERDICIOS, LIMPIEZAS, HERRAMIENTAS, MANO DE OBRA, Y ACARREO DEL MATERIAL AL SITIO DE SU COLOCACION, A CUALQUIER NIVEL.","SAL","50.0000",0,"CERO PESOS 00/100 M.N.",0,374826]
[518125,"SALIDA ELECTRICA PARA CONTACTO DUPLEX POLARIZADO, VISIBLE CON TUBERIA Y CONEXIONES CONDUIT GALVANIZADA P.G. ETIQUETA VERDE DE AJUSTE DE 13 Y 19 MM. DE DIAMETRO CABLE VINANEL THW-LS 600 V. A 75° C, 90° C, MARCA CONDUCTORES MONTERREY, (VIAKON-PROTOCOLIZADO), CABLE VINANEL 21 THW-LS 600 V. A 75° C, 90° C, MARCA CONDUMEX (CONDUMEX PROTOCOLIZADO) CALIBRE CAL. 12 EN FASES Y CAL. 12 PARA TIERRA FISICA, CAJAS DE REGISTRO CUADRADAS, CHALUPAS Y TAPAS DE ACERO GALVANIZADO TIPO REFORZADO, CONTACTO QUINZIÑO MX, TAPA DE ALUMINIO, INCLUYE: TRAZO, CONEXIONES A TIERRA, MATERIALES MENORES, PRUEBAS, DESPERDICIOS, LIMPIEZA, HERRAMIENTAS, MANO DE OBRA Y ACARREO DEL MATERIAL AL SITIO DE SU COLOCACION A CUALQUIER NIVEL.","SAL","125.0000",0,"CERO PESOS 00/100 M.N.",0,374828]
[522033,"SALIDA ELECTRICA PARA  APAGADOR SENCILLO, OCULTA, CON TUBERIA Y CONEXIONES CONDUIT DE PVC TIPO PESADO DE 13 Y 19 MM. DE DIAMETRO, CABLE VINANEL THW-LS 600 V. A 75° C, 90° C, MARCA CONDUCTORES MONTERREY, (VIAKON-PROTOCOLIZADO), CABLE VINANEL 21 THW-LS 600 V. A 75° C, 90° C, MARCA CONDUMEX (CONDUMEX PROTOCOLIZADO). CALIBRE 12, CAJAS CUADRADAS, CHALUPAS Y TAPAS DE PVC, APAGADOR QUINZIÑO, TAPA DE ALUMINIO, INCLUYE: RANURAS, MATERIALES MENORES, PRUEBAS, DESPERDICIOS Y ACARREO DEL MATERIAL AL SITIO DE SU COLOCACION, A CUALQUIER NIVEL.","SAL","125.0000",0,"CERO PESOS 00/100 M.N.",0,374829]
[542282,"SUMINISTRO E INSTALACION DE TABLERO DE ALUMBRADO Y DISTRIBUCION TRIFASICO, CAT. NQ304L225,  MCA. SQUARE D,  CON ZAPATAS PRINCIPALES DE 225 AMP., INCLUYE: ELEMENTOS DE FIJACION, CONEXION, PRUEBAS, MATERIALES MENORES Y DE CONSUMO, LIMPIEZA, HERRAMIENTAS, MANO DE OBRA Y ACARREOS AL SITIO DE SU INSTALACION.","PZA","1.0000",0,"CERO PESOS 00/100 M.N.",0,374832]
[544022,"SUMINISTRO E INSTALACION DE INTERRUPTOR DE FLOTADOR MCA. SQUARE'D, CAT. 9036FG. INC.: MATERIALES MENORES, PRUEBAS Y ACARREO DE MATERIALES AL SITIO DE SU COLOCACION.","PZA","2.0000",0,"CERO PESOS 00/100 M.N.",0,374834]
[550090,"SUMINISTRO E INSTALACION DE LUMINARIO FLUORESCENTE DE SOBREPONER, TIPO ENVOLVENTE, AHORRADOR DE ENERGIA DE 2 X 32 WATTS. FABRICADO EN LAMINA CAL 22, RECUBIERTO CON TRATAMIENTO FOSFATIZADO Y PINTURA ACRILICA O POLIESTER COLOR BLANCO, APLICADA ELECTROSTATICAMENTE Y TERMOENDURECIDA, PARA OBTENER UNA REFLECTANCIA MINIMA DE 90%, CON DIFUSOR ACRILICO PRISMATICO 100% PURO, TIPO ENVOLVENTE, CON UNA LONGITUD DE 120 CM., BALASTRO ELECTRONICO DE BAJA EMISION DE ARMONICAS, PARA OPERAR UNA O DOS LAMPARAS T8 DE 32 WATTS, LA LUMINARIA (COMPLETA) DEBERA CUMPLIR CON LA NORMA ANCE, INCLUYE: COPIA DE CERTIFICACION ANCE ANEXA EN ELTRAMITE DE LA ESTIMACION, FIJACION, CONEXION, MATERIALES MENORES, HERRAMIENTAS, GARANTIAS,  MANO DE OBRA, PRUEBAS Y ACARREOS.","PZA","40.0000",0,"CERO PESOS 00/100 M.N.",0,374835]
[550190,"SUMINISTRO E INSTALACION DE LUMINARIO FLUORESCENTE DE SOBREPONER, TIPO ENVOLVENTE, AHORRADOR DE ENERGIA DE 2 X 59 WATTS. FABRICADO EN LAMINA CAL 22, RECUBIERTO CON TRATAMIENTO FOSFATIZADO Y PINTURA ACRILICA O POLIESTER COLOR BLANCO, APLICADA ELECTROSTATICAMENTE Y TERMOENDURECIDA, PARA OBTENER UNA REFLECTANCIA MINIMA DE 90%, CON DIFUSOR ACRILICO PRISMATICO 100% PURO, TIPO ENVOLVENTE, CON UNA LONGITUD DE 240 CM., BALASTRO ELECTRONICO DE BAJA EMISION DE ARMONICAS, PARA OPERAR UNA O DOS LAMPARAS T8 DE 59 WATTS, (EQUIVALENTE A 4 LAMPARAS T8 DE 32 WATTS.), LA LUMINARIA (COMPLETA) DEBERA CUMPLIR CON LA NORMA ANCE, INCLUYE: COPIA DE CERTIFICACION ANCE ANEXA EN EL TRAMITE DE LA ESTIMACION, FIJACION, CONEXION, MATERIALES MENORES, HERRAMIENTAS, GARANTIAS, MANO DE OBRA, PRUEBAS Y ACARREOS.","PZA","117.0000",0,"CERO PESOS 00/100 M.N.",0,374836]
["EDFS.14(564)","INSTALACION HIDRAULICA, SANITARIA Y GAS EN EDIF.  ",null,null,null,null,{"$f":"TEXT(SUM(G90:G96), \"$ #,##0.00 ;\")","v":"$ 0.00 "}]
[570614,"SALIDA HIDRAULICA DE AGUA FRIA Y/O CALIENTE, PARA ALIMENTACION A MUEBLE SANITARIO, CONSISTENTE EN TUBERIA Y CONEXIONES DE CPVC DE 1/2\" A 2\" DE DIAMETRO,  INCLUYE: TRAZO, RANURAS, CAMARAS CONTRA GOLPE DE ARIETE, CONEXIONES, ( COPLES, CODOS, TAPONES, TEES, YEES, REDUCCIONES, ETC),  VALVULAS, TUERCAS UNION EN CUADROS DE VALVULAS, MATERIALES MENORES Y DE CONSUMO, PEGAMENTOS, ELEMENTOS DE FIJACION, DESPERDICIOS,  HERRAMIENTAS, LIMPIEZA, MANO DE OBRA, PRUEBAS HIDROSTATICAS, FLETES Y ACARREO DE LOS MATERIALES AL SITIO DE SU INSTALACION. (EN CUALQUIER NIVEL)","SAL","42.0000",0,"CERO PESOS 00/100 M.N.",0,374840]
[571102,"SALIDA SANITARIA A MUEBLE, CONSISTENTE EN TUBERIA Y CONEXIONES DE PVC DE 2\" Y 4\" DE DIAMETRO, INCLUYE: DESPERDICIO DE TUBERIA, LINEA DE VENTILACION (DESFOGUE),  COPLES, CODOS, TEES, YEES, REDUCCIONES, REGISTRO SANITARIO, MATERIALES MENORES, FLETES Y ACARREO DE LOS MATERIALES AL SITIO DE SU INSTALACION Y PRUEBAS.\n","SAL","42.0000",0,"CERO PESOS 00/100 M.N.",0,374841]
[572018,"SALIDA DE GAS LP EN LABORATORIO Y/O TALLER AEREO OCULTA EN PLAFON, MUROS Y/O PISOS, CON TUBERIA Y CONEXIONES DE COBRE TIPO \"L\" DE 19 Y 13 MM. DE DIAMETRO, DESDE LA TOMA EN TANQUE ESTACIONARIO HASTA LA ULTIMA SALIDA EN EL INTERIOR DEL EDIFICIO, INCLUYE: TRAZO, CORTES, RANURAS EN MURO, PASOS EN LOSA Y ELEMENTOS DE CONCRETO, AJUSTES, NIVELACION, ELEMENTOS DE FIJACION, SOPORTARIA TIPO PERA EN ZONAS DE PLAFON, RESANES EN PASOS, SOLDADURA DE ESTAÑO 95/5, MATERIALES MENORES Y DE CONSUMO, ACCESORIOS, VALVULAS DE GLOBO MCA. URREA, TIPO HUSKY, DESPERDICIOS, MANO DE OBRA, PRUEBAS Y ACARREO DE MATERIALES AL SITIO DE SU COLOCACION.","SAL","7.0000",0,"CERO PESOS 00/100 M.N.",0,374842]
[577202,"REVISION Y REPARACION DE INSTALACIONES HIDRAULICAS EXISTENTES,  INCLUYE: PRUEBAS HIDROSTATICAS, MATERIAL DE SUSTITUCION, TUBERIAS DE COBRE TIPO M Y/O GALVANIZADAS DE 1\" , 3/4\" Y/O 1/2\", TUERCAS UNION COPLES, NIPLES, PASTA, SOLDADURA, CINTA DE TEFLON, RANURAS EN MUROS, Y/O PISO, CORTES, AJUSTES, UNIONES, RESANES, HERRAMIENTAS, MANO DE OBRA, ACARREO DEL MATERIAL PRODUCTO DEL DESMANTELAMIENTO DENTRO,  FUERA DE LA OBRA Y TODO LO NECESARIO PARA SU CORRECTA COLOCACION.","LTE","22.0000",0,"CERO PESOS 00/100 M.N.",0,374843]
[578028,"SALIDA  HIDRAULICA, SANITARIA Y GAS, EN MESA CENTRAL PARA LABORATORIO, SEGUN GUIA MECANICA. (PREPARACION DE PUNTAS DE TUBERIA PARA CONEXION DE MESA),  INCLUYE: 1 SALIDA HIDRAULICA CON TUBERIA Y CONEXIONES DE COBRE TIPO \"M\", 1 SALIDA DE GAS CON TUBERIA Y CONEXIONES DE COBRE TIPO \"L\"  Y 2 SALIDAS SANITARIAS POR MESA CON TUBERIA Y CONEXIONES DE P.V.C. SANITARIO, SEGUN GUIA MECANICA, INCLUYE: MATERIALES MENORES, PRUEBAS Y ACARREO DE MATERIALES AL SITIO DE SU COLOCACION, A CUALQUIER NIVEL.","MSA","10.0000",0,"CERO PESOS 00/100 M.N.",0,374844]
[581650,"CONEXION HIDRAULICA, SANITARIA Y DE GAS, EN MESA CENTRAL DE LABORATORIO PARA ALUMNOS, SEGUN GUIA MECANICA. (DESDE LA PREPARACION DE PUNTAS PARA CONEXION DE MESA),  INCLUYE: TUBERIA Y CONEXIONES DE COBRE \"M\" Y \"L\" EN EL AREA DE MESA, TUBERIA Y CONEXIONES DE PVC SANITARIO, SUMINISTRO Y COLOCACION DE 2 VALVULAS CUELLO DE GANSO TIPO C.A.P.F.C.E. PARA AGUA Y GAS, COMPLETA, VALVULAS DE PASO PARA AGUA FIG. 783 Y HUSKY FIG. 22 PARA GAS, MATERIALES MENORES, PRUEBAS Y ACARREO DEL MATERIAL AL SITIO DE SU COLOCACION.","MSA","10.0000",0,"CERO PESOS 00/100 M.N.",0,374845]
[592012,"SUMINISTRO Y COLOCACION DE CESPOL BOTE DE P.V.C. CON REJILLA CROMADA. INCLUYE: MATERIALES MENORES Y DE CONSUMO, HERRAMIENTAS, DESPERDICIOS, PRUEBAS, MANO DE OBRA Y ACARREO DE MATERIALES AL SITIO DE SU COLOCACION.","PZA","6.0000",0,"CERO PESOS 00/100 M.N.",0,374846]
["EDFS.15(565)","INSTALACION HIDRAULICA, SANITARIA Y GAS EN O. EXT.",null,null,null,null,{"$f":"TEXT(SUM(G98:G98), \"$ #,##0.00 ;\")","v":"$ 0.00 "}]
[577102,"REVISION Y REPARACION DE FUGAS EN LA LINEA Y SALIDAS DE  INSTALACION HIDRAULICA, INCLUYE: MATERIAL Y MANO DE OBRA, EXCAVACION, DEMOLICION Y VOLVER A RESTITUIR PISO Y ENCOFRADO DE TUBOS, ACARREO DE LOS MATERIALES AL SITIO DE SU COLOCACION, TRABAJO TERMINADO.\n","SAL","10.0000",0,"CERO PESOS 00/100 M.N.",0,374847]
["EDFS.16(590)","MUEBLES DE BAÑO Y COCINA                          ",null,null,null,null,{"$f":"TEXT(SUM(G100:G111), \"$ #,##0.00 ;\")","v":"$ 0.00 "}]
[385018,"SUMINISTRO Y COLOCACION DE PAPELERA CROMADA DE EMPOTRAR MCA. URREA FIG. 3304 O SIMILAR,  INCLUYE: MATERIALES MENORES, ELEMENTOS DE FIJACION, HERRAMIENTAS, MANO DE OBRA Y ACARREO DE MATERIALES AL SITIO DE SU COLOCACION.","PZA","12.0000",0,"CERO PESOS 00/100 M.N.",0,374848]
[385302,"SUMINISTRO Y COLOCACION DE BARRA DE APOYO PARA DISCAPACITADOS DE ACERO INOXIDABLE PARA MINGITORIO (MULETAS) MOD. 7384-0 (1041) DE SANILOCK O SIMILAR CON CHAPETON, FIJADO A MURO. INCLUYE: ACCESORIOS Y MATERIALES DE FIJACION.","PZA","2.0000",0,"CERO PESOS 00/100 M.N.",0,374849]
[590012,"SUMINISTRO E INSTALACION DE INODORO CON TANQUE BAJO, MODELO ZAFIRO, BLANCO, MARCA AMERICAN STANDARD O SIMILAR. INC.: ASIENTO DE PLASTICO, LLAVE ANGULAR FIG. 401, ACCESORIOS DE BRONCE PARA EL TANQUE BAJO, MATERIALES MENORES, PRUEBAS Y ACARREO DE MATERIALES AL SITIO DE SU COLOCACION.","PZA","12.0000",0,"CERO PESOS 00/100 M.N.",0,374850]
[590030,"SUMINISTRO E INSTALACION DE INODORO PARA FLUXOMETRO, MODELO OLIMPICO FLUX, COLOR BLANCO, MARCA AMERICAN STANDARD, INCLUYE: ASIENTO DE PLASTICO, MATERIALES MENORES Y DE CONSUMO, ELEMENTOS DE FIJACION, LIMPIEZA, CUELLO DE CERA CON GUIA, PRUEBAS, HERRAMIENTAS, MANO DE OBRA Y ACARREO DE MATERIALES AL SITIO DE SU COLOCACION.","PZA","10.0000",0,"CERO PESOS 00/100 M.N.",0,374851]
[590163,"SUMINISTRO Y COLOCACION DE MINGITORIO PARA FLUXOMETRO, COLOR BLANCO, MCA. AMERICAN STANDARD, MODELO NIAGARA, O SIMILAR CON CESPOL INTEGRAL, INCLUYE: MATERIALES MENORES, HERRAMIENTAS, ELEMENTOS DE FIJACION, NIVELACION, PRUEBAS, MANO DE OBRA Y ACARREO DE MATERIALES AL SITIO DE SU COLOCACION.","PZA","2.0000",0,"CERO PESOS 00/100 M.N.",0,374852]
[590263,"SUMINISTRO Y COLOCACION DE OVALIN DE SOBREPONER REDONDO, MCA. AMERICAN STANDAR, MOD. PIAZZA MONOMANDO O SIMILAR, INCLUYE: LLAVES ANGULARES FIG. 401, CESPOL CROMADO MCA. URREA FIG. 207, LLAVE ECONOMIZADORA DE CIERRE AUTOMATICO MARCA HELVEX FIG. TV-120, MANGUERA COFLEX, DESPERDICIOS, MATERIALES MENORES Y DE CONSUMO, ELEMENTOS DE FIJACION, MANO DE OBRA, HERRAMIENTA, LIMPIEZA, EQUIPO, PRUEBAS Y ACARREO DE MATERIALES AL SITIO DE SU COLOCACION.","PZA","6.0000",0,"CERO PESOS 00/100 M.N.",0,374853]
[590356,"SUMINISTRO Y COLOCACION DE VERTEDERO DE ACERO INOXIDABLE CAL. 18, TIPO 304 18/10, DE 40 X 40 X 26 M.,  INCLUYE: LLAVE DE CHORRO CROMADA FIG. 18-L, CHAPETON CROMADO, CONTRA CANASTA MCA. URREA FIG. 3801, MATERIALES MENORES Y DE CONSUMO, NIVELACION, SELLADO PERIMETRAL, PRUEBAS, HERRAMIENTAS, LIMPIEZA, MANO DE OBRA Y ACARREO AL SITIO DE SU COLOCACION.","PZA","2.0000",0,"CERO PESOS 00/100 M.N.",0,374854]
[590522,"SUMINISTRO, ELEVACION Y COLOCACION DE TINACO PREFABRICADO LIGERO DE 1100 LTS DE CAP., (REDONDO) FABRICADO CON PLASTICO DE ALTA RESISTENCIA A RAYOS SOLARES, CLIMAS EXTREMOS E INTEMPERISMO, MOLDEADO, DE DOS CAPAS, INCLUYE: FLETES, MATERIALES MENORES, CONEXIONES, PRUEBAS, GARANTÍAS, NIVELACION, HERRAMIENTAS, LIMPIEZA, TAPA ROSCADA Y MANO DE OBRA. CUALQUIER ALTURA.","PZA","2.0000",0,"CERO PESOS 00/100 M.N.",0,374855]
[591055,"SUMINISTRO E INSTALACION DE LLAVE DE NARIZ MCA. URREA 9259, MOD. ETERNITY CRUCETA GDE. Y LLAVE DE CRUCETA CROMADA MCA. URREA, INCLUYE: SUMINISTRO, COLOCACION, CONEXION, PRUEBAS, MATERIALES MENORES, MANO DE OBRA Y ACARREO DEL MATERIAL AL SITIO DE SU UTILIZACION.","PZA","2.0000",0,"CERO PESOS 00/100 M.N.",0,374856]
[591556,"SUMINISTRO Y COLOCACION DE FLUXOMETRO PARA W.C. DE PALANCA, MARCA HELVEX MODELO 110/32 O SIMILAR, INCLUYE: MATERIALES MENORES, PRUEBAS Y ACARREO DE MATERIALES AL SITIO DE SU COLOCACION, A CUALQUIER NIVEL.","PZA","12.0000",0,"CERO PESOS 00/100 M.N.",0,374857]
[591566,"SUMINISTRO Y COLOCACION DE FLUXOMETRO PARA MINGITORIO DE MANIJA MARCA HELVEX MODELO 185/19 O SIMILAR, INCLUYE: MATERIALES MENORES, PRUEBAS Y ACARREO DE MATERIALES AL SITIO DE SU COLOCACION, A CUALQUIER NIVEL.","PZA","2.0000",0,"CERO PESOS 00/100 M.N.",0,374858]
[928952,"SUMINISTRO Y COLOCACION DE MOTOBOMBA CENTRIFUGA DE 3/4\" HP, MARCA CAUDAL O SIMILAR INCL: MATERIALES MENORES, PRUEBAS Y ACARREO AL SITIO DE SU COLCACION.","PZA","1.0000",0,"CERO PESOS 00/100 M.N.",0,374859]
["J","EDIFICIO J",null,null,null,null,{"$f":"TEXT(SUM(G113 + G120 + G137 + G150 + G161 + G163 + G167 + G179 + G185 + G189 + G196 + G204), \"$ #,##0.00 ;\")","v":"$ 0.00 "}]
["J.01(150)","TRABAJOS PRELIMINARES                             ",null,null,null,null,{"$f":"TEXT(SUM(G114:G119), \"$ #,##0.00 ;\")","v":"$ 0.00 "}]
[150020,"LIMPIEZA DE TERRENO RETIRANDO BASURA Y DESHIERBE FUERA DE LA OBRA. INCLUYE: HERRAMIENTAS, MANO DE OBRA, RECOLECCION, JUNTA Y RETIRO. (PROYECCION DE CUBIERTA).","M2 ","162.8000",0,"CERO PESOS 00/100 M.N.",0,374721]
[150110,"TRAZO Y NIVELACION DE EDIFICIOS ESTABLECIENDO REFERENCIAS DEFINITIVAS, CON TRANSITO Y NIVEL (EQUIPO TOPOGRAFICO), INCLUYE: PERSONAL TECNICO CALIFICADO, ESTACAS, MOJONERAS, LOCALIZACION DE ENTRE EJES, BANCOS DE NIVEL, MATERIALES PARA SEÑALAMIENTO, EQUIPO, HERRAMIENTA Y MANO DE OBRA.","M2 ","162.8000",0,"CERO PESOS 00/100 M.N.",0,374722]
[150210,"DESPALME DE TERRENO NATURAL POR CUALQUIER MEDIO, CON ESPESOR PROMEDIO DE 20 CM. INCLUYE: CARGA Y ACARREO DEL PRODUCTO FUERA DE LA OBRA, MANO DE OBRA, HERRAMIENTA Y EQUIPO. (PROYECCION DE CUBIERTA).","M2 ","162.8000",0,"CERO PESOS 00/100 M.N.",0,374723]
[152204,"EXCAVACION EN CEPAS POR CUALQUIER MEDIO, MATERIAL TIPO \"B\", DE 0 A 2.00 M. DE PROFUNDIDAD, EN SECO, INCLUYE: AFINE DE TALUDES Y FONDO, TRASPALEOS,  MOVIMIENTOS Y ACARREOS DENTRO DE LA OBRA, HERRAMIENTAS Y MANO DE OBRA, MEDIDO EN BANCO.","M3 ","59.0000",0,"CERO PESOS 00/100 M.N.",0,374725]
[152404,"EXCAVACION A CIELO ABIERTO EN CAJON POR CUALQUIER MEDIO, MATERIAL TIPO \"B\", DE 0 A 2.00 M. DE PROFUNDIDAD, EN SECO, INCLUYE: AFINE DE TALUDES Y FONDO, TRAPALEOS,  MOVIMIENTOS Y ACARREOS DENTRO DE LA OBRA, HERRAMIENTAS Y MANO DE OBRA, MEDIDO EN BANCO.","M3 ","32.6000",0,"CERO PESOS 00/100 M.N.",0,374726]
[156002,"CARGA POR CUALQUIER MEDIO Y ACARREO EN CAMION DE MATERIAL DE DESPERDICIO PRODUCTO DE LAS EXCAVACIONES FUERA DE LA OBRA, A LUGAR PERMITIDO POR LAS AUTORIDADES CORRESPONDIENTES, MEDIDO EN BANCO. INCLUYE CARGA,  ACARREO Y DESCARGA A TIRO LIBRE, HERRAMIENTA, EQUIPO, MATERIALES DE CONSUMO Y MANO DE OBRA.","M3 ","91.6000",0,"CERO PESOS 00/100 M.N.",0,374729]
["J.02(160)","CIMENTACION                                       ",null,null,null,null,{"$f":"TEXT(SUM(G121:G136), \"$ #,##0.00 ;\")","v":"$ 0.00 "}]
[160224,"PLANTILLA DE CONCRETO F'C=100 KG/CM2, TMA=3/4\", DE 6.00 CM DE ESPESOR PROMEDIO. INCLUYE: MATERIALES, HERRAMIENTAS, AFINE, NIVELACION, LIMPIEZA, MANO DE OBRA Y ACARREO DE MATERIALES AL SITIO DE SU UTILIZACION.","M2 ","53.6000",0,"CERO PESOS 00/100 M.N.",0,374730]
[167222,"DALA DE DESPLANTE DE CONCRETO F´C= 250 KG/CM2, T.M.A.= 3/4\", CON SECCION DE 14 X 30 CM., ARMADA CON 4 VARILLAS DEL #3 (3/8\") Y ESTRIBOS DEL #2 @ 20 CM., INCLUYE: ARMADO, COLADO, CURADO, VIBRADO, CIMBRA COMUN, DESCIMBRA, DESPERDICIOS, TRASLAPES, CRUCES DE VARILLAS CON ELEMENTOS TRANSVERSALES, ANDAMIOS, MANO DE OBRA, HERRAMIENTA Y ACARREO DE MATERIALES AL SITIO DE SU UTILIZACION, A CUALQUIER ALTURA.","ML ","22.6500",0,"CERO PESOS 00/100 M.N.",0,374733]
[170012,"CIMBRA  ACABADO COMUN, EN CIMENTACION, INCLUYE: DESPERDICIO, HABILITADO, CIMBRADO Y DESCIMBRA, NIVELACION, PLOMEO MATERIAL, MANO DE OBRA , LIMPIEZA, HERRAMIENTA, ACARREO DEL MATRIAL DENTRO Y FUERA DE LA OBRA.","M2 ","100.8000",0,"CERO PESOS 00/100 M.N.",0,374734]
[173001,"SUMINISTRO, HABILITADO, ARMADO Y COLOCACION DE ACERO DE REFUERZO FY=2,530 KG/CM2 (G.E.), DE 1/4\" ( # 2 ), EN CIMENTACION, INCLUYE: ALAMBRE, GANCHOS, ESCUADRAS, TRASLAPES Y DESPERDICIOS.","KG ","26.9000",0,"CERO PESOS 00/100 M.N.",0,374735]
[173003,"SUMINISTRO, HABILITADO, ARMADO Y COLOCACION DE ACERO DE REFUERZO FY=4,200 KG/CM2 (G.E.), DE 3/8\" ( #3 ), EN CIMENTACION, INCLUYE: MATERIALES, HABILITADO,  DOBLECES,  SILLETAS, ALAMBRE, GANCHOS, ESCUADRAS, TRASLAPES, DESPERDICIOS HERRAMIENTAS, MANO DE OBRA Y ACARREO DE MATERIALES AL SITIO DE SU COLOCACION.","KG ","570.0000",0,"CERO PESOS 00/100 M.N.",0,374736]
[173004,"SUMINISTRO, HABILITADO, ARMADO Y COLOCACION DE ACERO DE REFUERZO FY=4,200 KG/CM2 (G.E.), DE 1/2\" ( #4 ), EN CIMENTACION, INCLUYE: MATERIALES, HABILITADO,  DOBLECES,  SILLETAS, ALAMBRE, GANCHOS, ESCUADRAS, TRASLAPES, DESPERDICIOS HERRAMIENTAS, MANO DE OBRA Y ACARREO DE MATERIALES AL SITIO DE SU COLOCACION.","KG ","139.0000",0,"CERO PESOS 00/100 M.N.",0,374737]
[173005,"SUMINISTRO, HABILITADO, ARMADO Y COLOCACION DE ACERO DE REFUERZO FY=4,200 KG/CM2 (G.E.), DE 5/8\" (#5 ), EN CIMENTACION, INCLUYE: MATERIALES, HABILITADO,  DOBLECES,  SILLETAS, ALAMBRE, GANCHOS, ESCUADRAS, TRASLAPES, DESPERDICIOS HERRAMIENTAS, MANO DE OBRA Y ACARREO DE MATERIALES AL SITIO DE SU COLOCACION.","KG ","225.0000",0,"CERO PESOS 00/100 M.N.",0,374738]
[173006,"SUMINISTRO, HABILITADO, ARMADO Y COLOCACION DE ACERO DE REFUERZO FY=4,200 KG/CM2 (G.E.), DE 3/4\" (#6 ), EN CIMENTACION, INCLUYE: MATERIALES, HABILITADO,  DOBLECES,  SILLETAS, ALAMBRE, GANCHOS, ESCUADRAS, TRASLAPES, DESPERDICIOS HERRAMIENTAS, MANO DE OBRA Y ACARREO DE MATERIALES AL SITIO DE SU COLOCACION.","KG ","479.0000",0,"CERO PESOS 00/100 M.N.",0,374739]
[173008,"SUMINISTRO, HABILITADO, ARMADO Y COLOCACION DE ACERO DE REFUERZO FY=4,200 KG/CM2 (G.E.), DE 1\" (#8 ), EN CIMENTACION, INCLUYE: MATERIALES, HABILITADO,  DOBLECES,  SILLETAS, ALAMBRE, GANCHOS, ESCUADERAS, TRASLAPES, DESPERDICIOS HERRAMIENTAS, MANO DE OBRA Y ACARREO DE MATERIALES AL SITIO DE SU COLOCACION.","KG ","702.0000",0,"CERO PESOS 00/100 M.N.",0,374740]
[176118,"SUMINISTRO Y COLOCACION DE CONCRETO PREMEZCLADO BOMBEABLE F'C=250 KG/CM2, TMA= 3/4\", R.N. EN CIMENTACION. INCLUYE: BOMBEO, TENDIDO, RASTREADO, VIBRADO, NIVELACION, HERRAMIENTAS, LIMPIEZA, PRUEBAS DE RESISTENCIA,  CURADO CON CURACRETO ROJO,  DESPERDICIO Y MANO DE OBRA.","M3 ","13.1000",0,"CERO PESOS 00/100 M.N.",0,374741]
[180052,"RELLENO EN CEPAS POR CUALQUIER MEDIO, CON MATERIAL DE BANCO, (ARENA LIMOSA, TEPETATE, ETC.) COMPACTADO AL 90% PROCTOR, EN CAPAS DE 15 CM, MEDIDO COMPACTO. INCLUYE:  SUMINISTRO DE AGUA PARA LOGRAR HUMEDAD OPTIMA, DESPERDICIOS, TENDIDO, TRASPALEOS,  EQUIPO, PRUEBAS DE COMPACTACION, AFINE, NIVELACION, HERRAMIENTAS, MANO DE OBRA Y  ACARREO HASTA EL SITIO DE SU COLOCACION.  (VOLUMEN MEDIDO COMPACTADO).","M3 ","27.5000",0,"CERO PESOS 00/100 M.N.",0,374744]
[180102,"RELLENO COMPACTADO AL 90 % PROCTOR, CON MATERIAL DE BANCO, EN CAPAS DE 20 CM DE ESPESOR, AGREGANDO AGUA PARA LOGRAR SU HUMEDAD OPTIMA, AL 90%. POR CUALQUIER MEDIO, INCLUYE: SUMINISTRO DE AGUA PARA LOGRAR HUMEDAD OPTIMA, TENDIDO, TRASPALEOS,  DESPERDICIOS, EQUIPO, PRUEBAS DE COMPACTACION, AFINE, NIVELACION, HERRAMIENTAS, MANO DE OBRA Y  ACARREO HASTA EL SITIO DE SU COLOCACION.  (VOLUMEN MEDIDO COMPACTADO).","M3 ","110.0000",0,"CERO PESOS 00/100 M.N.",0,374746]
[180401,"RELLENO CON MATERIAL PRODUCTO DE LA EXCAVACION AGREGANDO CALHIDRA EN PROPORCION 25 KG/M3, COMPACTADO AL 90% PROCTOR, INCLUYE: ESCARIFICADO DEL TERRENO, HUMEDAD OPTIMA, MEZCLADO, TENDIDO, COMPACTACION POR CUALQUIER MEDIO EN CAPAS DE 20 CMS., NIVELADO, PRUEBAS DE COMPACTACION, TRASPALEOS, HERRAMIENTAS, MANO DE OBRA Y LOS ACARREOS NECESARIOS. MEDIDO COMPACTO.","M3 ","10.8000",0,"CERO PESOS 00/100 M.N.",0,374747]
[190022,"MURETE DE ENRRASE EN CIMENTACION CON BLOCK SOLIDO DE JALCRETO 11 X 14 X 28 CM DE SECCION, A SOGA, ASENTADO CON MORTERO CEMENTO-ARENA EN PROP. 1:3, ACABADO COMUN, INCLUYE:TRAZO, NIVELACION, PLOMEO, HERRAMIENTAS, DESPERDICIOS, MANO DE OBRA, LIMPIEZA Y ACARREO DE MATERIALES AL SITIO DE SU UTILIZACION.","M2 ","20.8500",0,"CERO PESOS 00/100 M.N.",0,374748]
[192508,"ANCLAJE DE CASTILLO EN CIMENTACION 14 X 20 CMS., CONCRETO F'C=250 KG/CM2, ARMADO CON 4 VARILLAS DEL #3 (3/8\") Y ESTRIBOS DEL #2 A CADA 15 CMS., INCLUYE: ARMADO, COLADO, CURADO, VIBRADO, CIMBRA COMUN, DESCIMBRA, DESPERDICIOS, TRASLAPES, CRUCES DE VARILLAS CON ELEMENTOS TRANSVERSALES, ANDAMIOS, MANO DE OBRA, HERRAMIENTA Y ACARREO DE MATERIALES AL SITIO DE SU UTILIZACION, A CUALQUIER ALTURA.","ML ","8.4000",0,"CERO PESOS 00/100 M.N.",0,374749]
[192511,"ANCLAJE DE CASTILLO EN CIMENTACION 14 X 15 CMS., CONCRETO F'C=250 KG/CM2, ARMADO CON 4 VARILLAS DEL #3 (3/8\") Y ESTRIBOS DEL #2 A CADA 15 CMS., INCLUYE: ARMADO, COLADO, CURADO, VIBRADO, CIMBRA COMUN, DESCIMBRA, DESPERDICIOS, TRASLAPES, CRUCES DE VARILLAS CON ELEMENTOS TRANSVERSALES, ANDAMIOS, MANO DE OBRA, HERRAMIENTA Y ACARREO DE MATERIALES AL SITIO DE SU UTILIZACION, A CUALQUIER ALTURA.","ML ","5.4000",0,"CERO PESOS 00/100 M.N.",0,374750]
["J.03(200)","ESTRUCTURA                                        ",null,null,null,null,{"$f":"TEXT(SUM(G138:G149), \"$ #,##0.00 ;\")","v":"$ 0.00 "}]
[210122,"CIMBRA DE MADERA, ACABADO APARENTE, EN COLUMNAS, INCLUYE: HABILITADO, CHAFLANES, CIMBRA, DESCIMBRA, HERRAMIENTAS, LIMPIEZAS, MANO DE OBRA  Y ACARREO DE MATERIALES AL SITIO DE SU UTILIZACION, A CUALQUIER NIVEL.","M2 ","43.8000",0,"CERO PESOS 00/100 M.N.",0,374751]
[210222,"CIMBRA DE MADERA, ACABADO APARENTE, EN TRABES, INCLUYE: HABILITADO, CHAFLANES, CIMBRA, DESCIMBRA, DESPERDICIOS,  HERRAMIENTAS, PUNTALES, ANDAMIOS, LIMPIEZAS, MANO DE OBRA  Y ACARREO DE MATERIALES AL SITIO DE SU UTILIZACION, A CUALQUIER NIVEL.","M2 ","105.2000",0,"CERO PESOS 00/100 M.N.",0,374752]
[210322,"CIMBRA DE MADERA, ACABADO APARENTE, EN LOSAS, INCLUYE: HABILITADO, CHAFLANES, CIMBRA, DESCIMBRA, GOTEROS, HERRAMIENTAS, LIMPIEZAS, MANO DE OBRA  Y ACARREO DE MATERIALES AL SITIO DE SU UTILIZACION, A CUALQUIER NIVEL.","M2 ","141.8000",0,"CERO PESOS 00/100 M.N.",0,374753]
[213003,"SUMINISTRO, HABILITADO, ARMADO Y COLOCACION DE ACERO DE REFUERZO FY=4,200 KG/CM2 (G.E.), DE 3/8\" (# 3 ), EN ESTRUCTURA, INCLUYE: MATERIALES, HABILITADO,  DOBLECES,  SILLETAS, ALAMBRE, GANCHOS, ESCUADRAS, TRASLAPES, DESPERDICIOS HERRAMIENTAS, MANO DE OBRA Y ACARREO DE MATERIALES AL SITIO DE SU COLOCACION.","KG ","2,087.0000",0,"CERO PESOS 00/100 M.N.",0,374754]
[213004,"SUMINISTRO, HABILITADO, ARMADO Y COLOCACION DE ACERO DE REFUERZO FY=4,200 KG/CM2 (G.E.), DE 1/2\" (# 4 ), EN ESTRUCTURA, INCLUYE: MATERIALES, HABILITADO,  DOBLECES,  SILLETAS, ALAMBRE, GANCHOS, ESCUADRAS, TRASLAPES, DESPERDICIOS HERRAMIENTAS, MANO DE OBRA Y ACARREO DE MATERIALES AL SITIO DE SU COLOCACION.","KG ","216.0000",0,"CERO PESOS 00/100 M.N.",0,374755]
[213005,"SUMINISTRO, HABILITADO, ARMADO Y COLOCACION DE ACERO DE REFUERZO FY=4,200 KG/CM2 (G.E.), DE 5/8\" (# 5 ), EN ESTRUCTURA, INCLUYE: MATERIALES, HABILITADO,  DOBLECES,  SILLETAS, ALAMBRE, GANCHOS, ESCUADRAS, TRASLAPES, DESPERDICIOS HERRAMIENTAS, MANO DE OBRA Y ACARREO DE MATERIALES AL SITIO DE SU COLOCACION.","KG ","210.0000",0,"CERO PESOS 00/100 M.N.",0,374756]
[213006,"SUMINISTRO, HABILITADO, ARMADO Y COLOCACION DE ACERO DE REFUERZO FY=4,200 KG/CM2 (G.E.), DE 3/4\" (#6 ) , EN ESTRUCTURA, INCLUYE: MATERIALES, HABILITADO,  DOBLECES,  SILLETAS, ALAMBRE, GANCHOS, ESCUADRAS, TRASLAPES, DESPERDICIOS HERRAMIENTAS, MANO DE OBRA Y ACARREO DE MATERIALES AL SITIO DE SU COLOCACION.","KG ","825.0000",0,"CERO PESOS 00/100 M.N.",0,374757]
[213008,"SUMINISTRO, HABILITADO, ARMADO Y COLOCACION DE ACERO DE REFUERZO FY=4,200 KG/CM2 (G.E.), DE 1\" (#8 ) , EN ESTRUCTURA, INCLUYE: MATERIALES, HABILITADO,  DOBLECES,  SILLETAS, ALAMBRE, GANCHOS, ESCUADRAS, TRASLAPES, SOLDADURA DESPERDICIOS HERRAMIENTAS, MANO DE OBRA Y ACARREO DE MATERIALES AL SITIO DE SU COLOCACION.","KG ","1,052.0000",0,"CERO PESOS 00/100 M.N.",0,374758]
[216922,"SUMINISTRO Y COLOCACION DE CONCRETO PREMEZCLADO BOMBEABLE, F'C=250 KG/CM2, T.M.A.= 3/4, R.N., EN COLUMNAS, INCLUYE: MATERIALES, FLETES, MANIOBRAS, BOMBEO, CURADO CON CURACRETO ROJO, VIBRADO, AFINE Y ACABADO REGLEADO,  DESPERDICIO, PRUEBAS DE RESISTENCIA Y MANO DE OBRA, A CUALQUIER NIVEL.","M3 ","4.2500",0,"CERO PESOS 00/100 M.N.",0,374759]
[216932,"SUMINISTRO Y COLOCACION DE CONCRETO PREMEZCLADO BOMB, F'C=250 KG/CM2, T.M.A.= 3/4, R.N., EN TRABES Y FALDONES, INCLUYE:MATERIALES, FLETES, MANIOBRAS, BOMBEO, CURADO CON CURACRETO ROJO, VIBRADO, AFINE Y ACABADO REGLEADO,  DESPERDICIO, PRUEBAS DE RESISTENCIA Y MANO DE OBRA, A CUALQUIER NIVEL.","M3 ","8.7000",0,"CERO PESOS 00/100 M.N.",0,374760]
[216942,"SUMINISTRO Y COLOCACION DE CONCRETO PREMEZCLADO BOMB, F'C=250 KG/CM2, T.M.A.= 3/4, R.N., EN LOSAS, INCLUYE: MATERIALES, FLETES, MANIOBRAS, BOMBEO, CURADO CON CURACRETO ROJO, VIBRADO, AFINE Y ACABADO REGLEADO,  DESPERDICIO, PRUEBAS DE RESISTENCIA Y MANO DE OBRA, A CUALQUIER NIVEL.","M3 ","16.4000",0,"CERO PESOS 00/100 M.N.",0,374761]
[322512,"ACABADO PULIDO Y/O APALILLADO FINO POR CUALQUIER MEDIO DE LOSA Y/O ELEMENTOS DE CONCRETO (GRADAS, PISOS, AZOTEAS Y/O ENTREPISOS DE CONCRETO), TERMINADO EN FORMA INTEGRAL, (SIN UTILIZAR PASTA),  INCLUYE: DESPERDICIOS, ACARREOS, REGLEADO, REMATES, JUNTAS FRIAS CON VOLTEADOR, HERRAMIENTAS Y MANO DE OBRA.","M2 ","162.1500",0,"CERO PESOS 00/100 M.N.",0,374763]
["J.04(310)","MUROS, CADENAS, CASTILLOS Y REPIZONES.            ",null,null,null,null,{"$f":"TEXT(SUM(G151:G160), \"$ #,##0.00 ;\")","v":"$ 0.00 "}]
[310172,"DALA DE CONCRETO F'C=250 KG/CM2, T.M.A.=3/4\", CON SECCION DE 14 X 15 CMS., ARMADA CON 4 VARILLAS DEL # 3 Y ESTRIBOS DEL NO. 2 @ 20 CMS., INCLUYE: ARMADO, COLADO, CURADO, VIBRADO, CIMBRA COMUN, DESCIMBRA, TRASLAPES, CRUCES DE VARILLAS CON ELEMENTOS TRANSVERSALES, DESPERDICIOS, MANO DE OBRA, HERRAMIENTA Y ACARREO DE MATERIALES AL SITIO DE SU UTILIZACION, A CUALQUIER ALTURA.","ML ","21.1200",0,"CERO PESOS 00/100 M.N.",0,374764]
[310210,"DALA DE CONCRETO F'C=250 KG/CM2, T.M.A.=3/4\", CON SECCION DE 14 X 20 CMS., ARMADA CON 4 VARILLAS DEL # 3 Y ESTRIBOS DEL NO. 2 @ 20 CMS., INCLUYE: ARMADO, COLADO, CURADO, VIBRADO, CIMBRA COMUN, DESCIMBRA, DESPERDICIOS, TRASLAPES, ESCUADRAS, CRUCE DE VARILLAS CON ELEMENTOS TRANSVERSALES, ANDAMIOS, MANO DE OBRA, HERRAMIENTA Y ACARREO DE MATERIALES AL SITIO DE SU UTILIZACION. A CUALQUIER ALTURA.","ML ","22.6500",0,"CERO PESOS 00/100 M.N.",0,374765]
[310538,"DALA DE CONCRETO F'C=250 KG/CM2, T.M.A.=3/4\", CON SECCION DE 14 X 10 CMS., SIN ARMAR, INCLUYE: COLADO, CURADO, VIBRADO, CIMBRA APARENTE, DESCIMBRA, DESPERDICIOS, MANO DE OBRA, HERRAMIENTA Y ACARREO DE MATERIALES AL SITIO DE SU UTILIZACION, A CUALQUIER ALTURA.","ML ","22.6500",0,"CERO PESOS 00/100 M.N.",0,374766]
[310544,"DALA DE CONCRETO F'C=250 KG/CM2, T.M.A.=3/4\", CON SECCION DE 14 X 20 CMS., SIN ARMAR INCLUYE: COLADO, CURADO, VIBRADO, CIMBRA APARENTE, DESCIMBRA, DESPERDICIOS, MANO DE OBRA, ANDAMIOS,  HERRAMIENTA Y ACARREO DE MATERIALES AL SITIO DE SU UTILIZACION, A CUALQUIER NIVEL","ML ","21.1200",0,"CERO PESOS 00/100 M.N.",0,374767]
[312212,"CASTILLO DE CONCRETO F'C=250 KG/CM2, T.M.A.=3/4\", CON SECCION DE 14 X 15 CMS., ARMADA CON 4 VARILLAS DEL # 3 Y ESTRIBOS DEL NO. 2 @ 15 CMS., INCLUYE: ARMADO, COLADO, CURADO, VIBRADO, CIMBRA COMUN, DESCIMBRA, DESPERDICIOS, TRASLAPES, CRUCES DE VARILLAS CON ELEMENTOS TRANSVERSALES, ANDAMIOS, MANO DE OBRA, HERRAMIENTA Y ACARREO DE MATERIALES AL SITIO DE SU UTILIZACION, A CUALQUIER ALTURA.","ML ","16.0600",0,"CERO PESOS 00/100 M.N.",0,374768]
[312246,"CASTILLO DE CONCRETO F'C=250 KG/CM2, T.M.A.=3/4\", CON SECCION DE 14 X 20 CMS., ARMADA CON 4 VARILLAS DEL # 3 Y ESTRIBOS DEL NO. 2 @ 20 CMS., INCLUYE: ARMADO, COLADO, CURADO, VIBRADO, CIMBRA COMUN, DESCIMBRA, DESPERDICIOS, MANO DE OBRA, HERRAMIENTA Y ACARREO DE MATERIALES AL SITIO DE SU UTILIZACION, A CUALQUIER ALTURA.","ML ","27.9200",0,"CERO PESOS 00/100 M.N.",0,374769]
[314032,"MURO DE TABIQUE DE LAMA, DE 14 CMS. DE ESPESOR PROMEDIO, A SOGA, CON TABIQUE DE LAMA 7 X 14 X 28 CMS., ACABADO COMUN, ASENTADO CON MORTERO CEMENTO-ARENA EN PROPORCION 1:3, EN CUALQUIER NIVEL, INCLUYE: TRAZO, NIVELACION, PLOMEO, ANDAMIOS, DESPERDICIOS, MANO DE OBRA, LIMPIEZA Y ACARREO DE MATERIALES AL SITIO DE SU UTILIZACION.","M2 ","61.3200",0,"CERO PESOS 00/100 M.N.",0,374770]
[344012,"IMPERMEABILIZACION DE CADENAS DE DESPLANTE EN MUROS, CON UNA CAPA DE EMULTEX (O SIMILAR), DOS CAPAS DE BITUMEX (O SIMILAR) Y UNA CAPA DE CRISTAFLEX (O SIMILAR).","ML ","46.1500",0,"CERO PESOS 00/100 M.N.",0,374771]
[344535,"CALAFATEO DE JUNTA DE CONTRACCION ELASTOMERICA ENTRE MUROS Y COLUMNA, A BASE SIKAFLEX-1A DE COLOR DE ACUERDO AL ACABADO DEL ELEMENTO, CON UNA SECCION TRANSVERSAL DE LA JUNTA 2 CM X 1.50 CM, INCLUYE: MATERIALES, DESPERDICIOS, LIMPIEZA, HERRAMIENTAS, MANO DE OBRA Y ACARREO DE MATERIALES. A CUALQUIER ALTURA.","ML ","99.0000",0,"CERO PESOS 00/100 M.N.",0,374772]
[908201,"SUMINISTRO Y COLOCACION DE PLACAS DE POLIESTIRENO DE 14 CM DE ANCHO Y 3/4\" DE ESPESOR, EN JUNTAS CONSTRUCTIVA, MUROS, COLUMNA Y TRABES, INCLUYE:  MATERIALES, MANO DE OBRA, CORTES, AJUSTES, FIJACION, FLETES Y ACARREOS. A CUALQUIER NIVEL.","ML ","49.5000",0,"CERO PESOS 00/100 M.N.",0,374773]
["J.05(319)","ENTREPISOS, CUBIERTA Y ACABADOS DE AZOTEA         ",null,null,null,null,{"$f":"TEXT(SUM(G162:G162), \"$ #,##0.00 ;\")","v":"$ 0.00 "}]
[344125,"IMPERMEABILIZACION DE MUROS O LOSAS, A BASE DE MEMBRANA PREFABRICADA, MCA. IMPERQUIMIA, UNIPLAS AERO PLUS SBS, ALTO DESEMPEÑO CON VENTILACION ANTIABOLSAMIENTOS, FABRICADA A BASE DE ASFALTOS MODIFICADOS CON POLIMEROS SINTETICOS SBS (ESTIRENO BUTADIENO ESTIRENO) REFORZADA CON MALLA POLIESTER DE ALTA RESISTENCIA, ACABADO APARENTE A BASE DE GRAVILLA ESMALTADA A FUEGO, 4.5 MM  DE ESPESOR TOTAL, COLOR ROJO TERRACOTA, GARANTIA POR ESCRITO DE 10 AÑOS, POR LA EMPRESA CONTRATISTA., INCLUYE: LIMPIEZA Y PREPARACION DE LA SUPERFICIE, APLICACION DE PRIMER IMPERCOAT PRIMARIO SL, PARA ANCLAJE Y TAPAPORO DE LA SUPERFICIE, SELLADO DE FISURAS Y GRIETAS A BASE DE CEMENTO PLASTICO BITUMINOSO IMPERCOAT CEMENTO SBS, SUMINISTRO Y COLOCACION DE MEMBRANA POR MEDIO DE TERMOFUSION A BASE DE FUEGO DE SOPLETE DE GAS BUTANO, HACIENDO TRASLAPES MINIMOS DE 0.10 MTS. EN AMBOS SENTIDOS, SELLADO DE ORILLAS, REMATES Y TRASLAPES, MATERIALES MENORES Y DE CONSUMO, CORTES, DESPERDICIOS, LIMPIEZA GENERAL, HERRAMIENTAS, MANO DE OBRA ESPECIALIZADA Y ACARREOS AL SITIO DE SU COLOCACION.","M2 ","162.1500",0,"CERO PESOS 00/100 M.N.",0,374782]
["J.06(355)","RECUBRIMIENTOS Y ACABADOS                         ",null,null,null,null,{"$f":"TEXT(SUM(G164:G166), \"$ #,##0.00 ;\")","v":"$ 0.00 "}]
[355022,"APLANADO DE MUROS Y/O TECHOS CON MORTERO CEMENTO-CAL-ARENA DE RIO EN PROP. 1:2:6 DE 2 CM. DE ESPESOR PROMEDIO, A PLOMO Y REGLA, ACABADO APALILLADO FINO, INCLUYE: MATERIALES, DESPERDICIOS, ANDAMIOS, HERRAMIENTAS, PLOMEO, NIVELACION, REMATES, LIMPIEZA DEL AREA DE TRABAJO Y ACARREO DE MATERIALES AL SITIO DE SU UTILIZACION. A CUALQUIER NIVEL.\n","M2 ","153.8000",0,"CERO PESOS 00/100 M.N.",0,374784]
[357322,"BOQUILLAS EN PUERTAS Y VENTANAS, CON MORTERO CEMENTO-CAL-ARENA 1:2:6, INCLUYE: ANDAMIOS Y ACARREO DE MATERIALES AL SITIO DE SU UTILIZACION.","ML ","22.8800",0,"CERO PESOS 00/100 M.N.",0,374786]
[357352,"FILETES Y BOLEADOS, HECHOS CON MORTERO CEMENTO-CAL-ARENA EN PROPORCION 1:2:6, INCLUYE: DESPERDICIOS, ANDAMIOS Y ACARREO DE MATERIALES AL SITIO DE SU UTILIZACION, A CUALQUIER NIVEL.","ML ","186.4400",0,"CERO PESOS 00/100 M.N.",0,374787]
["J.07(372)","PISOS                                             ",null,null,null,null,{"$f":"TEXT(SUM(G168:G178), \"$ #,##0.00 ;\")","v":"$ 0.00 "}]
[173003,"SUMINISTRO, HABILITADO, ARMADO Y COLOCACION DE ACERO DE REFUERZO FY=4,200 KG/CM2 (G.E.), DE 3/8\" ( #3 ), EN CIMENTACION, INCLUYE: MATERIALES, HABILITADO,  DOBLECES,  SILLETAS, ALAMBRE, GANCHOS, ESCUADRAS, TRASLAPES, DESPERDICIOS HERRAMIENTAS, MANO DE OBRA Y ACARREO DE MATERIALES AL SITIO DE SU COLOCACION.","KG ","65.0000",0,"CERO PESOS 00/100 M.N.",0,374788]
[344511,"SUMINISTRO Y COLOCACION DE JUNTA DE CONTRACCION ELASTOMERICA. EN PISOS CON UNA SECCION TRANSVERSAL DE 6 X 10 MM, A BASE DE SILICON DE COLOR PARA JUNTAS DE DILATACION, INCLUYE: LIMPIEZA DEL AREA A TRATAR, DESPERDICIOS Y ACARREO DEL MATERIAL AL SITIO DE SU COLOCACION.","ML ","27.7200",0,"CERO PESOS 00/100 M.N.",0,374789]
[360455,"HABILITADO, SUMINISTRO Y COLOCACION DE PASAJUNTAS EN PISOS DE CONCRETO CON VARILLA DE REDONDO LISO DE 5/8\" DE DIAMETRO Y 50 CM. LONGITUD, ENCAMISADA CON POLIDUCTO NARANJA DE 3/4\" DIAM. INCLUYE: GRASA MECANICA EN MANGUERA, NIVELACION, ELEMENTOS DE SUJECION, DESPERDICIOS, HERRAMIENTAS Y MANO DE OBRA.","PZA","42.0000",0,"CERO PESOS 00/100 M.N.",0,374790]
[360565,"SUMINISTRO Y COLOCACION DE MALLA ELECTROSOLDADA 6X6-10/10 COMO REFUERZO EN PISOS DE CONCRETO, INCLUYE: DESPERDICIOS, TRASLAPES, HERRAMIENTA Y ACARREO DEL MATERIAL AL SITIO DE SU COLOCACION.","M2 ","128.2200",0,"CERO PESOS 00/100 M.N.",0,374791]
[372242,"FIRME DE CONCRETO F´C= 150 KG/CM2 TMA= 3/4\",  DE 8 CM DE ESPESOR, ACABADO APALILLADO. INCLUYE: TRAZO, NIVELACION, AFINE Y COMPACTACION DEL TERRENO, AGUA, MATERIALES, EXTENDIDO, REGLEADO, CURADO, DESPERDICIOS, HERRAMIENTAS, LIMPIEZA, MANO DE OBRA Y ACARREO DEL MATERIAL AL SITIO DE SU UTILIZACION","M2 ","100.2000",0,"CERO PESOS 00/100 M.N.",0,374793]
[373022,"PISO DE CONCRETO F'C=150 KG/CM², T.M.A. 3/4\", DE 0.10 M. DE ESPESOR, COLADO EN CUADROS NO MAYORES DE 3.00 ML POR LADO, INCLUYE: TRAZO, NIVELACION, AFINE Y COMPACTACION DEL TERRENO, AGUA, DESPERDICIOS, ACARREOS, REGLEADO, ACABADO INTEGRAL RAYADO CON BROCHA DE PELO (SIN UTILIZACION DE PASTA), CIMBRA EN FRONTERAS, DESCIMBRA, COLADO, CURADO, REMATES, ESCALONADO, MUESTREADO, JUNTAS FRIAS CON VOLTEADOR, HERRAMIENTAS Y MANO DE OBRA.","M2 ","27.4200",0,"CERO PESOS 00/100 M.N.",0,374795]
[373552,"CEJA DE CONCRETO F'C=250 KG/CM2, TMA=3/4\" DE 10.0 X 28.0 CM DE SECCION, ARMADA CON 2 VARILLAS #3 (3/8\") Y ESTRIBOS DE 1/4\" @ 25.0 CM, EN CUALQUIER NIVEL. INCLUYE: MATERIALES, CIMBRA APARENTE EN FRENTE Y DESCIMBRA, COLADO, VIBRADO, CURADO, PERFILADO, NIVELACION, HERRAMIENTAS, DESPERDICIOS, LIMPIEZAS Y MANO DE OBRA.","ML ","30.3600",0,"CERO PESOS 00/100 M.N.",0,374796]
[373766,"FORJADO DE NARIZ DE REMATE EN PISO DE  BANQUETAS, CON 10.0  X  10.0 CM. DE SECCION, INCLUYE SOLO: CIMBRA APARENTE, DESCIMBRA, GOTERO, FORJADO, CHAFLANES, PERFILADO, DESPERDICIOS, HERRAMIENTAS, Y MANO DE OBRA. (NO INCLUYE CONCRETO).","ML ","17.8200",0,"CERO PESOS 00/100 M.N.",0,374797]
[374202,"GUARNICION O MACHUELO DE CONCRETO FC=150 KG/CM2, CON UNA SECCION TRANSVERSAL 15 X 40 CMS., ARMADA CON 4 VARILLAS DEL #3 Y ESTRIBOS #2 A CADA 20 CMS. CON CIMBRA APARENTE POR CARA VISIBLE Y COMUN EN CARA OCULTA , INCLUYE: TRAZO, AFINE Y COMPACTACION DEL TERRENO EN AREA DE CONTACTO, CIMBRA Y DESCIMBRA, COLADO, VIBRADO, CURADO, MATERIALES, HERRAMIENTAS, LIMPIEZA DEL AREA DE TRABAJO, MANO DE OBRA Y ACARREO DE MATERIALES AL SITIO DE SU UTILIZACION.","ML ","17.1100",0,"CERO PESOS 00/100 M.N.",0,374798]
[376023,"SUMINISTRO Y COLOCACION DE PISO DE LOSETA CERAMICA DE 50 X 50 CM., MCA. INTERCERAMIC DE PRIMERA, LINEA SAYULITA, DE CUALQUIER COLOR, GRADO DE DUREZA (PEI) \"IV\" , ASENTADO CON PEGAPISO Y JUNTEDO CON JUNTEADOR DE COLOR, JUNTAS DE 4 MM. DE ANCHO, INCLUYE: TRAZO, CORTE, REMATES, ESCUADRE, DESPERDICIOS, DESPATINADO, EMBOQUILLADOS, CERTIFICADO DE CALIDAD, HERRAMIENTAS, MATERIALES, MANO DE OBRA, LIMPIEZA Y ACARREO DE MATERIALES AL SITIO DE SU UTILIZACION, A CUALQUIER ALTURA.","M2 ","100.2000",0,"CERO PESOS 00/100 M.N.",0,374800]
[376146,"SUMINISTRO Y COLOCACION DE CENEFA DE 15.00 CM APROXIMADAMENTE A BASE DE  PISO DE LOSETA CERAMICA DE PRIMERA, QUE DEBERA CUMPLIR CON LAS SIGUIENTES CARACTERISTICAS TECNICAS: ABSORCION <= 3% , COEFICIENTE DE ESTATICO DE FRICCION >= 0.5, MODULO DE RUPTURA >= 300 KG/CM², PEI, RESISTENCIA A LA ABRASION VISIBLE 1500 CICLOS (PEI IV), RESISTENTE AL MANCHADO, RESISTENCIA AL RAYADO >= 5.0 MOHS, RESISTENTE A LOS QUIMICOS, ASENTADO CON PEGA PISO Y JUNTEADO CON JUNTEADOR DE COLOR, CON JUNTAS DE 4.00 MM. DE ANCHO MINIMO. INCLUYE: HERRAMIENTAS, MATERIALES, TRAZO, CORTES,  NIVELACION,  LIMPIEZA, DESPERDICIOS, MANO DE OBRA Y ACARREO DE MATERIALES AL SITIO DE SU UTILIZACION.","ML ","2.4000",0,"CERO PESOS 00/100 M.N.",0,374801]
["J.08(393)","PINTURA                                           ",null,null,null,null,{"$f":"TEXT(SUM(G180:G184), \"$ #,##0.00 ;\")","v":"$ 0.00 "}]
[393010,"PINTURA VINIL-ACRÍLICA A BASE DE AGUA ACABADO SEMIMATE  LAVABLE, PARA INTERIORES Y EXTERIORES QUE NO DESPRENDA VAPORES TÓXICOS NI OLORES DESAGRADABLES, CON LAS SIGUIENTES CARACTERÍSTICAS ( SÓLIDOS POR PESO 46-52%, SÓLIDOS POR VOLUMEN 30-36%, VISCOSIDAD DE 100-130 UK A 25°C, DENSIDAD > O = 1.2 TON/M3., LAVABILIDAD > O = 4,000 CICLOS, TIEMPO DE SECADO AL TACTO, 30-40 MIN., TIEMPO DE SECADO DURO < O = 8 HRS., CICLO DE CURADO DE 7 DIAS, PH 6-8, RENDIMIENTO EN SUP. LISA 8-10 M2/LT., FINEZA DE MOLIDO (HEGMAN) 3-7 UH.)  EN CADENAS DE DESPLANTE, A UNA CARA, TRABAJO TERMINADO, A DOS MANOS, INCLUYE: MATERIALES MENORES Y DE CONSUMO, PREPARACION DE LA SUPERFICIE, SELLADO DE LA SUPERFICIE, HERRAMIENTAS, LIMPIEZA, MANO DE OBRA Y  ACARREOS DE MATERIALES AL SITIO DE SU UTILIZACION.","ML ","87.5000",0,"CERO PESOS 00/100 M.N.",0,374807]
[393022,"PINTURA VINIL-ACRÍLICA A BASE DE AGUA ACABADO SEMIMATE  LAVABLE, PARA INTERIORES Y EXTERIORES QUE NO DESPRENDA VAPORES TÓXICOS NI OLORES DESAGRADABLES, CON LAS SIGUIENTES CARACTERÍSTICAS ( SÓLIDOS POR PESO 46-52%, SÓLIDOS POR VOLUMEN 30-36%, VISCOSIDAD DE 100-130 UK A 25°C, DENSIDAD > O = 1.2 TON/M3., LAVABILIDAD > O = 4,000 CICLOS, TIEMPO DE SECADO AL TACTO, 30-40 MIN., TIEMPO DE SECADO DURO < O = 8 HRS., CICLO DE CURADO DE 7 DIAS, PH 6-8, RENDIMIENTO EN SUP. LISA 8-10 M2/LT., FINEZA DE MOLIDO (HEGMAN) 3-7 UH.)  EN MUROS APLANADOS DE MEZCLA APALILLADO O PULIDO, TRABAJO TERMINADO, A DOS MANOS, INCLUYE: MATERIALES MENORES Y DE CONSUMO, ANDAMIOS, PREPARACION DE LA SUPERFICIE, SELLADO DE LA SUPERFICIE, HERRAMIENTAS, LIMPIEZA, MANO DE OBRA Y  ACARREOS DE MATERIALES AL SITIO DE SU UTILIZACIÓN.","M2 ","153.8000",0,"CERO PESOS 00/100 M.N.",0,374809]
[393052,"PINTURA VINIL-ACRÍLICA A BASE DE AGUA ACABADO SEMIMATE  LAVABLE, PARA INTERIORES Y EXTERIORES QUE NO DESPRENDA VAPORES TÓXICOS NI OLORES DESAGRADABLES, CON LAS SIGUIENTES CARACTERÍSTICAS ( SÓLIDOS POR PESO 46-52%, SÓLIDOS POR VOLUMEN 30-36%, VISCOSIDAD DE 100-130 UK A 25°C, DENSIDAD > O = 1.2 TON/M3., LAVABILIDAD > O = 4,000 CICLOS, TIEMPO DE SECADO AL TACTO, 30-40 MIN., TIEMPO DE SECADO DURO < O = 8 HRS., CICLO DE CURADO DE 7 DIAS, PH 6-8, RENDIMIENTO EN SUP. LISA 8-10 M2/LT., FINEZA DE MOLIDO (HEGMAN) 3-7 UH.)  EN LOSAS Y ELEMENTOS DE CONCRETO, TRABAJO TERMINADO, A DOS MANOS, INCLUYE: MATERIALES MENORES Y DE CONSUMO, ANDAMIOS, PREPARACION DE LA SUPERFICIE DE CONCRETO, SELLADO DE LA SUPERFICIE, HERRAMIENTAS, LIMPIEZA, MANO DE OBRA Y  EQUIPO DE SEGURIDAD. A CUALQUIER ALTURA.","M2 ","289.8000",0,"CERO PESOS 00/100 M.N.",0,374811]
[393142,"PINTURA DE ESMALTE ALQUIDALICO ANTICORROSIVO, ACABADO BRILLANTE, PARA INTERIORES Y EXTERIORES QUE NO DESPRENDA VAPORES TÓXICOS NI OLORES DESAGRADABLES, CON LAS SIGUIENTES CARACTERÍSTICAS ( SÓLIDOS POR PESO 49-60%, SÓLIDOS POR VOLUMEN 40-46%, VISCOSIDAD DE 110-160 UK A 25°C, DENSIDAD 0.9-1.2 TON/M3., BRILLO A 60°C, 90%, TIEMPO DE SECADO AL TACTO, < O = 6 HRS., TIEMPO DE SECADO DURO < O = 24 HRS., ADHERENCIA 100%, RENDIMIENTO EN SUP. LISA 8-10 M2/LT., DILUCIÓN MÁXIMA (AGUARRÁS, THINER), 15 %,  EN HERRERIA ABIERTA DE PERFILES ESTRUCTURALES (PROTECCIONES), MEDIDA POR UN SOLO LADO, TRABAJO TERMINADO, A DOS MANOS, INCLUYE: MATERIALES MENORES Y DE CONSUMO, ANDAMIOS, PREPARACION DE LA SUPERFICIE, HERRAMIENTAS, LIMPIEZA, MANO DE OBRA Y  EQUIPO DE SEGURIDAD. A CUALQUIER NIVEL. (LA PINTURA ES POR AMBOS LADOS DE LA HERRERIA, PERO PARA SU PAGO ES MEDIDA SOLO POR 1 SOLO LADO).","M2 ","33.1000",0,"CERO PESOS 00/100 M.N.",0,374812]
[393525,"FABRICACION, SUMINISTRO E INSTALACION DE ROTULO DE IDENTIFICACION EN PUERTAS DE INGRESO A (SANITARIOS, DIRECCIONES, AULAS, ANEXOS, ETC.)  CON MEDIDAS GENERALES DE 40 X 20 CM., FABRICADOS A BASE DE ACRILICO SOLIDO DE 3 MM. DE ESPESOR, COLOR CRISTALINO, FORRADO CON VINIL ADHERIBLE OPACO, CON IMAGEN, TEXTO IMPRESO Y CODIGO BRAILLE AL MARGEN INFERIOR IZQUIERDO, INCLUYE: TRAZO, DISEÑO, MATERIALES, MARGEN IMPRESO DE 1 CM DE ANCHO,  ELEMENTOS DE FIJACION,  EQUIPO, HERRAMIENTA Y MANO DE OBRA. EN CUALQUIER NIVEL.","PZA","2.0000",0,"CERO PESOS 00/100 M.N.",0,374813]
["J.09(396)","LIMPIEZA                                          ",null,null,null,null,{"$f":"TEXT(SUM(G186:G188), \"$ #,##0.00 ;\")","v":"$ 0.00 "}]
[396012,"LIMPIEZA DE PISOS DE CONCRETO CON AGUA Y ACIDO MURIATICO AL 10%.","M2 ","27.4200",0,"CERO PESOS 00/100 M.N.",0,374814]
[396022,"LIMPIEZA EN PISO DE CERAMICA, CON AGUA Y JABON.","M2 ","100.2000",0,"CERO PESOS 00/100 M.N.",0,374815]
[396042,"LIMPIEZA DE VIDRIOS CON AGUA Y JABON, 2 CARAS.","M2 ","33.0000",0,"CERO PESOS 00/100 M.N.",0,374816]
["J.10(410)","CANCELERIA, HERRERIA, ALUMINIO, VIDRIOS Y CHAPAS  ",null,null,null,null,{"$f":"TEXT(SUM(G190:G195), \"$ #,##0.00 ;\")","v":"$ 0.00 "}]
[412041,"FABRICACION, SUMINISTRO Y COLOCACION DE PROTECCIONES PARA VENTANERIA A BASE DE HERRERIA ESTRUCTURAL DE ACERO, ELABORADA CON UN PERFIL PERIMETRAL DE ANGULO DE 1 1/2\" X 1 1/2\" X 3/16\",  HORIZONTALES DE REDONDO SOLIDO LISO DE 1/2\" SEPARADOS  DE C. A C. 11.5 CM. PROMEDIO Y REFUERZOS VERTICALES DE SOLERA DE 3/16\" X 1 1/4\" COLOCADOS A @ 73.5 CM. PROMEDIO, CON PERFORACIONES PARA INSERCION DE REDONDOS. ANCLADA A ESTRUCTURA (CONSTRUCCION) A BASE DE TORNILLO CON BARRENANCLA Y/O SOLDADURA,  INCLUYE: TRAZO, CORTES, SOLDADURA, NIVELACION, PLAMEO, PERFORACIONES, PINTURA DE TALLER,  AJUSTES Y DETALLES REALIZADOS EN OBRA DE ACUERDO A LO CONSTRUIDO,  ACARREOS, LIMPIEZA, MATERIALES, DESPERDICIOS, HERRAMIENTAS, EQUIPOS, MANO DE OBRA CALIFICADA Y ACARREO DE MATERIALES AL SITIO DE SU COLOCACION. EN CUALQUIER NIVEL.","M2 ","33.1000",0,"CERO PESOS 00/100 M.N.",0,374818]
[420022,"SUMINISTRO, HABILITADO Y COLOCACION DE CANCELERIA FABRICADA  EN ALUMINIO ANODIZADO NATURAL CON PERFILES COMERCIALES DE 2\" X 1.25\",  MCA. CUPRUM ,  LINEA PANORAMA O SIMILAR, INCLUYE: TRAZO, CORTES, AJUSTES, MATERIALES, CORREDERAS, JALADERAS, OPERADORES, REPISON, SELLADO PERIMETRAL, SILICON, VINIL, HERRAJES, ELEMENTOS DE FIJACION, MATERIALES MENORES Y DE CONSUMO, DESPERDICIOS, HERRAMIENTAS, MANO DE OBRA ESPECIALIZADA, LIMPIEZA, FLETES, EQUIPO Y ACARREO DE MATERIALES AL SITIO DE SU COLOCACION, A CUALQUIER NIVEL.","M2 ","33.0000",0,"CERO PESOS 00/100 M.N.",0,374820]
[422020,"SUMINISTRO Y COLOCACION DE PUERTA PREFABRICADA, CON MEDIDAS GENERALES DE 1.20 X 2.10 MTS.,  MCA. PORCELTECH O SIMILAR EN GARANTIA Y CALIDAD. MOD. BETA, TIPO TAMBOR DE 36 MM. DE ESPESOR, FABRICADA CON BASTIDOR DE PERFIL TUBULAR  GALVANIZADO DE 1 1/4\" , NUCLEO RELLENO CON PANEL HONEY COMB DE 1 3/8\" DE ESPESOR Y DOBLE CARA (INTERIOR-EXTERIOR) DE  LAMINA DE ACERO PORCELANIZADO CAL. 24,  EN COLOR INDICADO POR LA SUPERVISION Y CUBRECANTOS DE ALUMINIO ANODIZADO NATURAL , MARCO Y ANTEPECHO DE HERRERIA TUBULAR DE PERFILES COMERCIALES DE 3\" X 1 1/2\" CAL 14., TOPE DE ANGULO DE 3/4\" X 1/8\", INCLUYE: MARCO, HERRAJES, BISAGRAS, NIVELACION, PLOMEO, ELEMENTOS DE FIJACION, MATERIALES MENORES Y DE CONSUMO, SELLADO PERIMETRAL, HERRAMIENTAS, LIMPIZA, MANO DE OBRA, FLETES Y ACARREOS DE MATERIALES AL SITIO DE SU COLOCACION, EN CUALQUIER NIVEL.","PZA","2.0000",0,"CERO PESOS 00/100 M.N.",0,374821]
[424094,"SUMINISTRO Y COLOCACION DE CERRADURA TIPO EUROPEO PARA PUERTA EXTERIOR, MCA. JAKO, MOD. KIT9001ENT, FABRICADA EN ACERO INOXIDABLE CON ACABADO SATINADO, DOBLE MANIJA DE PERFIL TUBULAR REDONDO Y CILINDRO LLAVE-MARIPOSA, INCLUYE: TRAZO, TALADROS, ELEMENTOS DE FIJACION, HERRAMIENTAS, CILINDRO, CHAPETÓN, LLAVES, LIMPIEZA,  MANO DE OBRA Y  ACARREO DE MATERIAL AL SITIO DE SU UTILIZACION.","PZA","2.0000",0,"CERO PESOS 00/100 M.N.",0,374822]
[424322,"SUMINISTRO Y COLOCACION DE TOPES DE PISO PARA PUERTA. INC.: ACARREO DE MATERIAL AL SITIO DE SU UTILIZACION, A CUALQUIER NIVEL.","PZA","2.0000",0,"CERO PESOS 00/100 M.N.",0,374823]
[426010,"SUMINISTRO Y COLOCACION DE CRISTAL FLOTADO DE 6 MM. DE ESPESOR,  ASENTADO CON SILICON, INCLUYE: CORTES, DESPERDICIOS Y ACARREO DE MATERIALES AL SITIO DE SU UTILIZACION A CUALQUIER NIVEL.","M2 ","33.0000",0,"CERO PESOS 00/100 M.N.",0,374824]
["J.11(510)","INSTALACION ELECTRICA EN EDIFICIO                 ",null,null,null,null,{"$f":"TEXT(SUM(G197:G203), \"$ #,##0.00 ;\")","v":"$ 0.00 "}]
[514034,"SALIDA ELECTRICA DE CENTRO AISLADA OCULTA, CON TUBERIA Y CONEXIONES CONDUIT DE PVC. PESADO  DE AJUSTE DE 13 Y 19 MM. DE DIAMETRO, CABLE VINANEL THW-LS 600 V. A 75° C, 90° C, MARCA CONDUCTORES MONTERREY, (VIAKON-PROTOCOLIZADO), CABLE VINANEL 21 THW-LS 600 V. A 75° C, 90° C, MARCA CONDUMEX (CONDUMEX PROTOCOLIZADO).  CALIBRE 12 EN FASES Y 12 EN TIERRA FISICA, CAJAS DE REGISTRO  CUADRADAS, CHALUPAS Y TAPAS DE  PVC REFORZADO., INCLUYE: TRAZO, RANURAS, MATERIALES MENORES, HERRAMIENTA, MANO DE OBRA ESPECIALIZADA , CONEXIONES, LIMPIEZA DEL AREA DE TRABAJO, PRUEBAS, DESPERDICIOS Y ACARREO DEL MATERIAL AL SITIO DE SU COLOCACION, EN CUALQUIER NIVEL.","SAL","14.0000",0,"CERO PESOS 00/100 M.N.",0,374825]
[518071,"SALIDA ELECTRICA PARA CONTACTO MONOFASICO  DUPLEX POLARIZADO, OCULTA, CON TUBERIA Y CONEXIONES CONDUIT DE PVC. PESADO DE 13 Y 19 MM. DE DIAMETRO,  CABLE VINANEL THW-LS 600 V. A 75° C, 90° C, MARCA CONDUCTORES MONTERREY, (VIAKON-PROTOCOLIZADO), CABLE VINANEL 21 THW-LS 600 V. A 75° C, 90° C, MARCA CONDUMEX (CONDUMEX PROTOCOLIZADO)., CAL.  12  EN FASES Y CAL. 12 PARA TIERRA FISICA, CAJAS DE REGISTRO  CUADRADAS, CHALUPAS Y TAPAS DE PVC REFORZADO, CONTACTO QUINZIÑO MX, TAPA DE ALUMINIO, INCLUYE: TRAZO, RANURAS, CONEXION A TIERRA, MATERIALES MENORES, PRUEBAS, DESPERDICIOS, LIMPIEZAS, HERRAMIENTAS, MANO DE OBRA, Y ACARREO DEL MATERIAL AL SITIO DE SU COLOCACION, A CUALQUIER NIVEL.","SAL","10.0000",0,"CERO PESOS 00/100 M.N.",0,374827]
[522033,"SALIDA ELECTRICA PARA  APAGADOR SENCILLO, OCULTA, CON TUBERIA Y CONEXIONES CONDUIT DE PVC TIPO PESADO DE 13 Y 19 MM. DE DIAMETRO, CABLE VINANEL THW-LS 600 V. A 75° C, 90° C, MARCA CONDUCTORES MONTERREY, (VIAKON-PROTOCOLIZADO), CABLE VINANEL 21 THW-LS 600 V. A 75° C, 90° C, MARCA CONDUMEX (CONDUMEX PROTOCOLIZADO). CALIBRE 12, CAJAS CUADRADAS, CHALUPAS Y TAPAS DE PVC, APAGADOR QUINZIÑO, TAPA DE ALUMINIO, INCLUYE: RANURAS, MATERIALES MENORES, PRUEBAS, DESPERDICIOS Y ACARREO DEL MATERIAL AL SITIO DE SU COLOCACION, A CUALQUIER NIVEL.","SAL","4.0000",0,"CERO PESOS 00/100 M.N.",0,374830]
[540305,"SUMINISTRO E INSTALACION DE CENTRO DE CARGA CAT. QO-816L-100,  DE 8 POLOS  100 AMPERES, INCLUYE: MATERIALES, ZAPATAS, MANO DE OBRA, HERRAMIENTAS, ELEMENTOS DE FIJACION, PRUEBAS,  ACARREOS Y MATERIALES MENORES.","PZA","1.0000",0,"CERO PESOS 00/100 M.N.",0,374831]
[543012,"SUMINISTRO Y COLOCACION DE INTERRUPTOR TERMOMAGNETICO DERIVADO CON 1 POLOS, DE 15-60 AMPERES, MCA. SQUARE D, CAT. QO. INCLUYE: PRUEBAS, MATERIALES MENORES, HERRAMIENTAS, MANO DE OBRA ESPECIALIZADA  Y ACARREO DE MATERIALES AL SITIO DE SU COLOCACION.","PZA","4.0000",0,"CERO PESOS 00/100 M.N.",0,374833]
[550221,"SUMINISTRO Y COLOCACION DE LUMINARIA HERMETICO DE SOBREPONER DE 2 X 16 WATTS, MCA. NOVALUX O SIMILAR, MOD. PISCIS, CAT. NVL-PIS-216-LED-P, EN GABINETE DE 1.27 X 0.17 MTS. FABRICADO EN RESINA POLIESTER Y FIBRA DE VIDRIO CON ACABADO A BASE DE PINTURA EN POLVO DE POLIESTER, APLICADA ELECTROSTATICAMENTE Y TERMOENDURECIDA, DIFUSOR DE ACRILICO DE ALTO IMPACTO TRANSPARENTE TERMOFORMADO, CON UNA REFLECTANCIA MINIMA DE 93%, IP-65 DISEÑADA A PRUEBA DE POLVO, VAPORES Y AGUA, PARA OPERAR CON DOS LAMPARA LED LINEAL T8, 16 WATTS CADA UNA, MULTIVOLTAJE 120-277 VOLTS , TEMPERATURA DE COLOR 4000°K, IRC>80,  VIDA UTIL DE 40,000 HRS., 2350 LUMENES TOTALES COMO MINIMO, DRIVER INTEGRADO , LA LUMINARIA (COMPLETA) DEBERA CUMPLIR CON LA NORMA ANCE, INCLUYE: MATERIALES DE FIJACION, LAMPARAS, PRUEBAS, COPIA DE CERTIFICACION ANCE ANEXA EN ELTRAMITE DE LA ESTIMACION, NIVELACION, MATERIALES MENORES Y DE CONSUMO, CONEXIONES, DESPERDICIOS, HERRAMIENTAS, ANDAMIOS, MANO DE OBRA, MATERIALES DE FIJACION, LIMPIEZA DEL AREA DE TRABAJO, Y ACARREO DE MATERIALES AL SITIO DE SU COLOCACION. A CUALQUIER ALTURA.","PZA","2.0000",0,"CERO PESOS 00/100 M.N.",0,374837]
[905630,"SUMINISTRO E INSTALACION DE LUMINARIO DE SOBREPONER MCA. HIGHLUMEN MOD. C-SBV20-S43TLC20-C, NOVALUX MOD. NOEII314.5LEDT8 MVSAPE, O SIMILAR, SISTEMA LED DE 45 WATTS. +- 8%, PARA OPERAR CON TRES TUBOS LED T8 (14-16 WATTS C/U), 4000°K, IRC>80, VIDA UTIL DE 40,000 HRS. 3600 LUMENES TOTALES COMO MINIMO, DRIVER INTEGRADO MULTIVOLTAJE 100-240 VOLTS , EN GABINETE METALICO FABRICADO EN LAMINA DE ACERO ROLADA EN FRIO CAL. 24 MINIMO, CON ACABADO EN POLVO POLIESTER EN APLICACION ELECTROSTÁTICA COLOR BLANCO, DIFUSOR ENVOLVENTE 100% ACRILICO, LA LUMINARIA (COMPLETA) DEBERA CUMPLIR CON LA NORMA ANCE, INCLUYE: ELEMENTOS DE FIJACION, CONEXION, MATERIALES MENORES Y DE CONSUMO, GARANTIAS, COPIA DE CERTIFICACION ANCE ANEXA EN ELTRAMITE DE LA ESTIMACION, HERRAMIENTAS, ANDAMIOS, MANO DE OBRA, PRUEBAS, LIMPIEZA Y ACARREOS.","PZA","12.0000",0,"CERO PESOS 00/100 M.N.",0,374838]
["J.12(530)","EQUIPOS E INSTALACIONES DE REDES DE VOZ Y DATOS.  ",null,null,null,null,{"$f":"TEXT(SUM(G205:G205), \"$ #,##0.00 ;\")","v":"$ 0.00 "}]
[524665,"SALIDA PARA EL SISTEMA DE RED DE VOZ Y/O DATOS, PARA SERVICIO A EQUIPOS DE COMPUTO EN LABORATORIO Y/O TALLER, FORMADA CON TUBERIA CONDUIT DE PVC TIPO PESADO DE 19, 25 Y 32 MM DE DIAM, CAJA REGISTRO GALVANIZADA DE 120 X 120 MM CON TAPA REALZADA EN SALIDAS DE MURO Y/O LOSA, GUIADAS CON ALAMBRE GALVANIZADO CAL NO. 14,  INCLUYE: TRAZO, RANURAS, MATERIALES MENORES Y DE CONSUMO, ELEMENTOS DE  FIJACION, HERRAMIENTAS, PRUEBAS, MANO DE OBRA Y ACARREO DE MATERIALES. (LONGITUD TOMADA DEL REGISTRO TELEFONICO AL SERVICIO-REGISTRO).","SAL","10.0000",0,"CERO PESOS 00/100 M.N.",0,374839]
["01","PLAZA Y ANDADORES",null,null,null,null,{"$f":"TEXT(SUM(G207 + G214 + G221 + G224), \"$ #,##0.00 ;\")","v":"$ 0.00 "}]
["01.01(150)","TRABAJOS PRELIMINARES                             ",null,null,null,null,{"$f":"TEXT(SUM(G208:G213), \"$ #,##0.00 ;\")","v":"$ 0.00 "}]
[150020,"LIMPIEZA DE TERRENO RETIRANDO BASURA Y DESHIERBE FUERA DE LA OBRA. INCLUYE: HERRAMIENTAS, MANO DE OBRA, RECOLECCION, JUNTA Y RETIRO. (PROYECCION DE CUBIERTA).","M2 ","147.0000",0,"CERO PESOS 00/100 M.N.",0,374860]
[150120,"TRAZO Y NIVELACION DE EXTERIORES ESTABLECIENDO REFERENCIAS DEFINITIVAS, CON TRANSITO Y NIVEL (EQUIPO TOPOGRAFICO), INCLUYE: PERSONAL TECNICO CALIFICADO, ESTACAS, MOJONERAS, LOCALIZACION DE EJES Y/O ENTRE EJES, BANCOS DE NIVEL, MATERIALES PARA SEÑALAMIENTO, EQUIPO, HERRAMIENTA Y MANO DE OBRA.","M2 ","147.0000",0,"CERO PESOS 00/100 M.N.",0,374864]
[150210,"DESPALME DE TERRENO NATURAL POR CUALQUIER MEDIO, CON ESPESOR PROMEDIO DE 20 CM. INCLUYE: CARGA Y ACARREO DEL PRODUCTO FUERA DE LA OBRA, MANO DE OBRA, HERRAMIENTA Y EQUIPO. (PROYECCION DE CUBIERTA).","M2 ","147.0000",0,"CERO PESOS 00/100 M.N.",0,374866]
[152204,"EXCAVACION EN CEPAS POR CUALQUIER MEDIO, MATERIAL TIPO \"B\", DE 0 A 2.00 M. DE PROFUNDIDAD, EN SECO, INCLUYE: AFINE DE TALUDES Y FONDO, TRASPALEOS,  MOVIMIENTOS Y ACARREOS DENTRO DE LA OBRA, HERRAMIENTAS Y MANO DE OBRA, MEDIDO EN BANCO.","M3 ","19.6000",0,"CERO PESOS 00/100 M.N.",0,374869]
[152404,"EXCAVACION A CIELO ABIERTO EN CAJON POR CUALQUIER MEDIO, MATERIAL TIPO \"B\", DE 0 A 2.00 M. DE PROFUNDIDAD, EN SECO, INCLUYE: AFINE DE TALUDES Y FONDO, TRAPALEOS,  MOVIMIENTOS Y ACARREOS DENTRO DE LA OBRA, HERRAMIENTAS Y MANO DE OBRA, MEDIDO EN BANCO.","M3 ","29.4000",0,"CERO PESOS 00/100 M.N.",0,374872]
[156002,"CARGA POR CUALQUIER MEDIO Y ACARREO EN CAMION DE MATERIAL DE DESPERDICIO PRODUCTO DE LAS EXCAVACIONES FUERA DE LA OBRA, A LUGAR PERMITIDO POR LAS AUTORIDADES CORRESPONDIENTES, MEDIDO EN BANCO. INCLUYE CARGA,  ACARREO Y DESCARGA A TIRO LIBRE, HERRAMIENTA, EQUIPO, MATERIALES DE CONSUMO Y MANO DE OBRA.","M3 ","49.0000",0,"CERO PESOS 00/100 M.N.",0,374875]
["01.02(160)","CIMENTACION                                       ",null,null,null,null,{"$f":"TEXT(SUM(G215:G220), \"$ #,##0.00 ;\")","v":"$ 0.00 "}]
[162002,"CIMIENTO DE PIEDRA BRAZA ACOMODADA PIEDRA POR PIEDRA, ASENTADA CON MORTERO CEMENTO-ARENA  EN PROPORCION 1:3. INCLUYE: MATERIALES, DESPERDICIOS, HERRAMIENTAS, LIMPIEZA, MANO DE OBRA Y ACARREO DE MATERIALES AL SITIO DE SU UTILIZACION.","M3 ","23.5500",0,"CERO PESOS 00/100 M.N.",0,374879]
[162302,"RODAPIE DE PIEDRA BRAZA, ACABADO APARENTE UNA CARA, ASENTADA CON MORTERO CEMENTO-ARENA 1:3. INCLUYE: MATERIALES, HERRAMIENTAS, PLOMEO,   LIMPIEZA, MANO DE OBRA Y ACARREO DE MATERIALES AL SITIO DE SU UTILIZACION.","M3 ","7.8500",0,"CERO PESOS 00/100 M.N.",0,374881]
[162404,"NIVELACION DE MURO DE MAMPOSTERIA CON RAJUELA DE PIEDRA BRAZA JUNTEADA CON MORTERO CEM-ARE 1:3. DE 0.10 M. DE ESPESOR X 0.40 M. DE ANCHO PROMEDIO. INCLUYE: NIVELACION, TRAZO, MANO DE OBRA Y HERRAMIENTA. (NO INCLUYE MATERIALES)","ML ","98.0000",0,"CERO PESOS 00/100 M.N.",0,374883]
[180052,"RELLENO EN CEPAS POR CUALQUIER MEDIO, CON MATERIAL DE BANCO, (ARENA LIMOSA, TEPETATE, ETC.) COMPACTADO AL 90% PROCTOR, EN CAPAS DE 15 CM, MEDIDO COMPACTO. INCLUYE:  SUMINISTRO DE AGUA PARA LOGRAR HUMEDAD OPTIMA, DESPERDICIOS, TENDIDO, TRASPALEOS,  EQUIPO, PRUEBAS DE COMPACTACION, AFINE, NIVELACION, HERRAMIENTAS, MANO DE OBRA Y  ACARREO HASTA EL SITIO DE SU COLOCACION.  (VOLUMEN MEDIDO COMPACTADO).","M3 ","14.7000",0,"CERO PESOS 00/100 M.N.",0,374889]
[180102,"RELLENO COMPACTADO AL 90 % PROCTOR, CON MATERIAL DE BANCO, EN CAPAS DE 20 CM DE ESPESOR, AGREGANDO AGUA PARA LOGRAR SU HUMEDAD OPTIMA, AL 90%. POR CUALQUIER MEDIO, INCLUYE: SUMINISTRO DE AGUA PARA LOGRAR HUMEDAD OPTIMA, TENDIDO, TRASPALEOS,  DESPERDICIOS, EQUIPO, PRUEBAS DE COMPACTACION, AFINE, NIVELACION, HERRAMIENTAS, MANO DE OBRA Y  ACARREO HASTA EL SITIO DE SU COLOCACION.  (VOLUMEN MEDIDO COMPACTADO).","M3 ","61.7500",0,"CERO PESOS 00/100 M.N.",0,374892]
[180401,"RELLENO CON MATERIAL PRODUCTO DE LA EXCAVACION AGREGANDO CALHIDRA EN PROPORCION 25 KG/M3, COMPACTADO AL 90% PROCTOR, INCLUYE: ESCARIFICADO DEL TERRENO, HUMEDAD OPTIMA, MEZCLADO, TENDIDO, COMPACTACION POR CUALQUIER MEDIO EN CAPAS DE 20 CMS., NIVELADO, PRUEBAS DE COMPACTACION, TRASPALEOS, HERRAMIENTAS, MANO DE OBRA Y LOS ACARREOS NECESARIOS. MEDIDO COMPACTO.","M3 ","7.9000",0,"CERO PESOS 00/100 M.N.",0,374896]
["01.03(372)","PISOS                                             ",null,null,null,null,{"$f":"TEXT(SUM(G222:G223), \"$ #,##0.00 ;\")","v":"$ 0.00 "}]
[373022,"PISO DE CONCRETO F'C=150 KG/CM², T.M.A. 3/4\", DE 0.10 M. DE ESPESOR, COLADO EN CUADROS NO MAYORES DE 3.00 ML POR LADO, INCLUYE: TRAZO, NIVELACION, AFINE Y COMPACTACION DEL TERRENO, AGUA, DESPERDICIOS, ACARREOS, REGLEADO, ACABADO INTEGRAL RAYADO CON BROCHA DE PELO (SIN UTILIZACION DE PASTA), CIMBRA EN FRONTERAS, DESCIMBRA, COLADO, CURADO, REMATES, ESCALONADO, MUESTREADO, JUNTAS FRIAS CON VOLTEADOR, HERRAMIENTAS Y MANO DE OBRA.","M2 ","147.0000",0,"CERO PESOS 00/100 M.N.",0,374912]
[373766,"FORJADO DE NARIZ DE REMATE EN PISO DE  BANQUETAS, CON 10.0  X  10.0 CM. DE SECCION, INCLUYE SOLO: CIMBRA APARENTE, DESCIMBRA, GOTERO, FORJADO, CHAFLANES, PERFILADO, DESPERDICIOS, HERRAMIENTAS, Y MANO DE OBRA. (NO INCLUYE CONCRETO).","ML ","98.0000",0,"CERO PESOS 00/100 M.N.",0,374915]
["01.04(396)","LIMPIEZA                                          ",null,null,null,null,{"$f":"TEXT(SUM(G225:G225), \"$ #,##0.00 ;\")","v":"$ 0.00 "}]
[396012,"LIMPIEZA DE PISOS DE CONCRETO CON AGUA Y ACIDO MURIATICO AL 10%.","M2 ","147.0000",0,"CERO PESOS 00/100 M.N.",0,374926]
[17,"CANCHA DE USOS MULTIPLES 1",null,null,null,null,{"$f":"TEXT(SUM(G227 + G234 + G243 + G249 + G254 + G256 + G259), \"$ #,##0.00 ;\")","v":"$ 0.00 "}]
["17.01(150)","TRABAJOS PRELIMINARES                             ",null,null,null,null,{"$f":"TEXT(SUM(G228:G233), \"$ #,##0.00 ;\")","v":"$ 0.00 "}]
[150020,"LIMPIEZA DE TERRENO RETIRANDO BASURA Y DESHIERBE FUERA DE LA OBRA. INCLUYE: HERRAMIENTAS, MANO DE OBRA, RECOLECCION, JUNTA Y RETIRO. (PROYECCION DE CUBIERTA).","M2 ","618.3000",0,"CERO PESOS 00/100 M.N.",0,374861]
[150120,"TRAZO Y NIVELACION DE EXTERIORES ESTABLECIENDO REFERENCIAS DEFINITIVAS, CON TRANSITO Y NIVEL (EQUIPO TOPOGRAFICO), INCLUYE: PERSONAL TECNICO CALIFICADO, ESTACAS, MOJONERAS, LOCALIZACION DE EJES Y/O ENTRE EJES, BANCOS DE NIVEL, MATERIALES PARA SEÑALAMIENTO, EQUIPO, HERRAMIENTA Y MANO DE OBRA.","M2 ","618.3000",0,"CERO PESOS 00/100 M.N.",0,374865]
[150210,"DESPALME DE TERRENO NATURAL POR CUALQUIER MEDIO, CON ESPESOR PROMEDIO DE 20 CM. INCLUYE: CARGA Y ACARREO DEL PRODUCTO FUERA DE LA OBRA, MANO DE OBRA, HERRAMIENTA Y EQUIPO. (PROYECCION DE CUBIERTA).","M2 ","618.3000",0,"CERO PESOS 00/100 M.N.",0,374867]
[152204,"EXCAVACION EN CEPAS POR CUALQUIER MEDIO, MATERIAL TIPO \"B\", DE 0 A 2.00 M. DE PROFUNDIDAD, EN SECO, INCLUYE: AFINE DE TALUDES Y FONDO, TRASPALEOS,  MOVIMIENTOS Y ACARREOS DENTRO DE LA OBRA, HERRAMIENTAS Y MANO DE OBRA, MEDIDO EN BANCO.","M3 ","12.0500",0,"CERO PESOS 00/100 M.N.",0,374870]
[152404,"EXCAVACION A CIELO ABIERTO EN CAJON POR CUALQUIER MEDIO, MATERIAL TIPO \"B\", DE 0 A 2.00 M. DE PROFUNDIDAD, EN SECO, INCLUYE: AFINE DE TALUDES Y FONDO, TRAPALEOS,  MOVIMIENTOS Y ACARREOS DENTRO DE LA OBRA, HERRAMIENTAS Y MANO DE OBRA, MEDIDO EN BANCO.","M3 ","123.6500",0,"CERO PESOS 00/100 M.N.",0,374873]
[156002,"CARGA POR CUALQUIER MEDIO Y ACARREO EN CAMION DE MATERIAL DE DESPERDICIO PRODUCTO DE LAS EXCAVACIONES FUERA DE LA OBRA, A LUGAR PERMITIDO POR LAS AUTORIDADES CORRESPONDIENTES, MEDIDO EN BANCO. INCLUYE CARGA,  ACARREO Y DESCARGA A TIRO LIBRE, HERRAMIENTA, EQUIPO, MATERIALES DE CONSUMO Y MANO DE OBRA.","M3 ","135.7000",0,"CERO PESOS 00/100 M.N.",0,374876]
["17.02(160)","CIMENTACION                                       ",null,null,null,null,{"$f":"TEXT(SUM(G235:G242), \"$ #,##0.00 ;\")","v":"$ 0.00 "}]
[162002,"CIMIENTO DE PIEDRA BRAZA ACOMODADA PIEDRA POR PIEDRA, ASENTADA CON MORTERO CEMENTO-ARENA  EN PROPORCION 1:3. INCLUYE: MATERIALES, DESPERDICIOS, HERRAMIENTAS, LIMPIEZA, MANO DE OBRA Y ACARREO DE MATERIALES AL SITIO DE SU UTILIZACION.","M3 ","24.1000",0,"CERO PESOS 00/100 M.N.",0,374880]
[162302,"RODAPIE DE PIEDRA BRAZA, ACABADO APARENTE UNA CARA, ASENTADA CON MORTERO CEMENTO-ARENA 1:3. INCLUYE: MATERIALES, HERRAMIENTAS, PLOMEO,   LIMPIEZA, MANO DE OBRA Y ACARREO DE MATERIALES AL SITIO DE SU UTILIZACION.","M3 ","12.0500",0,"CERO PESOS 00/100 M.N.",0,374882]
[162404,"NIVELACION DE MURO DE MAMPOSTERIA CON RAJUELA DE PIEDRA BRAZA JUNTEADA CON MORTERO CEM-ARE 1:3. DE 0.10 M. DE ESPESOR X 0.40 M. DE ANCHO PROMEDIO. INCLUYE: NIVELACION, TRAZO, MANO DE OBRA Y HERRAMIENTA. (NO INCLUYE MATERIALES)","ML ","100.4000",0,"CERO PESOS 00/100 M.N.",0,374884]
[180052,"RELLENO EN CEPAS POR CUALQUIER MEDIO, CON MATERIAL DE BANCO, (ARENA LIMOSA, TEPETATE, ETC.) COMPACTADO AL 90% PROCTOR, EN CAPAS DE 15 CM, MEDIDO COMPACTO. INCLUYE:  SUMINISTRO DE AGUA PARA LOGRAR HUMEDAD OPTIMA, DESPERDICIOS, TENDIDO, TRASPALEOS,  EQUIPO, PRUEBAS DE COMPACTACION, AFINE, NIVELACION, HERRAMIENTAS, MANO DE OBRA Y  ACARREO HASTA EL SITIO DE SU COLOCACION.  (VOLUMEN MEDIDO COMPACTADO).","M3 ","40.7000",0,"CERO PESOS 00/100 M.N.",0,374890]
[180102,"RELLENO COMPACTADO AL 90 % PROCTOR, CON MATERIAL DE BANCO, EN CAPAS DE 20 CM DE ESPESOR, AGREGANDO AGUA PARA LOGRAR SU HUMEDAD OPTIMA, AL 90%. POR CUALQUIER MEDIO, INCLUYE: SUMINISTRO DE AGUA PARA LOGRAR HUMEDAD OPTIMA, TENDIDO, TRASPALEOS,  DESPERDICIOS, EQUIPO, PRUEBAS DE COMPACTACION, AFINE, NIVELACION, HERRAMIENTAS, MANO DE OBRA Y  ACARREO HASTA EL SITIO DE SU COLOCACION.  (VOLUMEN MEDIDO COMPACTADO).","M3 ","368.0000",0,"CERO PESOS 00/100 M.N.",0,374893]
[180401,"RELLENO CON MATERIAL PRODUCTO DE LA EXCAVACION AGREGANDO CALHIDRA EN PROPORCION 25 KG/M3, COMPACTADO AL 90% PROCTOR, INCLUYE: ESCARIFICADO DEL TERRENO, HUMEDAD OPTIMA, MEZCLADO, TENDIDO, COMPACTACION POR CUALQUIER MEDIO EN CAPAS DE 20 CMS., NIVELADO, PRUEBAS DE COMPACTACION, TRASPALEOS, HERRAMIENTAS, MANO DE OBRA Y LOS ACARREOS NECESARIOS. MEDIDO COMPACTO.","M3 ","8.5000",0,"CERO PESOS 00/100 M.N.",0,374897]
[192912,"BASE DE CONCRETO PARA COLOCACION DE POSTES (TUBOS) DE CANCHA DE VOLY-BALL, CON MEDIDAS  DE 30 X 30 X 40,  INCLUYE: TRAZO, EXCAVACIONES, CONCRETO HECHO EN OBRA F´C= 150 KG/CM2., CIMBRA COMUN, DESCIMBRADO, CURADO Y VIBRADO, RELLENOS, TUBO DE ACERO NEGRO CED. 40 DE 3\" DE 40 CM. DE LONG., DREN PARA DESAGÜE,  HERRAMIENTAS, MATERIALES Y MANO DE OBRA.","PZA","4.0000",0,"CERO PESOS 00/100 M.N.",0,374900]
[192916,"CONSTRUCCION EN SITIO DE JUEGO DE 4 BASES PARA SOPORTAR ESTRUCTURA DE TABLERO DE PORTERIAS Y  BASQUET-BALL EN CANCHA DE USOS MULTIPLES. A BASE DE CONCRETO F´C= 150 KG/CM2., DADOS DE 30 X 30 X 60 CM. ARMADO CON 4 VARS. DEL #3 Y EST. DEL #2@15CM. , INCLUYE: TRAZO,  EXCAVACION, CIMBRA COMUN, DESCIMBRADO, COLADO, VIBRADO, CURADO,  RELLENO, PLANTILLA DE CONCRETO F'C=100 KG/CM2 DE 5.0 CM. DE ESPESOR, TUBOS DE ACERO NEGRO DE 3\" DE DIAMETRO X 55 CM DE LARGO AHOGADOS EN DADOS, DESPERDICIOS, ACARREOS, MATERIALES, HERRAMIENTAS, MANO DE OBRA, LIMPIEZA Y TODO LO NECESARIO PARA SU CORRECTA EJECUCION.","JGO","2.0000",0,"CERO PESOS 00/100 M.N.",0,374901]
["17.03(372)","PISOS                                             ",null,null,null,null,{"$f":"TEXT(SUM(G244:G248), \"$ #,##0.00 ;\")","v":"$ 0.00 "}]
[344528,"JUNTA DE CONTRACCION  EN PISOS, A BASE DE SONOFLEX, CELOTEX, FIBRACEL, SIKA ROLL DE 3/8\" DE DIAM., CON UNA SECCION TRANSVERSAL DE LA RANURA EN EL PISO DE 0.60 CM X 5.00  Y SELLO DE SIKAFLEX-1A, GRIS CON UNA SECCION DE 0.60 CM. DE ANCHO  X 1.50 CM. DE PROFUNDIDAD, INCLUYE:  MATERIALES, DESPERDICIOS, LIMPIEZA, IMPRIMACION, HERRAMIENTAS, MANO DE OBRA Y ACARREO DEL PRODUCTO SOBRANTE FUERA DE LA OBRA.","ML ","298.0000",0,"CERO PESOS 00/100 M.N.",0,374909]
[344840,"CORTE CON DISCO DE DIAMANTE EN PISO Y/O LOSA DE CONCRETO, 5.00 CM. DE PROFUNDIDAD Y 0.60 CM. DE ANCHO, INCLUYE: TRAZO, HERRAMIENTAS, EQUIPO DE CORTE, EQUIPO DE SEGURIDAD, ACARREOS, MANO DE OBRA Y LIMPIEZA DEL AREA DE TRABAJO.","ML ","298.0000",0,"CERO PESOS 00/100 M.N.",0,374910]
[372204,"SUMINISTRO Y APLICACION DE ENDURECEDOR QUIMICO EN PISOS DE CONCRETO, ENDUMIN DE  FESTER PROPORCION 3.00 KG. POR M2. INCLUYE:  DESPERDICIOS, HERRAMIENTA, MANO DE OBRA CALIFICADA, EQUIPO NECESARIO, MATERIALES DE CONSUMO Y TODO LO NECESARIO PARA SU CORRECTA EJECUCION. TRABAJO TERMINADO.","M2 ","618.3000",0,"CERO PESOS 00/100 M.N.",0,374911]
[373050,"PISO DE CONCRETO HIDRAULICO PREMEZCLADO BOMBEABLE F'C=200 KG/CM², T.M.A. 3/4\", DE 0.10 M. DE ESPESOR, COLADO EN FRANJAS DE 6.00 A 8.00 MTS. DE ANCHO, MODULADO DE ACUERDO AL AREA TOTAL A COLAR, ACABADO PULIDO CON EQUIPO MECANICO, INCLUYE: TRAZO, NIVELACION, AFINE Y COMPACTACION DEL TERRENO, AGUA, DESPERDICIOS, ACARREOS, REGLEADO, ACABADO PULIDO DE FORMA INTEGRAL  (SIN UTILIZACION DE PASTA), CIMBRA MACHIMBRADA (HEMBRA MACHO) EN FRONTERAS , DESCIMBRA, BOMBEO, COLADO, CURADO, REMATES, ESCALONADO, MUESTREADO, PRUEBAS DE RESISTENCIA DEL CONCRETO, NIVELACION, JUNTAS FRIAS CON VOLTEADOR, LIMPIEZA DEL AREA DE TRABAJO, HERRAMIENTAS Y MANO DE OBRA.","M2 ","618.3000",0,"CERO PESOS 00/100 M.N.",0,374914]
[373766,"FORJADO DE NARIZ DE REMATE EN PISO DE  BANQUETAS, CON 10.0  X  10.0 CM. DE SECCION, INCLUYE SOLO: CIMBRA APARENTE, DESCIMBRA, GOTERO, FORJADO, CHAFLANES, PERFILADO, DESPERDICIOS, HERRAMIENTAS, Y MANO DE OBRA. (NO INCLUYE CONCRETO).","ML ","102.8000",0,"CERO PESOS 00/100 M.N.",0,374916]
["17.04(393)","PINTURA                                           ",null,null,null,null,{"$f":"TEXT(SUM(G250:G253), \"$ #,##0.00 ;\")","v":"$ 0.00 "}]
[393126,"PINTURA DE ESMALTE ALQUIDALICO ANTICORROSIVO, ACABADO BRILLANTE, PARA INTERIORES Y EXTERIORES QUE NO DESPRENDA VAPORES TÓXICOS NI OLORES DESAGRADABLES, CON LAS SIGUIENTES CARACTERÍSTICAS ( SÓLIDOS POR PESO 49-60%, SÓLIDOS POR VOLUMEN 40-46%, VISCOSIDAD DE 110-160 UK A 25°C, DENSIDAD 0.9-1.2 TON/M3., BRILLO A 60°C, 90%, TIEMPO DE SECADO AL TACTO, < O = 6 HRS., TIEMPO DE SECADO DURO < O = 24 HRS., ADHERENCIA 100%, RENDIMIENTO EN SUP. LISA 8-10 M2/LT., DILUCIÓN MÁXIMA (AGUARRÁS, THINER), 15 %,  EN HERRERIA  TUBULAR Y/O ESTRUCTURAL ESTRUCTURA DE TABLEROS DE BASQUET-BALL CON PORTERIAS PARA FUT-BOL, 4 POSTES PARA CANCHA DE VOLY-BALL, ROTULACION DE TABLEROS, TRABAJO TERMINADO, A DOS MANOS, INCLUYE: MATERIALES MENORES Y DE CONSUMO, ANDAMIOS, PREPARACION DE LA SUPERFICIE, HERRAMIENTAS, LIMPIEZA, MANO DE OBRA Y  EQUIPO DE SEGURIDAD. ","JGO","1.0000",0,"CERO PESOS 00/100 M.N.",0,374920]
[393803,"ELABORACION DE ROTULO CON EL NOMBRE Y LOGOTIPO DEL GOBIERNO DEL ESTADO DE JALISCO EN SUPERFICIE DE ASFALTO Y/O CONCRETO CON DIMENSIONES APROXIMADA DE 205 X 205 CM, A BASE DE EMULSION A BASE DE SELLADOR ACRILICO SURFACER NEUTRO CONCENTRADO, PIGMENTO Y ARENA SILICA EXTRAFINA A RAZON DE 1.75 KG/LTS., TRABAJO TERMINADO A DOS MANOS, INCLUYE: TRAZO, PREPARACION DE LA SUPERFICIE, MEZCLADO, MATERIALES MENORES Y DE CONSUMO, DESPERDICIOS, SEÑALAMIENTOS, HERRAMIENTAS, LIMPIEZA, MANO DE OBRA Y EQUIPO DE SEGURIDAD. (LA APLICACIÓN DE LA PUNTURA DEBERÁ SER EN LA TOTALIDAD DE LA SUPERFICIE MENCIONADA)","PZA","1.0000",0,"CERO PESOS 00/100 M.N.",0,374923]
[393804,"SUMINISTRO Y APLICACION DE EMULSION A BASE DE SELLADOR ACRILICO SURFACER NEUTRO CONCENTRADO, PIGMENTO Y ARENA SILICA EXTRAFINA A RAZON DE 1.75 KG/LTS., APLICADO EN PISOS DE CONCRETO Y/O ASFALTO, CON PISTOLA DE ASPERSION, BROCHA O RODILLO, TRABAJO TERMINADO A DOS MANOS, EN COLOR INDICADO EN PROYECTO O POR LA SUPERVISION, INCLUYE: TRAZO, PINTADO DE LINEAS DE BALIZAMIENTO EN CANCHAS DEPORTIVAS DE 5 CM DE ANCHO, MATERIALES MENORES Y DE CONSUMO, MEZCLADO, PREPARACION DE LA SUPERFICIE, SEÑALAMIENTOS, HERRAMIENTAS, LIMPIEZA, MANO DE OBRA Y EQUIPO DE SEGURIDAD. EN CUALQUIER NIVEL.","M2 ","613.4000",0,"CERO PESOS 00/100 M.N.",0,374924]
[393805,"ELABORACION DE ROTULO CON EL NOMBRE Y  LOGOTIPO DEL INSTITUTO (INFEJAL) EN  SUPERFICIE DE ASFALTO Y/O CONCRETO CON DIMENSIONES APROXIMADA DE 170 X 40 CM, A BASE DE  EMULSION A BASE DE SELLADOR ACRILICO SURFACER NEUTRO CONCENTRADO, PIGMENTO Y ARENA SILICA EXTRAFINA A RAZON DE 1.75 KG/LTS., TRABAJO TERMINADO A DOS MANOS, INCLUYE: TRAZO, PREPARACION DE LA SUPERFICIE, MEZCLADO,  MATERIALES MENORES Y DE CONSUMO, DESPERDICIOS, SEÑALAMIENTOS, HERRAMIENTAS, LIMPIEZA, MANO DE OBRA Y EQUIPO DE SEGURIDAD. (LA APLICACIÓN DE LA PUNTURA DEBERÁ SER EN LA TOTALIDAD DE LA SUPERFICIE MENCIONADA)","PZA","1.0000",0,"CERO PESOS 00/100 M.N.",0,374925]
["17.05(396)","LIMPIEZA                                          ",null,null,null,null,{"$f":"TEXT(SUM(G255:G255), \"$ #,##0.00 ;\")","v":"$ 0.00 "}]
[396012,"LIMPIEZA DE PISOS DE CONCRETO CON AGUA Y ACIDO MURIATICO AL 10%.","M2 ","618.3000",0,"CERO PESOS 00/100 M.N.",0,374927]
["17.06(410)","CANCELERIA, HERRERIA, ALUMINIO, VIDRIOS Y CHAPAS  ",null,null,null,null,{"$f":"TEXT(SUM(G257:G258), \"$ #,##0.00 ;\")","v":"$ 0.00 "}]
[412014,"SUMINISTRO, HABILITADO, FABRICACION Y COLOCACION  DE HERRERIA TUBULAR Y/O ESTRUCTURAL, PARA LA CONSTRUCCION DE CANCHA DE USOS MULTIPLES, CONSISTIENDO EN  ESTRUCTURAS PARA TABLERO CON PORTERIAS PARA FUT-BOL,  TABLEROS PARA BASQUET-BALL CON HERRERIA CERRADA,  POSTES PARA  CANCHAS DE VOLY-BALL, ETC. INCLUYE: SOLDADURA, MATERIALES MENORES, DESCALIBRES, DESPERDICIOS, FONDO ANTICORROSIVO, FLETES Y ACARREO DE MATERIALES AL SITIO DE SU UTLIZACION. CON DIMENSIONES Y CARACTERISTICAS DE ACUERDO A GUIA MECANIDA PROPORCIONADA POR EL INFEJAL.","KG ","1,183.2000",0,"CERO PESOS 00/100 M.N.",0,374930]
[412017,"SUMINISTRO, COLOCACION Y MONTAJE DE AROS Y RED DE BASQUET-BALL  INCLUYE: ACARREOS, SUMINISTROS DE MATERIALES NECESARIOS, PINTURA, HERRAMIENTA NECESARIA, EQUIPO Y MATERIAL DE CONSUMO NECESARIOS, MANO DE OBRA CALIFICADA Y TODO LO NECESARIO PARA SU CORRECTA EJECUCION.\n\n\n","JGO","1.0000",0,"CERO PESOS 00/100 M.N.",0,374931]
["17.07(615)","JUEGOS INFANTILES Y ARENEROS                      ",null,null,null,null,{"$f":"TEXT(SUM(G260:G261), \"$ #,##0.00 ;\")","v":"$ 0.00 "}]
[418002,"SUMINISTRO Y COLOCACION DE RED DE FOOT-BALL EN PORTERIAS DE  CANCHA DE USOS MULTIPLES. INCLUYE: MATERIALES , HERRAMIENTA, ACARREOS, MANO DE OBRA Y TODO LO NECESARIO PARA SU CORRECTA EJECUCION.\n","PZA","2.0000",0,"CERO PESOS 00/100 M.N.",0,374948]
[418004,"SUMINISTRO Y COLOCACION DE RED DE VOLY-BALL CON CABLE DE ACERO Y LONA EN PARTE SUPERIOR, PARA CANCHA DE USOS MULTIPLES, INCLUYE: MATERIALES , HERRAMIENTA, ACARREOS, MANO DE OBRA Y TODO LO NECESARIO PARA SU CORRECTA EJECUCION.\n\n","PZA","2.0000",0,"CERO PESOS 00/100 M.N.",0,374949]
[30,"INGRESO TIPO",null,null,null,null,{"$f":"TEXT(SUM(G263 + G270 + G281 + G288 + G290 + G294 + G296 + G299 + G301 + G304), \"$ #,##0.00 ;\")","v":"$ 0.00 "}]
["30.01(150)","TRABAJOS PRELIMINARES                             ",null,null,null,null,{"$f":"TEXT(SUM(G264:G269), \"$ #,##0.00 ;\")","v":"$ 0.00 "}]
[150020,"LIMPIEZA DE TERRENO RETIRANDO BASURA Y DESHIERBE FUERA DE LA OBRA. INCLUYE: HERRAMIENTAS, MANO DE OBRA, RECOLECCION, JUNTA Y RETIRO. (PROYECCION DE CUBIERTA).","M2 ","46.1000",0,"CERO PESOS 00/100 M.N.",0,374862]
[150110,"TRAZO Y NIVELACION DE EDIFICIOS ESTABLECIENDO REFERENCIAS DEFINITIVAS, CON TRANSITO Y NIVEL (EQUIPO TOPOGRAFICO), INCLUYE: PERSONAL TECNICO CALIFICADO, ESTACAS, MOJONERAS, LOCALIZACION DE ENTRE EJES, BANCOS DE NIVEL, MATERIALES PARA SEÑALAMIENTO, EQUIPO, HERRAMIENTA Y MANO DE OBRA.","M2 ","46.1000",0,"CERO PESOS 00/100 M.N.",0,374863]
[150210,"DESPALME DE TERRENO NATURAL POR CUALQUIER MEDIO, CON ESPESOR PROMEDIO DE 20 CM. INCLUYE: CARGA Y ACARREO DEL PRODUCTO FUERA DE LA OBRA, MANO DE OBRA, HERRAMIENTA Y EQUIPO. (PROYECCION DE CUBIERTA).","M2 ","46.1000",0,"CERO PESOS 00/100 M.N.",0,374868]
[152204,"EXCAVACION EN CEPAS POR CUALQUIER MEDIO, MATERIAL TIPO \"B\", DE 0 A 2.00 M. DE PROFUNDIDAD, EN SECO, INCLUYE: AFINE DE TALUDES Y FONDO, TRASPALEOS,  MOVIMIENTOS Y ACARREOS DENTRO DE LA OBRA, HERRAMIENTAS Y MANO DE OBRA, MEDIDO EN BANCO.","M3 ","11.4500",0,"CERO PESOS 00/100 M.N.",0,374871]
[152404,"EXCAVACION A CIELO ABIERTO EN CAJON POR CUALQUIER MEDIO, MATERIAL TIPO \"B\", DE 0 A 2.00 M. DE PROFUNDIDAD, EN SECO, INCLUYE: AFINE DE TALUDES Y FONDO, TRAPALEOS,  MOVIMIENTOS Y ACARREOS DENTRO DE LA OBRA, HERRAMIENTAS Y MANO DE OBRA, MEDIDO EN BANCO.","M3 ","9.2000",0,"CERO PESOS 00/100 M.N.",0,374874]
[156002,"CARGA POR CUALQUIER MEDIO Y ACARREO EN CAMION DE MATERIAL DE DESPERDICIO PRODUCTO DE LAS EXCAVACIONES FUERA DE LA OBRA, A LUGAR PERMITIDO POR LAS AUTORIDADES CORRESPONDIENTES, MEDIDO EN BANCO. INCLUYE CARGA,  ACARREO Y DESCARGA A TIRO LIBRE, HERRAMIENTA, EQUIPO, MATERIALES DE CONSUMO Y MANO DE OBRA.","M3 ","20.7000",0,"CERO PESOS 00/100 M.N.",0,374877]
["30.02(160)","CIMENTACION                                       ",null,null,null,null,{"$f":"TEXT(SUM(G271:G280), \"$ #,##0.00 ;\")","v":"$ 0.00 "}]
[160222,"PLANTILLA DE CONCRETO F'C=100 KG/CM2, TMA=3/4\", DE 5.00 CM DE ESPESOR PROMEDIO. INCLUYE: MATERIALES, HERRAMIENTAS, AFINE, NIVELACION, LIMPIEZA, MANO DE OBRA Y ACARREO DE MATERIALES AL SITIO DE SU UTILIZACION.","M2 ","10.4000",0,"CERO PESOS 00/100 M.N.",0,374878]
[170012,"CIMBRA  ACABADO COMUN, EN CIMENTACION, INCLUYE: DESPERDICIO, HABILITADO, CIMBRADO Y DESCIMBRA, NIVELACION, PLOMEO MATERIAL, MANO DE OBRA , LIMPIEZA, HERRAMIENTA, ACARREO DEL MATRIAL DENTRO Y FUERA DE LA OBRA.","M2 ","19.0000",0,"CERO PESOS 00/100 M.N.",0,374885]
[173003,"SUMINISTRO, HABILITADO, ARMADO Y COLOCACION DE ACERO DE REFUERZO FY=4,200 KG/CM2 (G.E.), DE 3/8\" ( #3 ), EN CIMENTACION, INCLUYE: MATERIALES, HABILITADO,  DOBLECES,  SILLETAS, ALAMBRE, GANCHOS, ESCUADRAS, TRASLAPES, DESPERDICIOS HERRAMIENTAS, MANO DE OBRA Y ACARREO DE MATERIALES AL SITIO DE SU COLOCACION.","KG ","149.0000",0,"CERO PESOS 00/100 M.N.",0,374886]
[173004,"SUMINISTRO, HABILITADO, ARMADO Y COLOCACION DE ACERO DE REFUERZO FY=4,200 KG/CM2 (G.E.), DE 1/2\" ( #4 ), EN CIMENTACION, INCLUYE: MATERIALES, HABILITADO,  DOBLECES,  SILLETAS, ALAMBRE, GANCHOS, ESCUADRAS, TRASLAPES, DESPERDICIOS HERRAMIENTAS, MANO DE OBRA Y ACARREO DE MATERIALES AL SITIO DE SU COLOCACION.","KG ","59.0000",0,"CERO PESOS 00/100 M.N.",0,374887]
[176110,"SUMINISTRO Y COLOCACION DE CONCRETO PREMEZCLADO A TIRO DIRECTO F'C=250 KG/CM2, TMA= 3/4\", R.N. EN CIMENTACION. INCLUYE: TENDIDO, RASTREADO, VIBRADO, NIVELACION, HERRAMIENTAS, LIMPIEZA, PRUEBAS,  CURADO CON CURACRETO ROJO,  DESPERDICIO Y MANO DE OBRA.","M3 ","2.7000",0,"CERO PESOS 00/100 M.N.",0,374888]
[180052,"RELLENO EN CEPAS POR CUALQUIER MEDIO, CON MATERIAL DE BANCO, (ARENA LIMOSA, TEPETATE, ETC.) COMPACTADO AL 90% PROCTOR, EN CAPAS DE 15 CM, MEDIDO COMPACTO. INCLUYE:  SUMINISTRO DE AGUA PARA LOGRAR HUMEDAD OPTIMA, DESPERDICIOS, TENDIDO, TRASPALEOS,  EQUIPO, PRUEBAS DE COMPACTACION, AFINE, NIVELACION, HERRAMIENTAS, MANO DE OBRA Y  ACARREO HASTA EL SITIO DE SU COLOCACION.  (VOLUMEN MEDIDO COMPACTADO).","M3 ","6.2000",0,"CERO PESOS 00/100 M.N.",0,374891]
[180102,"RELLENO COMPACTADO AL 90 % PROCTOR, CON MATERIAL DE BANCO, EN CAPAS DE 20 CM DE ESPESOR, AGREGANDO AGUA PARA LOGRAR SU HUMEDAD OPTIMA, AL 90%. POR CUALQUIER MEDIO, INCLUYE: SUMINISTRO DE AGUA PARA LOGRAR HUMEDAD OPTIMA, TENDIDO, TRASPALEOS,  DESPERDICIOS, EQUIPO, PRUEBAS DE COMPACTACION, AFINE, NIVELACION, HERRAMIENTAS, MANO DE OBRA Y  ACARREO HASTA EL SITIO DE SU COLOCACION.  (VOLUMEN MEDIDO COMPACTADO).","M3 ","17.5500",0,"CERO PESOS 00/100 M.N.",0,374894]
[180206,"RELLENO CON MATERIAL DE BANCO-CEMENTO GRIS, EN PROPORCIÓN DE100 KGS. POR M3 A CUALQUIER PROFUNDIDAD, COMPACTADO AL 90 % PROCTOR EN CAPAS DE 15 CM. INCLUYE: ESCARIFICADO DEL TERRENO, SUMINISTRO DE AGUA PARA LOGRAR HUMEDAD OPTIMA, MEZCLACO, TENDIDO, TRASPALEOS,  DESPERDICIOS, EQUIPO, PRUEBAS DE COMPACTACION, AFINE, NIVELACION, HERRAMIENTAS, MANO DE OBRA Y  ACARREO HASTA EL SITIO DE SU COLOCACION.  (VOLUMEN MEDIDO COMPACTADO).","M3 ","2.1000",0,"CERO PESOS 00/100 M.N.",0,374895]
[180401,"RELLENO CON MATERIAL PRODUCTO DE LA EXCAVACION AGREGANDO CALHIDRA EN PROPORCION 25 KG/M3, COMPACTADO AL 90% PROCTOR, INCLUYE: ESCARIFICADO DEL TERRENO, HUMEDAD OPTIMA, MEZCLADO, TENDIDO, COMPACTACION POR CUALQUIER MEDIO EN CAPAS DE 20 CMS., NIVELADO, PRUEBAS DE COMPACTACION, TRASPALEOS, HERRAMIENTAS, MANO DE OBRA Y LOS ACARREOS NECESARIOS. MEDIDO COMPACTO.","M3 ","2.3000",0,"CERO PESOS 00/100 M.N.",0,374898]
[182024,"RELLENO POR CUALQUIER MEDIO, CON GRAVA DE 3/4\" A 3\" DE DIAMETRO LIBRE DE FINOS, PARA ELIMINAR REBOTE ELASTICO EN BASE DE LA ZAPATA, ESTRUCTURA DE PISOS Y/O COMO FILTRO, INCLUYE: MATERIALES, ACARREOS, BANDEO, COMPACTACION, TENDIDO, EQUIPO,  NIVELADO, DESPERDICIOS, TRASPALEOS, HERRAMIENTAS Y MANO DE OBRA.","M3 ","3.1500",0,"CERO PESOS 00/100 M.N.",0,374899]
["30.03(200)","ESTRUCTURA                                        ",null,null,null,null,{"$f":"TEXT(SUM(G282:G287), \"$ #,##0.00 ;\")","v":"$ 0.00 "}]
[192048,"SUMINISTRO Y COLOCACION A CUALQUIER NIVEL DE ANCLA Y PLACA DE ASIENTO PARA CONEXION DE ESTRUCTURA METALICA A ESTRUCTURA DE CONCRETO , AHOGADA EN ELEMENTOS DE CONCRETO, FABRICADA A BASE DE UNA PLACA DE ACERO A36, DE 15 CM X 35 CM X 1/2\", DOS ANCLAS DE REDONDO LISO DE 1/2\" SOLDADAS A PLACA CON UN DESARROLLO 60 CMS. APROX. Y EN FORMA DE \"U\" FIJADAS A ACERO DE REFUERZO. INCLUYE: TRAZO, CORTES, DESBASTADO, FIJACION, SOLDADURA, DESPERDICIOS, NIVELACION,  HERRAMIENTAS, LIMPIEZAS Y MANO DE OBRA ESPECIALIZADA.","PZA","4.0000",0,"CERO PESOS 00/100 M.N.",0,374902]
[210112,"CIMBRA DE MADERA, ACABADO APARENTE, EN MUROS Y BARANDAL, INCLUYE: HABILITADO, CHAFLANES, CIMBRA, DESCIMBRA, HERRAMIENTAS, LIMPIEZAS, MANO DE OBRA  Y ACARREO DE MATERIALES AL SITIO DE SU UTILIZACION, A CUALQUIER NIVEL.","M2 ","64.0000",0,"CERO PESOS 00/100 M.N.",0,374903]
[213003,"SUMINISTRO, HABILITADO, ARMADO Y COLOCACION DE ACERO DE REFUERZO FY=4,200 KG/CM2 (G.E.), DE 3/8\" (# 3 ), EN ESTRUCTURA, INCLUYE: MATERIALES, HABILITADO,  DOBLECES,  SILLETAS, ALAMBRE, GANCHOS, ESCUADRAS, TRASLAPES, DESPERDICIOS HERRAMIENTAS, MANO DE OBRA Y ACARREO DE MATERIALES AL SITIO DE SU COLOCACION.","KG ","173.0000",0,"CERO PESOS 00/100 M.N.",0,374904]
[216912,"SUMINISTRO Y COLOCACION DE CONCRETO PREMEZCLADO BOMB,  F'C=250 KG/CM2, T.M.A.= 3/4, R.N., EN MUROS Y BARANDAL, CUALQUIER ALTURA, INCLUYE: MATERIALES, FLETES, MANIOBRAS, BOMBEO, CURADO CON CURACRETO ROJO, VIBRADO, AFINE Y ACABADO REGLEADO,  DESPERDICIO, PRUEBAS DE RESISTENCIA Y MANO DE OBRA, A CUALQUIER NIVEL.","M3 ","4.6000",0,"CERO PESOS 00/100 M.N.",0,374905]
[280090,"SUMINISTRO, HABILITADO Y MONTAJE DE ESTRUCTURA METALICA DE ACERO ASTMA-36 F'Y=2530 KG/CM2, SOLDADOS Y/O ATORNILLADOS, (PERFILES IPR. IPS, CPS, REDONDOS SOLIDO, SOLERAS Y PLACAS, ETC, DIFERENTES DIMENSIONES Y CALIBRES,) PARA COLUMNAS, ARMADURAS, TRABES Y VIGAS, INCLUYE: MATERIALES MENORES Y DE CONSUMO, TRAZO, CORTES, AJUSTES, DESPERDICIOS, ENDEREZADO, BISELADO, DESCALIBRES, BARRENOS, TORQUES, SOLDADURA, UNA PRUEBA RADIOGRAFICA Y/O LIQUIDOS PENETRANTES POR CADA 500 KG. DE ACERO, FLETES, PINTURA ANTICORROSIVA, MANO DE OBRA CALIFICADA, HERRAMIENTA, EQUIPO, FLETES, ELEVACIONES, ACARREOS DE MATERIALES AL SITIO DE SU COLOCACION, ACUALQUIER ALTURA.","KG ","548.0000",0,"CERO PESOS 00/100 M.N.",0,374906]
[285008,"SUMINISTRO, HABILITADO Y MONTAJE DE ESTRUCTURA A BASE DE POLIN-MONTEN EN DIFERENTES PERALTES Y ESPESORES, INCLUYE: MATERIALES MENORES Y DE CONSUMO, TRAZO, CORTES, AJUSTES, DESPERDICIOS, TORNILLERÍA, DESCALIBRES, BARRENOS, SOLDADURA, PRUEBAS RADIOGRAFICAS, PINTURA ANTICORROSIVA, MANO DE OBRA CALIFICADA, HERRAMIENTA, EQUIPO, FLETES, ELEVACIONES, ACARREOS DE MATERIALES AL SITIO DE SU COLOCACION, ACUALQUIER ALTURA. ","KG ","94.0000",0,"CERO PESOS 00/100 M.N.",0,374907]
["30.04(319)","ENTREPISOS, CUBIERTA Y ACABADOS DE AZOTEA         ",null,null,null,null,{"$f":"TEXT(SUM(G289:G289), \"$ #,##0.00 ;\")","v":"$ 0.00 "}]
[326017,"SUMINISTRO Y COLOCACION DE LAMINA ACANALADA TERMOACUSTICA DE PVC, MCA. ULTRALAM, MOD. A-136, HIGH PERFORMANCE DE 3 MM DE ESPESOR, EN COLOR BLANCO,  INCLUYE: ELEMENTOS  DE FIJACION, CORTES, AJUSTES, TRASLAPES, DEPERDICIOS, ANDAMIOS, LIMPIEZA, HERRAMIENTAS, MANO DE OBRA Y ACARREOS AL SITIO DE SU INSTALACION.  A CUALQUIERALTURA.\n","M2 ","31.5000",0,"CERO PESOS 00/100 M.N.",0,374908]
["30.05(372)","PISOS                                             ",null,null,null,null,{"$f":"TEXT(SUM(G291:G293), \"$ #,##0.00 ;\")","v":"$ 0.00 "}]
[373022,"PISO DE CONCRETO F'C=150 KG/CM², T.M.A. 3/4\", DE 0.10 M. DE ESPESOR, COLADO EN CUADROS NO MAYORES DE 3.00 ML POR LADO, INCLUYE: TRAZO, NIVELACION, AFINE Y COMPACTACION DEL TERRENO, AGUA, DESPERDICIOS, ACARREOS, REGLEADO, ACABADO INTEGRAL RAYADO CON BROCHA DE PELO (SIN UTILIZACION DE PASTA), CIMBRA EN FRONTERAS, DESCIMBRA, COLADO, CURADO, REMATES, ESCALONADO, MUESTREADO, JUNTAS FRIAS CON VOLTEADOR, HERRAMIENTAS Y MANO DE OBRA.","M2 ","27.0000",0,"CERO PESOS 00/100 M.N.",0,374913]
[374508,"GUARNICION O MACHUELO DE CONCRETO SIMPLE F'C=150 KG/CM2 CON SECCION DE 15 X 30 CMS., CON CIMBRA APARENTE, INCLUYE: TRAZO, EXCAVACION, CONFORMACION Y COMPACTACION DEL TERRENO NATURAL CON HERRAMIENTA MANUAL, INCORPORACION DE HUMEDAD OPTIMA, RETIRO DEL MATERIAL PRODUCTO DE LA EXCAVACION, CIMBRA APARENTE Y DESCIMBRA, COLADO, VIBRADO, CURADO, SEÑALAMIENTO PREVENTIVO, MATERIALES, HERRAMIENTAS, MANO DE OBRA Y ACARREO DE MATERIALES AL SITIO DE SU UTILIZACION.","ML ","17.1500",0,"CERO PESOS 00/100 M.N.",0,374917]
[375242,"FORJADO DE RAMPA PARA MINUSVALIDOS FABRICADO A BASE DE CONCRETO F'C=150 KG/CM2. T.M.A. 3/4\" HECHO EN OBRA DE 0.10 MT. DE ESPESOR  PROMEDIO DANDO PENDIENTE DEL 6%. INCLUYE: HERRAMIENTAS, ACABADO RAYADO,  CIMBRA DESCIMBRA, MANO DE OBRA, REMATE EN PISO Y BANQUETA, ACARREO DEL  MATERIALES AL SITIO DE SU UTILIZACION.","M2 ","2.2500",0,"CERO PESOS 00/100 M.N.",0,374918]
["30.06(382)","ELEMENTOS COMPLEMENTARIOS DE ALBAÑILERIA          ",null,null,null,null,{"$f":"TEXT(SUM(G295:G295), \"$ #,##0.00 ;\")","v":"$ 0.00 "}]
[384205,"SUMINISTRO Y COLOCACION DE BANCA JARDINERA PREFABRICADA  MODELO NA02, TIPO NAPRESA O SIMILAR, DE 2.50 MTS DE LARGO, 0.60 DE ANCHO Y 0.45 DE ALTURA, INCLUYE: PREPARACION DEL AREA DE COLOCACION, ANCLAJE, NIVELACION, FLETES, MANIOBRAS DE CARGA Y DESCARGA, HERRAMIENTAS, MATERIALES PARA FIJACION, LIMPIEZA Y MANO DE OBRA.","PZA","1.0000",0,"CERO PESOS 00/100 M.N.",0,374919]
["30.07(393)","PINTURA                                           ",null,null,null,null,{"$f":"TEXT(SUM(G297:G298), \"$ #,##0.00 ;\")","v":"$ 0.00 "}]
[393216,"PINTURA DE ESMALTE ALQUIDALICO ANTICORROSIVO, ACABADO BRILLANTE, PARA INTERIORES Y EXTERIORES QUE NO DESPRENDA VAPORES TÓXICOS NI OLORES DESAGRADABLES, CON LAS SIGUIENTES CARACTERÍSTICAS ( SÓLIDOS POR PESO 49-60%, SÓLIDOS POR VOLUMEN 40-46%, VISCOSIDAD DE 110-160 UK A 25°C, DENSIDAD 0.9-1.2 TON/M3., BRILLO A 60°C, 90%, TIEMPO DE SECADO AL TACTO, < O = 6 HRS., TIEMPO DE SECADO DURO < O = 24 HRS., ADHERENCIA 100%, RENDIMIENTO EN SUP. LISA 8-10 M2/LT., DILUCIÓN MÁXIMA (AGUARRÁS, THINER), 15 %,  EN ESTRUCTURA DE CUBIERTA, A BASE DE LARGUEROS DE POLINES MON-TEN, TENSORES Y CONEXIONES, TRABAJO TERMINADO, A DOS MANOS, INCLUYE: MATERIALES MENORES Y DE CONSUMO, ANDAMIOS, PREPARACION DE LA SUPERFICIE, HERRAMIENTAS, LIMPIEZA, MANO DE OBRA Y  EQUIPO DE SEGURIDAD. A CUALQUIER NIVEL. (PROYECCIÓN DE CUBIERTA).","M2 ","31.5000",0,"CERO PESOS 00/100 M.N.",0,374921]
[393325,"PINTURA DE ESMALTE ALQUIDALICO ANTICORROSIVO, ACABADO BRILLANTE, PARA INTERIORES Y EXTERIORES QUE NO DESPRENDA VAPORES TÓXICOS NI OLORES DESAGRADABLES, CON LAS SIGUIENTES CARACTERÍSTICAS ( SÓLIDOS POR PESO 49-60%, SÓLIDOS POR VOLUMEN 40-46%, VISCOSIDAD DE 110-160 UK A 25°C, DENSIDAD 0.9-1.2 TON/M3., BRILLO A 60°C, 90%, TIEMPO DE SECADO AL TACTO, < O = 6 HRS., TIEMPO DE SECADO DURO < O = 24 HRS., ADHERENCIA 100%, DILUCIÓN MÁXIMA (AGUARRÁS, THINER), 15 %,  EN BARANDAL METALICO, EN COLOR DE ACUERDO A INDICADO POR SUPERVISIÓN MEDIDO POR UN SOLO LADO, TRABAJO TERMINADO, A DOS MANOS, INCLUYE: MATERIALES MENORES Y DE CONSUMO, PREPARACION DE LA SUPERFICIE, ANDAMIOS, HERRAMIENTAS, LIMPIEZA, MANO DE OBRA Y  EQUIPO DE SEGURIDAD. CUALQUIER ALTURA..","M2 ","17.3000",0,"CERO PESOS 00/100 M.N.",0,374922]
["30.08(396)","LIMPIEZA                                          ",null,null,null,null,{"$f":"TEXT(SUM(G300:G300), \"$ #,##0.00 ;\")","v":"$ 0.00 "}]
[396012,"LIMPIEZA DE PISOS DE CONCRETO CON AGUA Y ACIDO MURIATICO AL 10%.","M2 ","29.2500",0,"CERO PESOS 00/100 M.N.",0,374928]
["30.09(410)","CANCELERIA, HERRERIA, ALUMINIO, VIDRIOS Y CHAPAS  ",null,null,null,null,{"$f":"TEXT(SUM(G302:G303), \"$ #,##0.00 ;\")","v":"$ 0.00 "}]
[412006,"SUMINISTRO, FABRICACION Y COLOCACION DE HERRERIA TUBULAR Y/O ESTRUCTURAL PARA BARANDAL O PASAMANOS,  INCLUYE: SOLDADURA, CORTES, AJUSTES, MATERIALES MENORES, DESCALIBRES, DESPERDICIOS, BISAGRAS, FONDO ANTICORROSIVO, FLETES, HERRAMIENTAS, MANO DE OBRA, Y ACARREO DE MATERIALES AL SITIO DE SU UTLIZACION.","KG ","395.7500",0,"CERO PESOS 00/100 M.N.",0,374929]
[412897,"SUMINISTRO, MONTAJE  Y COLOCACION DE PARASOL DE 0.50 MTS. DE ALTURA,  FABRICADO A BASE DE BASTIDOR METALICO DE PTR DE 2 1/2\" X 2 1/2\" BLANCO Y SOLERA DE 1/2\" X 3/16\", CON POSTES VERTICALES A CADA 100 CM. APROXIMADAMENTE,  CORTINA DE LAMINA NEGRA MULTIPERFORADA CAL 14, CON PERFOTRACIONES DE 3 MM. DE DIAMETRO, RAMACAHADA A BASTIDOR, INCLUYE: ANCLAS DE PLACA Y SOLERA DE 1/4\", ELEMENTOS DE FIJACION, TRAZO, ROLADO, SOLDADURA, CORTES, DESPERDICIOS, DESBASTADO, AJUSTES,  EQUIPOS, PLOMEO, NIVELACION, PINTURA DE TALLER Y ESMALTE A DOS MANOS, TRABAJO TERMINADO, POR AMBAS CARAS, HERRAMIENTAS, MANO DE OBRA, MATERIALES MENORES, FLETES Y ACARREO DE LOS MATERIALES AL SITIO DE SU UTILIZACION.","ML ","25.5500",0,"CERO PESOS 00/100 M.N.",0,374932]
["30.10(511)","INSTALACION ELECTRICA EN OBRA EXTERIOR            ",null,null,null,null,{"$f":"TEXT(SUM(G305:G308), \"$ #,##0.00 ;\")","v":"$ 0.00 "}]
[514011,"SALIDA ELECTRICA DE CENTRO AISLADA, VISIBLE, CON TUBERIA Y CONEXIONES CONDUIT GALVANIZADA P.G., ROSCADA DE 13 Y 19 MM. DE DIAMETRO, CABLE VINANEL THW-LS 600 V. A 75° C, 90° C, MARCA CONDUCTORES MONTERREY, (VIAKON-PROTOCOLIZADO), CABLE VINANEL 21 THW-LS 600 V. A 75° C, 90° C, MARCA CONDUMEX (CONDUMEX PROTOCOLIZADO).  CALIBRE 12, CAJAS CUADRADAS, CHALUPAS Y TAPAS GALVANIZADAS, INCLUYE: TRAZO, MATERIALES MENORES Y DE FIJACION, HERRAMIENTA, MANO DE OBRA ESPECIALIZADA , CONEXIONES, LIMPIEZA DEL AREA DE TRABAJO, PRUEBAS, DESPERDICIOS Y ACARREO DEL MATERIAL AL SITIO DE SU COLOCACION, A CUALQUIER NIVEL.","SAL","3.0000",0,"CERO PESOS 00/100 M.N.",0,374933]
[540012,"SUMINISTRO Y COLOCACION DE CENTRO DE CARGAS TIPO QOD-2, MCA. SQUARE D, INCLUYE: ELEMENTOS DE FIJACION,  PRUEBAS, MATERIALES MENORES Y DE CONSUMO, CONEXIONES, LIMPIEZAS, HERRAMIENTAS, MANO DE OBRA ESPECIALIZADA Y ACARREO DE MATERIALES AL SITIO DE SU COLOCACION.","PZA","1.0000",0,"CERO PESOS 00/100 M.N.",0,374938]
[543012,"SUMINISTRO Y COLOCACION DE INTERRUPTOR TERMOMAGNETICO DERIVADO CON 1 POLOS, DE 15-60 AMPERES, MCA. SQUARE D, CAT. QO. INCLUYE: PRUEBAS, MATERIALES MENORES, HERRAMIENTAS, MANO DE OBRA ESPECIALIZADA  Y ACARREO DE MATERIALES AL SITIO DE SU COLOCACION.","PZA","1.0000",0,"CERO PESOS 00/100 M.N.",0,374939]
[550090,"SUMINISTRO E INSTALACION DE LUMINARIO FLUORESCENTE DE SOBREPONER, TIPO ENVOLVENTE, AHORRADOR DE ENERGIA DE 2 X 32 WATTS. FABRICADO EN LAMINA CAL 22, RECUBIERTO CON TRATAMIENTO FOSFATIZADO Y PINTURA ACRILICA O POLIESTER COLOR BLANCO, APLICADA ELECTROSTATICAMENTE Y TERMOENDURECIDA, PARA OBTENER UNA REFLECTANCIA MINIMA DE 90%, CON DIFUSOR ACRILICO PRISMATICO 100% PURO, TIPO ENVOLVENTE, CON UNA LONGITUD DE 120 CM., BALASTRO ELECTRONICO DE BAJA EMISION DE ARMONICAS, PARA OPERAR UNA O DOS LAMPARAS T8 DE 32 WATTS, LA LUMINARIA (COMPLETA) DEBERA CUMPLIR CON LA NORMA ANCE, INCLUYE: COPIA DE CERTIFICACION ANCE ANEXA EN ELTRAMITE DE LA ESTIMACION, FIJACION, CONEXION, MATERIALES MENORES, HERRAMIENTAS, GARANTIAS,  MANO DE OBRA, PRUEBAS Y ACARREOS.","PZA","3.0000",0,"CERO PESOS 00/100 M.N.",0,374941]
["02","RED ELECTRICA",null,null,null,null,{"$f":"TEXT((G310), \"$ #,##0.00 ;\")","v":"$ 0.00 "}]
["02.01(511)","INSTALACION ELECTRICA EN OBRA EXTERIOR            ",null,null,null,null,{"$f":"TEXT(SUM(G311:G317), \"$ #,##0.00 ;\")","v":"$ 0.00 "}]
[534008,"SUMINISTRO Y TENDIDO DE TUBO CONDUIT DE P.V.C. PESADO, DE 32 MM DIAM. INC.: CONEXIONES, TRAZO, EXCAVACION, RELLENO, DESPERDICIOS, MATERIALES MENORES, PRUEBAS Y ACARREO AL SITIO DE SU COLOCACION.","ML ","45.0000",0,"CERO PESOS 00/100 M.N.",0,374934]
[536010,"SUMINISTRO Y COLOCACION DE CABLE VINANEL THW-LS 600 V. A 75° C, 90° C, MARCA CONDUCTORES MONTERREY, (VIAKON-PROTOCOLIZADO), CABLE VINANEL 21 THW-LS 600 V. A 75° C, 90° C, MARCA CONDUMEX (CONDUMEX PROTOCOLIZADO). CAL. 8,  INCLUYE: DESPERDICIOS, MATERIALES MENORES, HERRAMIENTA, CONEXIONES, MANO DE OBRA ESPECIALIZADA, LIMPIEZA DEL AREA DE TRABAJO, PRUEBAS Y ACARREO AL SITIO DE SU COLOCACION.","ML ","100.0000",0,"CERO PESOS 00/100 M.N.",0,374935]
[536012,"SUMINISTRO Y COLOCACION DE CABLE VINANEL THW-LS 600 V. A 75° C, 90° C, MARCA CONDUCTORES MONTERREY, (VIAKON-PROTOCOLIZADO), CABLE VINANEL 21 THW-LS 600 V. A 75° C, 90° C, MARCA CONDUMEX (CONDUMEX PROTOCOLIZADO). CAL. 6,  INCLUYE: DESPERDICIOS, MATERIALES MENORES, HERRAMIENTA, CONEXIONES, MANO DE OBRA ESPECIALIZADA, LIMPIEZA DEL AREA DE TRABAJO, PRUEBAS Y ACARREO AL SITIO DE SU COLOCACION.","ML ","50.0000",0,"CERO PESOS 00/100 M.N.",0,374936]
[537112,"SUMINISTRO Y COLOCACION DE CABLE DE COBRE DESNUDO CAL. 8, AWG, MCA. CONDUMEX, CONELEC O CONDUCTORES MONTERREY. INCLUYE: DESPERDICIOS, MATERIALES MENORES, PRUEBAS Y ACARREO AL SITIO DE SU COLOCACION.","ML ","50.0000",0,"CERO PESOS 00/100 M.N.",0,374937]
[543020,"SUMINISTRO Y COLOCACION DE INTERRUPTOR TERMOMAGNETICO CON 2 POLOS, DE 15-50 AMPERES, MCA. SQUARE D, CAT. QO. INCLUYE: PRUEBAS, FLETES, MATERIALES MENORES Y ACARREO DE MATERIALES AL SITIO DE SU COLOCACION.","PZA","1.0000",0,"CERO PESOS 00/100 M.N.",0,374940]
[558522,"SUMINISTRO Y COLOCACION DE VARILLA DE TIERRA COOPERWELD, DE 3.00 M X 19 MM DE DIAM.  INCLUYE: UNA  CARGA CADWELD NO. 90, CONECTOR COOPER WELD, SOLDADURA CADWELD NO. 90, PARTE PROPORCIONAL DE MOLDE 161V.,  MATERIALES MENORES, PRUEBAS Y ACARREO AL SITIO DE SU COLOCACION.","PZA","2.0000",0,"CERO PESOS 00/100 M.N.",0,374942]
[880621,"SUMINISTRO Y COLOCACION DE REGISTRO ELECTRICO DE CONCRETO, PREFABRICADO, PARA BAJA TENSION TIPO 1 NORMA C.F.E.- RBTB-1 DE 50 X 80 X 65 CM., CON TAPA DE CONCRETO,  MARCO Y CONTRAMARCO  DE ACERO GALVANIZADO, INCLUYE: TRAZO, EXCAVACION, RELLENOS COMPACTADOS, FILTRO DE GRAVA, RESANADO FINO DE TUBERIAS EN SU INTERIOR, HERRAMIENTAS, MANO DE OBRA, FLETES, ACARREO AL SITIO DE SU COLOCACION Y LIMPIEZA DEL AREA DE TRABAJO.","PZA","4.0000",0,"CERO PESOS 00/100 M.N.",0,374943]
["03","RED SANITARIA",null,null,null,null,{"$f":"TEXT((G319), \"$ #,##0.00 ;\")","v":"$ 0.00 "}]
["03.01(565)","INSTALACION HIDRAULICA, SANITARIA Y GAS EN O. EXT.",null,null,null,null,{"$f":"TEXT(SUM(G320:G321), \"$ #,##0.00 ;\")","v":"$ 0.00 "}]
[585014,"SUMINISTRO Y COLOCACION DE TUBO DE P.V.C. SANITARIO (ANGER)  SERIE 25, CAMPANA, DE 6\" (150 MM) DIAM., INCLUYE: CONEXIONES, TRAZO, EXCAVACION,  PASOS POR CIMENTACION, CAMA DE ARENA, RELLENO COMPACTADO, DESPERDICIOS, PRUEBAS Y ACARREO DE MATERIALES AL SITIO DE SU COLOCACION.","ML ","60.0000",0,"CERO PESOS 00/100 M.N.",0,374944]
[905072,"SONDEO Y LIMPIEZA DE LINEA DE DRENAJE EXISTENTE DE TUBERIA DE 4\" O 6\" INCLUYE, EXCAVACIONES, RELLENOS, DESAZOLVE, LIMPIEZA DE REGISTROS APLICACION DE CHORRO DE AGUA A PRESION, ACARREO Y RETIRO FUERA DE LA OBRA DE AZOLVE Y SOLIDOS PRODUCTO DE LA LIMPIEZA, HERRAMIENTA, EQUIPO Y MANO DE OBRA.","ML ","140.0000",0,"CERO PESOS 00/100 M.N.",0,374947]
["04","RED HIDRAULICA",null,null,null,null,{"$f":"TEXT((G323), \"$ #,##0.00 ;\")","v":"$ 0.00 "}]
["04.01(565)","INSTALACION HIDRAULICA, SANITARIA Y GAS EN O. EXT.",null,null,null,null,{"$f":"TEXT(SUM(G324:G324), \"$ #,##0.00 ;\")","v":"$ 0.00 "}]
[596002,"REGISTRO HIDRAULICO DE 0.40 X 0.40 X 0.60 M, CON MURO DE LADRILLO DE LAMA 5.5 X 11.0 X 22.0 CM, ASENTADO CON MORTERO CEMENTO-ARENA 1:3, A SOGA, APLANADO CON MORTERO CEMENTO-ARENA DE RIO 1:3,  Y PISO DE CONCRETO ACABADO PULIDO. INCLUYE: TRAZO, EXCAVACIONES, NIVELACION, RELLENO CON MATERIAL PRODUCTO DE EXCAVACION, RETIRO DE MATERIAL EXCEDENTE FUERA DE LA OBRA, TAPA DE CONCRETO F'C=200 KG/CM2, MARCO Y CONTRAMARCO DE ANGULO DE 1 1/2\" X 1/8\", MATERIALES, DESPERDICIOS, HERRAMIENTAS, MANO DE OBRA, LIMPIEZA, RETIRO DE MATERIAL PRODUCTO DE EXCAVACION FUERA DE LA OBRA Y ACARREO DE MATERIALES AL SITIO DE SU UTILIZACION.","PZA","2.0000",0,"CERO PESOS 00/100 M.N.",0,374945]
[52,"CANALES PARA AGUAS PLUVIALES",null,null,null,null,{"$f":"TEXT((G326), \"$ #,##0.00 ;\")","v":"$ 0.00 "}]
["52.01(565)","INSTALACION HIDRAULICA, SANITARIA Y GAS EN O. EXT.",null,null,null,null,{"$f":"TEXT(SUM(G327:G327), \"$ #,##0.00 ;\")","v":"$ 0.00 "}]
[596572,"FORJADO DE CANAL TRAPEZOIDAL PARA CAPTACION DE AGUAS PLUVIALES, A BASE DE PISO DE CONCRETO DE F'C=200 KG/CM2 Y 8 CMS. DE ESPESOR, CON DIMENSIONES TRANSVERSALES LIBRES DE 30 CM EN LA BASE, 70 CM. EN LA PARTE SUPERIOR,  PROFUNDIDAD DE 30 CM. Y CEJAS LATERALES DE 20 CMS. ACABADO RAYADO, INCLUYE: LIMPIEZA, TRAZO, EXCAVACION, AFINE, COMPACTACION, CIMBRA, NIVELACION, DESCIMBRA, COLADO, VIBRADO,  CURADO, RELLENOS, MATERIALES, HERRAMIENTAS, MANO DE OBRA Y ACARREO DE MATERIALES AL SITIO DE SU COLOCACION, TRABAJO TERMINADO.","ML ","310.0000",0,"CERO PESOS 00/100 M.N.",0,374946]
[null,"RESUMEN DE PARTIDAS"]
["BAS-CONA-06603","CONSTRUCCIÓN DE DOS AULAS DIDÁCTICAS, CANCHA DE USOS MÚLTIPLES, PÓRTICO DE INGRESO, PATIO CÍVICO Y REHABILITACIÓN GENERAL EN LA ESCUELA SECUNDARIA TÉCNICA NO. 54 CCT 14DST0121X, UBICADA EN LA CABECERA MUNICIPAL DE IXTLAHUACAN DEL RIO, JALISCO.",null,null,null,null,{"$f":"G17","v":"$ 0.00 "}]
["EDFS","EDIFICIOS",null,null,null,null,{"$f":"G18","v":"$ 0.00 "}]
["EDFS.01(140)","DEMOLICIONES, DESMONTAJES Y MECANICA DE SUELOS    ",null,null,null,null,{"$f":"G19","v":"$ 0.00 "}]
["EDFS.02(150)","TRABAJOS PRELIMINARES                             ",null,null,null,null,{"$f":"G39","v":"$ 0.00 "}]
["EDFS.03(160)","CIMENTACION                                       ",null,null,null,null,{"$f":"G43","v":"$ 0.00 "}]
["EDFS.04(200)","ESTRUCTURA                                        ",null,null,null,null,{"$f":"G49","v":"$ 0.00 "}]
["EDFS.05(319)","ENTREPISOS, CUBIERTA Y ACABADOS DE AZOTEA         ",null,null,null,null,{"$f":"G51","v":"$ 0.00 "}]
["EDFS.06(355)","RECUBRIMIENTOS Y ACABADOS                         ",null,null,null,null,{"$f":"G60","v":"$ 0.00 "}]
["EDFS.07(372)","PISOS                                             ",null,null,null,null,{"$f":"G63","v":"$ 0.00 "}]
["EDFS.08(382)","ELEMENTOS COMPLEMENTARIOS DE ALBAÑILERIA          ",null,null,null,null,{"$f":"G67","v":"$ 0.00 "}]
["EDFS.09(390)","CARPINTERIA                                       ",null,null,null,null,{"$f":"G72","v":"$ 0.00 "}]
["EDFS.10(393)","PINTURA                                           ",null,null,null,null,{"$f":"G74","v":"$ 0.00 "}]
["EDFS.11(396)","LIMPIEZA                                          ",null,null,null,null,{"$f":"G77","v":"$ 0.00 "}]
["EDFS.12(410)","CANCELERIA, HERRERIA, ALUMINIO, VIDRIOS Y CHAPAS  ",null,null,null,null,{"$f":"G79","v":"$ 0.00 "}]
["EDFS.13(510)","INSTALACION ELECTRICA EN EDIFICIO                 ",null,null,null,null,{"$f":"G81","v":"$ 0.00 "}]
["EDFS.14(564)","INSTALACION HIDRAULICA, SANITARIA Y GAS EN EDIF.  ",null,null,null,null,{"$f":"G89","v":"$ 0.00 "}]
["EDFS.15(565)","INSTALACION HIDRAULICA, SANITARIA Y GAS EN O. EXT.",null,null,null,null,{"$f":"G97","v":"$ 0.00 "}]
["EDFS.16(590)","MUEBLES DE BAÑO Y COCINA                          ",null,null,null,null,{"$f":"G99","v":"$ 0.00 "}]
["J","EDIFICIO J",null,null,null,null,{"$f":"G112","v":"$ 0.00 "}]
["J.01(150)","TRABAJOS PRELIMINARES                             ",null,null,null,null,{"$f":"G113","v":"$ 0.00 "}]
["J.02(160)","CIMENTACION                                       ",null,null,null,null,{"$f":"G120","v":"$ 0.00 "}]
["J.03(200)","ESTRUCTURA                                        ",null,null,null,null,{"$f":"G137","v":"$ 0.00 "}]
["J.04(310)","MUROS, CADENAS, CASTILLOS Y REPIZONES.            ",null,null,null,null,{"$f":"G150","v":"$ 0.00 "}]
["J.05(319)","ENTREPISOS, CUBIERTA Y ACABADOS DE AZOTEA         ",null,null,null,null,{"$f":"G161","v":"$ 0.00 "}]
["J.06(355)","RECUBRIMIENTOS Y ACABADOS                         ",null,null,null,null,{"$f":"G163","v":"$ 0.00 "}]
["J.07(372)","PISOS                                             ",null,null,null,null,{"$f":"G167","v":"$ 0.00 "}]
["J.08(393)","PINTURA                                           ",null,null,null,null,{"$f":"G179","v":"$ 0.00 "}]
["J.09(396)","LIMPIEZA                                          ",null,null,null,null,{"$f":"G185","v":"$ 0.00 "}]
["J.10(410)","CANCELERIA, HERRERIA, ALUMINIO, VIDRIOS Y CHAPAS  ",null,null,null,null,{"$f":"G189","v":"$ 0.00 "}]
["J.11(510)","INSTALACION ELECTRICA EN EDIFICIO                 ",null,null,null,null,{"$f":"G196","v":"$ 0.00 "}]
["J.12(530)","EQUIPOS E INSTALACIONES DE REDES DE VOZ Y DATOS.  ",null,null,null,null,{"$f":"G204","v":"$ 0.00 "}]
["01","PLAZA Y ANDADORES",null,null,null,null,{"$f":"G206","v":"$ 0.00 "}]
["01.01(150)","TRABAJOS PRELIMINARES                             ",null,null,null,null,{"$f":"G207","v":"$ 0.00 "}]
["01.02(160)","CIMENTACION                                       ",null,null,null,null,{"$f":"G214","v":"$ 0.00 "}]
["01.03(372)","PISOS                                             ",null,null,null,null,{"$f":"G221","v":"$ 0.00 "}]
["01.04(396)","LIMPIEZA                                          ",null,null,null,null,{"$f":"G224","v":"$ 0.00 "}]
[17,"CANCHA DE USOS MULTIPLES 1",null,null,null,null,{"$f":"G226","v":"$ 0.00 "}]
["17.01(150)","TRABAJOS PRELIMINARES                             ",null,null,null,null,{"$f":"G227","v":"$ 0.00 "}]
["17.02(160)","CIMENTACION                                       ",null,null,null,null,{"$f":"G234","v":"$ 0.00 "}]
["17.03(372)","PISOS                                             ",null,null,null,null,{"$f":"G243","v":"$ 0.00 "}]
["17.04(393)","PINTURA                                           ",null,null,null,null,{"$f":"G249","v":"$ 0.00 "}]
["17.05(396)","LIMPIEZA                                          ",null,null,null,null,{"$f":"G254","v":"$ 0.00 "}]
["17.06(410)","CANCELERIA, HERRERIA, ALUMINIO, VIDRIOS Y CHAPAS  ",null,null,null,null,{"$f":"G256","v":"$ 0.00 "}]
["17.07(615)","JUEGOS INFANTILES Y ARENEROS                      ",null,null,null,null,{"$f":"G259","v":"$ 0.00 "}]
[30,"INGRESO TIPO",null,null,null,null,{"$f":"G262","v":"$ 0.00 "}]
["30.01(150)","TRABAJOS PRELIMINARES                             ",null,null,null,null,{"$f":"G263","v":"$ 0.00 "}]
["30.02(160)","CIMENTACION                                       ",null,null,null,null,{"$f":"G270","v":"$ 0.00 "}]
["30.03(200)","ESTRUCTURA                                        ",null,null,null,null,{"$f":"G281","v":"$ 0.00 "}]
["30.04(319)","ENTREPISOS, CUBIERTA Y ACABADOS DE AZOTEA         ",null,null,null,null,{"$f":"G288","v":"$ 0.00 "}]
["30.05(372)","PISOS                                             ",null,null,null,null,{"$f":"G290","v":"$ 0.00 "}]
["30.06(382)","ELEMENTOS COMPLEMENTARIOS DE ALBAÑILERIA          ",null,null,null,null,{"$f":"G294","v":"$ 0.00 "}]
["30.07(393)","PINTURA                                           ",null,null,null,null,{"$f":"G296","v":"$ 0.00 "}]
["30.08(396)","LIMPIEZA                                          ",null,null,null,null,{"$f":"G299","v":"$ 0.00 "}]
["30.09(410)","CANCELERIA, HERRERIA, ALUMINIO, VIDRIOS Y CHAPAS  ",null,null,null,null,{"$f":"G301","v":"$ 0.00 "}]
["30.10(511)","INSTALACION ELECTRICA EN OBRA EXTERIOR            ",null,null,null,null,{"$f":"G304","v":"$ 0.00 "}]
["02","RED ELECTRICA",null,null,null,null,{"$f":"G309","v":"$ 0.00 "}]
["02.01(511)","INSTALACION ELECTRICA EN OBRA EXTERIOR            ",null,null,null,null,{"$f":"G310","v":"$ 0.00 "}]
["03","RED SANITARIA",null,null,null,null,{"$f":"G318","v":"$ 0.00 "}]
["03.01(565)","INSTALACION HIDRAULICA, SANITARIA Y GAS EN O. EXT.",null,null,null,null,{"$f":"G319","v":"$ 0.00 "}]
["04","RED HIDRAULICA",null,null,null,null,{"$f":"G322","v":"$ 0.00 "}]
["04.01(565)","INSTALACION HIDRAULICA, SANITARIA Y GAS EN O. EXT.",null,null,null,null,{"$f":"G323","v":"$ 0.00 "}]
[52,"CANALES PARA AGUAS PLUVIALES",null,null,null,null,{"$f":"G325","v":"$ 0.00 "}]
["52.01(565)","INSTALACION HIDRAULICA, SANITARIA Y GAS EN O. EXT.",null,null,null,null,{"$f":"G326","v":"$ 0.00 "}]
[]
["IMPORTE CON LETRA (IVA INCLUIDO)",null,null,null,null,"SUBTOTAL M.N.",{"$f":"TEXT(G17,  \"$ #,##0.00 ;\")","v":"$ 0.00 "}]
[{"$f":"UPPER(CONVERTIRNUM(ROUND( G17 * 1.16, 2)))","v":"CERO PESOS 00/100 M.N."},null,null,null,null,"IVA M.N.",{"$f":"TEXT(ROUND( G17 * 0.16, 2),  \"$ #,##0.00 ;\")","v":"$ 0.00 "}]
[null,null,null,null,null,"TOTAL M.N.",{"$f":"TEXT(ROUND( G17 * 1.16, 2),  \"$ #,##0.00 ;\")","v":"$ 0.00 "}]